Workbook

Sheet Guía Rápida
B2: Guía Rápida
B3: A) Al abrir el simulador da click en "Habilitar Contenido" en caso de aparecer esta opción.
B4: B) Seleccionar el Perfil del Cliente "Premier, No Premier"
B5: C) Seleccionar el tipo de simulación "Por Valor de la Vivienda, Por Monto del Crédito Y Valor de la Vivienda, Por Ingresos del Cliente"
B6: D) Seleccionar Producto "Adquisición, Exclusiva, Liquidez, Pago de Hipoteca"
B7: E) Seleccionar Tipo de Financiamiento "Tradicional, Cofinavit, Apoyo Infonavit, Respalda2, Alia2"
B8: F) Introducir el valor de la vivienda
B9: G) Seleccionar Plazo "5,10,15,20 años"
B10: H) Si es el caso introduce el importe del crédito o el ingreso mensual del cliente
B11: I) Si es el caso, introduce el crédito Infonavit o FOVISSSTE y el saldo de la subcuenta.
B12: J) Seleccionar si es cliente Nómina HSBC o No
B13: K) En caso de haber elegido un "Adquisición, No Premier" aparecerá un combo para elegir una tasa, seleccionar alguna. Con la tasa más baja solo accedemos al 65% de LTV, con la tasa más alta solo accedemos al 75% de LTV
B14: L) En caso de elegir la tasa más alta (Nivel de riesgo alto) y solicitar un aforo superior al 75%, seleccionar "SI" en el combo "LTV 90%", con esto se cobrará la sobretasa
B15: M) En caso de tener duda o creer que algo puede estar afectando la simulación selecciona "Nueva Cotización" y vuelve a empezar

Sheet Resumen
L3: Cliente HSBC | M3: Tipo | N3: Producto | O3: Tipo Financiamiento | P3: Plazo | Q3: Aguascalientes | R3: 0.406 | U3: Pago Fijo
D4: CREDITO HIPOTECARIO | L4: SI | M4: Por monto de crédito y valor de la vivienda | N4: Adquisicion | O4: Tradicional | P4: 5 | Q4: Baja California | R4: 0.406 | BG4: AdquisicionPremier50.9 | BH4: 20.86 | BJ4: AdquisicionPremier50.9 | BK4: 20.26
L5: NO | M5: Por ingresos del cliente | N5: Pago de Hipoteca | O5: Apoyo Infonavit | P5: 10 | Q5: Baja California Sur | R5: 0.406 | T5: Segment | U5: Premier | Y5: No premier | AK5: Exclusiva | AO5: Pago Hipoteca | AS5: Liquidez Premier | AV5: Liquidez No Premier | BB5: Nómina Especial | BG5: AdquisicionPremier100.9 | BH5: 12.91 | BJ5: AdquisicionPremier100.9 | BK5: 12.16
C6: =TODAY() -> 2021-11-24 | L6: AdquisicionNo PremierTradicional | M6: Por Valor de la Vivienda | N6: Liquidez | O6: Cofinavit | P6: 15 | Q6: Campeche | R6: 0.406 | U6: 5 años | V6: 10años | W6: 15años | X6: 20años | Y6: 5 años | Z6: 5 años | AA6: 5 años | AB6: 10años | AC6: 10años | AD6: 10años | AE6: 15años | AF6: 15años | AG6: 20años | AH6: 20años | AI6: 20años | AJ6: 20años | AK6: 5 años | AL6: 10años | AM6: 15años | AN6: 20años | AO6: 5 años | AP6: 10años | AQ6: 15años | AR6: 20años | AS6: 5 años | AT6: 10años | AU6: 15años | AV6: 5 años | AW6: 5 años | AX6: 10años | AY6: 10años | AZ6: 15años | BA6: 15años | BB6: 5 años | BC6: 10años | BD6: 15años | BE6: 20años | BG6: AdquisicionPremier150.9 | BH6: 10.56 | BJ6: AdquisicionPremier150.9 | BK6: 9.7
L7: AdquisicionPremierTradicional | N7: Exclusiva | O7: CI+CB | P7: =IF(D21=N6,"",20) -> 20 | Q7: Coahuila | R7: 0.406 | T7: Rate | U7: 0.092 | V7: 0.0945 | W7: 0.097 | X7: 0.097 | Y7: 0.095 | Z7: 0.1 | AA7: 0.104 | AB7: 0.0975 | AC7: 0.1025 | AD7: 0.1065 | AE7: 0.1 | AF7: 0.105 | AG7: 0.109 | AH7: 0.1 | AI7: 0.105 | AJ7: 0.109 | AK7: 0.097 | AL7: 0.0995 | AM7: 0.102 | AN7: 0.102 | AO7: 0.092 | AP7: 0.0945 | AQ7: 0.097 | AR7: 0.097 | AS7: 0.115 | AT7: 0.1175 | AU7: 0.12 | AV7: 0.12 | AW7: 0.13 | AX7: 0.1225 | AY7: 0.1325 | AZ7: 0.125 | BA7: 0.135 | BB7: 0.094 | BC7: 0.0965 | BD7: 0.099 | BE7: 0.099 | BG7: AdquisicionPremier200.9 | BH7: 9.45 | BJ7: AdquisicionPremier200.9 | BK7: 8.5
L8: Perfil | N8: Pago Hipoteca+Liquidez | O8: Alia2 | Q8: Colima | R8: 0.406 | T8: Opening Fee | U8: 0 | V8: 0 | W8: 0 | X8: 0 | Y8: 0.01 | Z8: 0.01 | AA8: 0.01 | AB8: 0.01 | AC8: 0.01 | AD8: 0.01 | AE8: 0.01 | AF8: 0.01 | AG8: 0.01 | AH8: 0.01 | AI8: 0.01 | AJ8: 0.01 | AK8: 0.01 | AL8: 0.01 | AM8: 0.01 | AN8: 0.01 | AO8: 0 | AP8: 0 | AQ8: 0 | AR8: 0 | AS8: 0 | AT8: 0 | AU8: 0 | AV8: 0.015 | AW8: 0.015 | AX8: 0.015 | AY8: 0.015 | AZ8: 0.015 | BA8: 0.015 | BB8: 0 | BC8: 0 | BD8: 0 | BE8: 0 | BG8: AdquisicionNo Premier50.5 | BH8: 21 | BJ8: AdquisicionNo Premier50.5 | BK8: 20.41
C9: Nombre del ejecutivo | F9: Teléfono | N9: Nomina Especial | O9: Casa con casa | Q9: Chiapas | R9: 0.406
C10: Nombre del cliente | F10: Teléfono | Q10: Chihuahua | R10: 0.406
C11: Conjunto | M11: AdquisicionNo PremierCI+CB | Q11: Ciudad de México | R11: 0.406
M12: AdquisicionPremierCI+CB | Q12: Durango | R12: 0.406
Q13: Estado de México | R13: 0.406
C14: Instrucciones: Llenar solo los campos en gris claro. | M14: AdquisicionNo PremierCasa con casa | Q14: Guanajuato | R14: 0.406
C15: Datos del Cliente | F15: Resultados | M15: AdquisicionPremierCasa con casa | Q15: Guerrero | R15: 0.406
C16: Perfil Cliente | D16: Premier | F16: Desembolso inicial | Q16: Hidalgo | R16: 0.406
C17: ¿Es cliente Nómina HSBC? | D17: NO | F17: =IF(G17>=0,"Enganche","") -> Enganche | G17: =IFERROR(IF(J4<>"","-",IF(D21=V78,0,IF(D21=V79,0,IF(D21=V80,0,D26-IF(D22=O8,D32+D33+H25-H19,IF(D22=O7,D33+H25-H19,IF(D22=O6,D32+D33+H25,H25-H19))))))),0) -> 0 | Q17: Jalisco | R17: 0.406
C18: Estado Vivienda | D18: Aguascalientes | F18: Avalúo | G18: =IF(J4<>"","-",VLOOKUP(D26,Q71:R79,2)) -> 2146 | K18: =producto ->  | Q18: Michoacán | R18: 0.406
C19: =IF(D16="Premier","Tipo de Cliente","") -> Tipo de Cliente | D19: Normal | F19: Comisión por apertura | G19: =IF(D21="Pago Hipoteca+Liquidez",1%,IF(L45="AdquisicionNo Premier","1%",IF(L45="ExclusivaNo Premier","0%",IF(L45="LiquidezNo Premier","1%",IF(D21=N8,"0%","0%"))))/IF(AND(D17="SI",D21<>N6),2,IF(L43="AdquisicionCofinavit",2,IF(L43="ExclusivaCofinavit",2,IF(L43="AdquisicionAlia2",2,IF(L43="ExclusivaAlia2",2,1))))))-IF(D21&D19=L189,1%,0) -> 0 | H19: =IFERROR(IF($D$25="Por ingresos del cliente",$N$58,IF($D$27=0,$M$83,$M$83))*G19,0) -> 0 | Q19: Morelos | R19: 0.406
C20: Datos del crédito | F20: Gastos de Investigación | G20: =IF(D21=N8,"","") ->  | Q20: Nayarit | R20: 0.406
C21: Escoja la opción de Producto | D21: Adquisicion | F21: Gastos Notariales | G21: 0.02 | H21: =IF(J4<>"","-",IF(OR(D21=V77,D21=V82),D26*G21,IF(OR(D21=V79,D21=V78,D21=V80),H25*G21,IF(OR(D21=V81),G21*D26,"-")))) -> 0 | Q21: Nuevo León | R21: 0.406
C22: =IF(OR(D21=N4,D21=N7,D21=N9),L161,"") -> Tipo de Programa | D22: Tradicional | F22: Desembolso Total | G22: =IF(J4<>"","-",IF(G17<=0,0,G17)+IF(ISNUMBER(G18),G18,0)+IF(ISNUMBER(G20),G20,0)+IF(ISNUMBER(H21),H21,0)) -> 2146 | Q22: Oaxaca | R22: 0.406
C23: =IF(OR(D21&D16&D22=L6,D21&D16&D22=M11),"Elige una tasa de interés",IF(AND(D21&D16&D22=L7,G25>0.85),"Elige una tasa de interés","")) ->  | D23: 0.089 | Q23: Puebla | R23: 0.406
C24: =IF(D21="Pago de Hipoteca","¿La hipoteca proviene de un Cofinavit, Apoyo, Aliados o Respaldados?",IF(D22="CI+CB","¿Es Cliente Asalariado?","")) ->  | F24: Condiciones del crédito | Q24: Querétaro | R24: 0.406
C25: Tipo de calculo | D25: Por monto de crédito y valor de la vivienda | F25: Monto de crédito Total | G25: =IFERROR(H25/D26,0) -> 0 | H25: =IFERROR(IF(AND(D21="Liquidez",IF(D3<>"","-",IF(D21=N8,MIN(M58,D31+D26*0.2),IF(OR(D21=N4,D21=N7,D21=N9),M64,M58)))>70000000),70000000,IF(D3<>"","-",IF(D21=N8,MIN(M58,D31+D26*0.7),IF(OR(D21=N4,D21=N7,D21=N9),M64,M58))))-IF(D25=M6,D34,0),0) -> 0 | Q25: Quintana Roo | R25: 0.406
C26: =IF(D22="Casa con casa", "Valor de Vivienda Garantía", "Valor de la Vivienda a Adquirir") -> Valor de la Vivienda a Adquirir | F26: =IF(D22="CI+CB", "Tasa HSBC", "Tasa Final") -> Tasa Final | G26: =IF(AND(D16="No Premier",D21="Adquisicion",D24="NO"),D23,IF(AND(D16="No Premier",D21="Adquisicion",D24="X"),D23+0.7%,IFERROR(IF(D21=N8,8.75%,VLOOKUP(D16&D21&D28&IF(D21&D16=N45,O45,IF(D21&D16=N46,O46,IF(D21&D16=N48,O48,O50))),R102:S181,2,0)),IF(AND(D21&D16&D22=L7,G25>0.85),D23,0))+IFERROR(IF(D24="X",L179,0),0))) -> 0 | Q26: San Luis Potosí | R26: 0.406
C27: =IF(OR(D25=M5,D25=M6),"",L163) -> Monto del Crédito | F27: Pago mensual total HSBC | G27: =IF(Amortización!E16="SI",Amortización!K24,Amortización!K21) -> 0 | Q27: Sinaloa | R27: 0.406
C28: Plazo solicitado (años) | F28: =IF(D22=O7,"CAT HSBC**","CAT**") -> CAT** | G28: =Amortización!K17 -> - | Q28: Sonora | R28: 0.406
C29: =IF(OR($D$25=$M$5,AND(OR(D21=N4,D21=N7, D21=N9),D22=O5)),"Ingreso Mensual Neto*","") ->  | F29: =IF(D25="Por ingresos del cliente","Monto Máximo Por Ingresos","Ingreso Neto Requerido") -> Ingreso Neto Requerido | G29: =IFERROR(IF(D26="","-",IF(D25="Por ingresos del cliente",ROUND(M69/M76*1000,-3),IF(D21=V79,MIN(5000000,IF(OR(D25=M4,D25=M6),VLOOKUP(D28,V84:W87,2,0),ROUND(M69/M76*1000,-3))),IF(OR(D25=M4,D25=M6),VLOOKUP(D28,V84:W87,2,0))))),0) -> - | Q29: Tabasco | R29: 0.406
C30: =IF($D$25=$M$5,"Pago Mensual en Buro(Obligaciones)","") ->  | Q30: Tamaulipas | R30: 0.406
C31: =IF(OR(D25&D21=M49,D25&D21=M50,D25&D21=M51),"Monto Hipoteca Actual","") ->  | F31: =IF(D21=N8,"Pago Mensual",IF(D22="CI+CB","Distribución del Crédito","")) ->  | I31: Mensualidad | L31: =AF78 -> 0 | Q31: Tlaxcala | R31: 0.406
C32: =IF(AND(OR(D21=N4,D21=N7,D21=N9),D22="Cofinavit"),"Crédito Otorgado menos Ecotecnologías",IF(AND(OR(D21=N4,D21=N7),D22="Alia2"),"Crédito FOVISSSTE","")) ->  | F32: =IF(D21=N8,"Pago Hipoteca",IF(D22=O7,"Crédito HSBC - Tasa "&(G26*100)&"%","")) ->  | G32: =IF(D22=O7,H25-G33,PMT($G$26/12,$D$28*12,-$D$31)+($M$73*1000)+($D$31*$L$86/1000)) ->  | I32: =IF(D22=O7,Amortización!K21,"") ->  | Q32: Veracruz | R32: 0.406
C33: =IF(AND(OR(D21=N4,D21=N7, D21=N9),D22="Cofinavit"),"Saldo Subcuenta de Vivienda",IF(AND(OR(D21=N4,D21=N7),D22="CI+CB"),"Saldo Subcuenta de Vivienda",IF(AND(OR(D21=N4,D21=N7),D22=O8),"Saldo Subcuenta de Vivienda",""))) ->  | F33: =IF(D21=N8,"Liquidez (Sin IVA)",IF(D22=O7,"Crédito Infonavit - Tasa 10.45%","")) ->  | G33: =IF(D22=O7,ROUNDDOWN(MIN(H25*0.3,325*2724.45),2),PMT($G$26/12,$D$28*12,-(H25-D31))+((H25-D31)*$L$86/1000)) ->  | I33: =IF(D22=O7,Amortización!AV12,"") ->  | Q33: Yucatán | R33: 0.406
C34: =IF(OR(D25&D21=M47,D25&D21=M48),"Enganche Adicional","") ->  | Q34: Zacatecas | R34: 0.406
C35: =IF(D23=L171,"Comportamiento Crediticio","") ->  | D35: 3
C36: Mensajes clave
C37: =IF(ISERROR(VLOOKUP(TRUE,$N$177:$O$200,2,0)),"",VLOOKUP(TRUE,$N$177:$O$200,2,0)) -> Introducir Valor de la Vivienda
C38: =IF(C23="Elige una tasa de interés", "EN BASE AL ESTUDIO DE CREDITO DEL CLIENTE Y SU AFORO, SE ASIGNARA UNA TASA DE INTERES","") -> 
C39: =IF(C24="Se requiere LTV al 90%?", "EL CLIENTE PUEDE ACCEDER AL AFORO HASTA EL 90% SI ASI LO REQUIERE","") -> 
C40: * Condiciones aplicables en caso de ser asalariado. En caso de tener otra actividad, revisar en comparativo los plazos. | L40: Premier | M40: =K41&K43 -> 0.093Adquisicion | T40: Research Fee | U40: 0 | V40: 0 | W40: 0 | X40: 0 | Y40: 0 | Z40: 0 | AA40: 0 | AB40: 0 | AC40: 0 | AD40: 0 | AE40: 0 | AF40: 0 | AG40: 0 | AH40: 0 | AI40: 0 | AJ40: 0 | AK40: 0 | AL40: 0 | AM40: 0 | AN40: 0 | AO40: 0 | AP40: 0 | AQ40: 0 | AR40: 0 | AS40: 0 | AT40: 0 | AU40: 0 | AV40: 0 | AW40: 0 | AX40: 0 | AY40: 0 | AZ40: 0 | BA40: 0 | BB40: 0 | BC40: 0 | BD40: 0 | BE40: 0 | BG40: AdquisicionNo Premier50.75 | BH40: 21.25 | BJ40: AdquisicionNo Premier50.75 | BK40: 20.65
C41: ** CAT HSBC promedio sin IVA. Informativo. Tasa fija anual. Cobertura Nacional. Crédito en Moneda Nacional. Información sujeta a cambios sin previo aviso. | K41: =L170 -> 0.093 | L41: No Premier | M41: 0 | T41: Appraisal | U41: Sí | V41: Sí | W41: Sí | X41: Sí | Y41: Sí | Z41: Sí | AA41: Sí | AB41: Sí | AC41: Sí | AD41: Sí | AE41: Sí | AF41: Sí | AG41: Sí | AH41: Sí | AI41: Sí | AJ41: Sí | AK41: Sí | AL41: Sí | AM41: Sí | AN41: Sí | AO41: Sí | AP41: Sí | AQ41: Sí | AR41: Sí | AS41: Sí | AT41: Sí | AU41: Sí | AV41: Sí | AW41: Sí | AX41: Sí | AY41: Sí | AZ41: Sí | BA41: Sí | BB41: Sí | BC41: Sí | BD41: Sí | BE41: Sí | BG41: AdquisicionNo Premier50.9 | BH41: 21.44 | BJ41: AdquisicionNo Premier50.9 | BK41: 20.84
C42: Aplican condiciones. Sujeto a aprobación de crédito. Consulta términos, condiciones de contratación y comisiones en www.hsbc.com.mx | K42: =L171 -> 0.0965 | L42: =K42&K43 -> 0.0965Adquisicion | M42: 0.01 | N42: AdquisicionNo Premier | O42: =IF(D23=L168,90%,IF(D23=L169,94%,IF(D23=L170,85%,IF(D23&D35=L183,75%,85%)))) -> 0.9 | T42: LTV | U42: 0.9 | V42: 0.9 | W42: 0.9 | X42: 0.9 | Y42: 0.5 | Z42: 0.75 | AA42: 0.9 | AB42: 0.5 | AC42: 0.75 | AD42: 0.9 | AE42: 0.5 | AF42: 0.75 | AG42: 0.9 | AH42: 0.5 | AI42: 0.75 | AJ42: 0.9 | AK42: 0.9 | AL42: 0.9 | AM42: 0.9 | AN42: 0.9 | AO42: 0.85 | AP42: 0.85 | AQ42: 0.85 | AR42: 0.85 | AS42: 0.7 | AT42: 0.7 | AU42: 0.7 | AV42: 0.5 | AW42: 0.7 | AX42: 0.5 | AY42: 0.7 | AZ42: 0.5 | BA42: 0.7 | BB42: 0.9 | BC42: 0.9 | BD42: 0.9 | BE42: 0.9 | BG42: AdquisicionNo Premier100.5 | BH42: 13.08 | BJ42: AdquisicionNo Premier100.5 | BK42: 12.32
C43: Información mostrada para fines informativos y de comparación exclusivamente. No constituye obligación alguna para HSBC o las Aseguradoras indicadas. | K43: Adquisicion | L43: =D21&D22 -> AdquisicionTradicional | N43: Pago de HipotecaNo Premier | O43: =IF(H25/D26<=85%,85%,IF(AND(H25/D26<=95%,D24="SI"),85%,"")) ->  | T43: Monthly Fee (sin Iva) | U43: 0 | V43: 0 | W43: 0 | X43: 0 | Y43: 348 | Z43: 348 | AA43: 348 | AB43: 348 | AC43: 348 | AD43: 348 | AE43: 348 | AF43: 348 | AG43: 348 | AH43: 348 | AI43: 348 | AJ43: 348 | AK43: 0 | AL43: 0 | AM43: 0 | AN43: 0 | AO43: 348 | AP43: 348 | AQ43: 348 | AR43: 348 | AS43: 348 | AT43: 348 | AU43: 348 | AV43: 348 | AW43: 348 | AX43: 348 | AY43: 348 | AZ43: 348 | BA43: 348 | BB43: 0 | BC43: 0 | BD43: 0 | BE43: 0 | BG43: AdquisicionNo Premier100.75 | BH43: 13.35 | BJ43: AdquisicionNo Premier100.75 | BK43: 12.59
C44: El Seguro de Vida es registrado y operado por HSBC Seguros S.A. de CV., Grupo Financiero HSBC. El Seguro de Daños es registrado y operado por AXA Seguros S.A. de C.V. | K44: =K43&L40 -> AdquisicionPremier | L44: Liga | N44: LiquidezNo Premier | O44: =IF(H25/D26<=50%,50%,IF(H25/D26<=70%,70%,"")) ->  | T44: Pago Por mil | U44: 20.86 | V44: 12.91 | W44: 10.56 | X44: 9.45 | Y44: 21 | Z44: 21.25 | AA44: 21.44 | AB44: 13.08 | AC44: 13.35 | AD44: 13.58 | AE44: 10.75 | AF44: 11.05 | AG44: 11.3 | AH44: 9.65 | AI44: 9.98 | AJ44: 10.25 | AK44: 21.1 | AL44: 13.19 | AM44: 10.87 | AN44: 9.78 | AO44: 20.86 | AP44: 12.91 | AQ44: 10.56 | AR44: 9.45 | AS44: 21.99 | AT44: 14.2 | AU44: 12 | AV44: 22.24 | AW44: 22.75 | AX44: 14.49 | AY44: 15.08 | AZ44: 12.33 | BA44: 12.98 | BB44: 20.95 | BC44: 13.02 | BD44: 10.68 | BE44: 9.58 | BG44: AdquisicionNo Premier100.9 | BH44: 13.58 | BJ44: AdquisicionNo Premier100.9 | BK44: 12.81
L45: =(IF(D21&D16=N7&L40,N4,D21)&D16) -> AdquisicionPremier | M45: =D21&D16&D28&O50 -> AdquisicionPremier0.9 | N45: AdquisicionPremier | O45: =IF(AND(D22="CI+CB",D24="SI"),90%,IF(OR(H25/D26<=85%,D22=O5,D22=O6),85%,90%)) ->  | T45: Factor de Línea | U45: 21.49 | V45: 13.54 | W45: 11.19 | X45: 10.08 | Y45: 21.97 | Z45: 22.22 | AA45: 22.41 | AB45: 14.05 | AC45: 14.32 | AD45: 14.55 | AE45: 11.72 | AF45: 12.02 | AG45: 12.27 | AH45: 10.62 | AI45: 10.95 | AJ45: 11.22 | AK45: 21.73 | AL45: 13.82 | AM45: 11.5 | AN45: 10.41 | AO45: 21.83 | AP45: 13.88 | AQ45: 11.53 | AR45: 10.42 | AS45: 22.96 | AT45: 15.17 | AU45: 12.97 | AV45: 23.21 | AW45: 23.72 | AX45: 15.46 | AY45: 16.05 | AZ45: 13.3 | BA45: 13.95 | BB45: 21.58 | BC45: 13.65 | BD45: 11.31 | BE45: 10.21 | BG45: AdquisicionNo Premier150.5 | BH45: 10.75 | BJ45: AdquisicionNo Premier150.5 | BK45: 9.88
H46: Versión 20.0121.10.15 | L46: =(IF(D21&D16=N7&L40,N4,D21)&D16&D28) -> AdquisicionPremier | N46: LiquidezPremier | O46: =IF(H25/D26<=50%,50%,IF(H25/D26<=70%,70%,"")) ->  | T46: CaT | U46: 0.1121395052 | V46: 0.1123844645 | W46: 0.1136170685 | X46: 0.112644602 | Y46: 0.1319832009 | Z46: 0.1331994651 | AA46: 0.1366819827 | AB46: 0.1285718338 | AC46: 0.1302007031 | AD46: 0.1341027646 | AE46: 0.1280470607 | AF46: 0.1300829161 | AG46: 0.1339573905 | AH46: 0.125937852 | AI46: 0.1283281486 | AJ46: 0.1322447121 | AK46: 0.122374832 | AL46: 0.1206130811 | AM46: 0.1211379222 | AN46: 0.1197416463 | AO46: 0.1172043485 | AP46: 0.1173667351 | AQ46: 0.1182404626 | AR46: 0.1169777705 | AS46: 0.1450956399 | AT46: 0.1441838717 | AU46: 0.1446123011 | AV46: 0.1622471431 | AW46: 0.1697431932 | AX46: 0.1573170912 | AY46: 0.1654434508 | AZ46: 0.1565655314 | BA46: 0.1649007745 | BB46: 0.1141433518 | BC46: 0.1145455795 | BD46: 0.1157401184 | BE46: 0.1147699478 | BG46: AdquisicionNo Premier150.75 | BH46: 11.05 | BJ46: AdquisicionNo Premier150.75 | BK46: 10.17
C47: * Condiciones aplicables en caso de ser asalariado. En caso de tener otra actividad, revisar en comparativo los plazos. | L47: =(IF(D21&D16=N7&L40,N4,D21)&D16&D28&O50) -> AdquisicionPremier0.9 | M47: =M6&N4 -> Por Valor de la ViviendaAdquisicion | N47: ExclusivaNo Premier | O47: =IF(H25/D26<=95%,90%,"") ->  | BG47: AdquisicionNo Premier150.9 | BH47: 11.3 | BJ47: AdquisicionNo Premier150.9 | BK47: 10.41
L48: =(IF(D21&D16=N7&L40,N4,D21)&D28) -> Adquisicion | M48: =M6&N7 -> Por Valor de la ViviendaExclusiva | N48: ExclusivaPremier | O48: =IF(H25/D26<=95%,90%,"") ->  | BG48: AdquisicionNo Premier200.5 | BH48: 9.65 | BJ48: AdquisicionNo Premier200.5 | BK48: 8.69
L49: =(IF(D21&D16=N7&L40,N4,D21)&D28) -> Adquisicion | M49: =M4&N8 -> Por monto de crédito y valor de la viviendaPago Hipoteca+Liquidez | N49: Nomina Especial | O49: 0.9 | BG49: AdquisicionNo Premier200.75 | BH49: 9.98 | BJ49: AdquisicionNo Premier200.75 | BK49: 9.01
L50: =(IF(D21&D16=N7&L40,N4,D21)&D16&D28) -> AdquisicionPremier | M50: =M6&N8 -> Por Valor de la ViviendaPago Hipoteca+Liquidez | N50: LTV | O50: =IF(D21=N4,O42,IF(D21=N5,O43,IF(D21=N6,O44,IF(D21=N7,O47,IF(D21=N9,O49))))) -> 0.9 | U50: Pago Bajo | BG50: AdquisicionNo Premier200.9 | BH50: 10.25 | BJ50: AdquisicionNo Premier200.9 | BK50: 9.27
L51: LTV | M51: =M5&N8 -> Por ingresos del clientePago Hipoteca+Liquidez | BG51: ExclusivaNo Premier50.9 | BH51: 21.1 | BJ51: ExclusivaNo Premier50.9 | BK51: 20.5
L52: =IF($L$45="LiquidezPremier",N52,M52) -> 0.5 | M52: 0.5 | N52: 0.7 | O52: 0.85 | T52: Segment | U52: Premier | Y52: No premier | AK52: Exclusiva | AO52: Pago Hipoteca | BB52: Nómina Especial | BG52: ExclusivaNo Premier100.9 | BH52: 13.19 | BJ52: ExclusivaNo Premier100.9 | BK52: 12.43
L53: =IF($L$45="LiquidezPremier",N53,M53) -> 0.7 | M53: 0.7 | N53: 0.7 | O53: 0.85 | U53: 5 años | V53: 10años | W53: 15años | X53: 20años | Y53: 5 años | Z53: 5 años | AA53: 5 años | AB53: 10años | AC53: 10años | AD53: 10años | AE53: 15años | AF53: 15años | AG53: 20años | AH53: 20años | AI53: 20años | AJ53: 20años | AK53: 5 años | AL53: 10años | AM53: 15años | AN53: 20años | AO53: 5 años | AP53: 10años | AQ53: 15años | AR53: 20años | BB53: 5 años | BC53: 10años | BD53: 15años | BE53: 20años | BG53: ExclusivaNo Premier150.9 | BH53: 10.87 | BJ53: ExclusivaNo Premier150.9 | BK53: 10
L54: =IF($L$45="LiquidezPremier",N54,M54) -> 0.75 | M54: 0.75 | N54: 0.7 | O54: 0.85 | T54: Rate | U54: 0.092 | V54: 0.0945 | W54: 0.097 | X54: 0.097 | Y54: 0.095 | Z54: 0.1 | AA54: 0.104 | AB54: 0.0975 | AC54: 0.1025 | AD54: 0.1065 | AE54: 0.1 | AF54: 0.105 | AG54: 0.109 | AH54: 0.1 | AI54: 0.105 | AJ54: 0.109 | AK54: 0.097 | AL54: 0.0995 | AM54: 0.102 | AN54: 0.102 | AO54: 0.092 | AP54: 0.0945 | AQ54: 0.097 | AR54: 0.097 | BB54: 0.094 | BC54: 0.0965 | BD54: 0.099 | BE54: 0.099 | BG54: ExclusivaNo Premier200.9 | BH54: 9.78 | BJ54: ExclusivaNo Premier200.9 | BK54: 8.82
L55: =IF($L$45="LiquidezPremier",N55,M55) -> 0.85 | M55: 0.85 | N55: 0.7 | O55: 0.85 | T55: Opening Fee | U55: 0 | V55: 0 | W55: 0 | X55: 0 | Y55: 0.01 | Z55: 0.01 | AA55: 0.01 | AB55: 0.01 | AC55: 0.01 | AD55: 0.01 | AE55: 0.01 | AF55: 0.01 | AG55: 0.01 | AH55: 0.01 | AI55: 0.01 | AJ55: 0.01 | AK55: 0.01 | AL55: 0.01 | AM55: 0.01 | AN55: 0.01 | AO55: 0 | AP55: 0 | AQ55: 0 | AR55: 0 | BB55: 0 | BC55: 0 | BD55: 0 | BE55: 0 | BG55: Pago de Hipoteca50.85 | BH55: 20.86 | BJ55: Pago de Hipoteca50.85 | BK55: 20.26
L56: =IF($L$45="LiquidezPremier",N56,M56) -> 0.9 | M56: 0.9 | N56: 0.7 | O56: 0.85 | T56: Research Fee | U56: 0 | V56: 0 | W56: 0 | X56: 0 | Y56: 0 | Z56: 0 | AA56: 0 | AB56: 0 | AC56: 0 | AD56: 0 | AE56: 0 | AF56: 0 | AG56: 0 | AH56: 0 | AI56: 0 | AJ56: 0 | AK56: 0 | AL56: 0 | AM56: 0 | AN56: 0 | AO56: 0 | AP56: 0 | AQ56: 0 | AR56: 0 | BB56: 0 | BC56: 0 | BD56: 0 | BE56: 0 | BG56: Pago de Hipoteca100.85 | BH56: 12.91 | BJ56: Pago de Hipoteca100.85 | BK56: 12.16
T57: Appraisal | U57: Sí | V57: Sí | W57: Sí | X57: Sí | Y57: Sí | Z57: Sí | AA57: Sí | AB57: Sí | AC57: Sí | AD57: Sí | AE57: Sí | AF57: Sí | AG57: Sí | AH57: Sí | AI57: Sí | AJ57: Sí | AK57: Sí | AL57: Sí | AM57: Sí | AN57: Sí | AO57: Sí | AP57: Sí | AQ57: Sí | AR57: Sí | BB57: Sí | BC57: Sí | BD57: Sí | BE57: Sí | BG57: Pago de Hipoteca150.85 | BH57: 10.56 | BJ57: Pago de Hipoteca150.85 | BK57: 9.7
M58: =IF(AND(D25=M6,D22="Alia2",D23=L170),MIN(P75,P76),IF(AND(D25=M6,D22="Alia2",D23=L171),MIN(P75,P76),IF(J4="",IF(D25=M6,P76,IF(P75<100000,"-",P75)),0))) -> - | N58: =IFERROR(MIN(M58,M64),0) -> 0 | O58: =N58*G19 -> 0 | T58: LTV | U58: 0.9 | V58: 0.9 | W58: 0.9 | X58: 0.9 | Y58: 0.5 | Z58: 0.75 | AA58: 0.9 | AB58: 0.5 | AC58: 0.75 | AD58: 0.9 | AE58: 0.5 | AF58: 0.75 | AG58: 0.9 | AH58: 0.5 | AI58: 0.75 | AJ58: 0.9 | AK58: 0.9 | AL58: 0.9 | AM58: 0.9 | AN58: 0.9 | AO58: 0.85 | AP58: 0.85 | AQ58: 0.85 | AR58: 0.85 | BB58: 0.9 | BC58: 0.9 | BD58: 0.9 | BE58: 0.9 | BG58: Pago de Hipoteca200.85 | BH58: 9.45 | BJ58: Pago de Hipoteca200.85 | BK58: 8.5
L59: Gastos-Subcueta | M59: =IF(H21="-",0,-D33) -> 0 | T59: Monthly Fee (sin Iva) | U59: 0 | V59: 0 | W59: 0 | X59: 0 | Y59: 348 | Z59: 348 | AA59: 348 | AB59: 348 | AC59: 348 | AD59: 348 | AE59: 348 | AF59: 348 | AG59: 348 | AH59: 348 | AI59: 348 | AJ59: 348 | AK59: 0 | AL59: 0 | AM59: 0 | AN59: 0 | AO59: 348 | AP59: 348 | AQ59: 348 | AR59: 348 | BB59: 0 | BC59: 0 | BD59: 0 | BE59: 0 | BG59: LiquidezPremier50.7 | BH59: 21.99 | BJ59: LiquidezPremier50.7 | BK59: 21.99
L60: Enganche base | M60: =IF(D21=V78,"",IF(D21=V79,"",IF(D21=V80,"",IF(J4="",IF(OR(D22&D21=O8&N4,D22&D21=O8&N7),D26-D32-M58,IF(OR(D22&D21=O7&N4,D22&D21=O7&N7),D26-M58,IF(OR(D22&D21=O6&N4,D22&D21=O6&N7,D22&D21=O6&N9),D26-D32-M58,D26-M58))),"-")))) ->  | O60: =N4&O5 -> AdquisicionApoyo Infonavit | T60: Pago Por mil | U60: 20.26 | V60: 12.16 | W60: 9.7 | X60: 8.5 | Y60: 20.41 | Z60: 20.65 | AA60: 20.84 | AB60: 12.32 | AC60: 12.59 | AD60: 12.81 | AE60: 9.88 | AF60: 10.17 | AG60: 10.41 | AH60: 8.69 | AI60: 9.01 | AJ60: 9.27 | AK60: 20.5 | AL60: 12.43 | AM60: 10 | AN60: 8.82 | AO60: 20.26 | AP60: 12.16 | AQ60: 9.7 | AR60: 8.5 | BB60: 20.36 | BC60: 12.27 | BD60: 9.82 | BE60: 8.63 | BG60: LiquidezPremier100.7 | BH60: 14.2 | BJ60: LiquidezPremier100.7 | BK60: 14.2
L61: Ajuste por SSV | M61: =IFERROR(M59+IF(M60="-",0,M60)-IF(D25=M6,0,0),2) -> 2 | O61: =N7&O5 -> ExclusivaApoyo Infonavit | T61: Factor de Línea | U61: 20.89 | V61: 12.79 | W61: 10.33 | X61: 9.13 | Y61: 21.38 | Z61: 21.62 | AA61: 21.81 | AB61: 13.29 | AC61: 13.56 | AD61: 13.78 | AE61: 10.85 | AF61: 11.14 | AG61: 11.38 | AH61: 9.66 | AI61: 9.98 | AJ61: 10.24 | AK61: 21.13 | AL61: 13.06 | AM61: 10.63 | AN61: 9.45 | AO61: 21.23 | AP61: 13.13 | AQ61: 10.67 | AR61: 9.47 | BB61: 20.99 | BC61: 12.9 | BD61: 10.45 | BE61: 9.26 | BG61: LiquidezPremier150.7 | BH61: 12 | BJ61: LiquidezPremier150.7 | BK61: 12
L62: Monto Max | M62: =IF(AND(D22=O6,D32>1),95%,IF(AND(D22=O8,D32>1),95%,IF(D22=O5,95%,IF(AND(D22=O7,D24="NO"),85%,90%)))) -> 0.9 | O62: =N9&O5 -> Nomina EspecialApoyo Infonavit | T62: CaT | U62: 0.111833189 | V62: 0.1120510149 | W62: 0.1131486799 | X62: 0.112023581 | Y62: 0.13161243 | Z62: 0.1327715094 | AA62: 0.1364203222 | AB62: 0.1277860711 | AC62: 0.1296469182 | AD62: 0.1334468823 | AE62: 0.127005065 | AF62: 0.1292907052 | AG62: 0.1331708227 | AH62: 0.1247228451 | AI62: 0.1273317149 | AJ62: 0.1312750085 | AK62: 0.122095737 | AL62: 0.1201081174 | AM62: 0.120510789 | AN62: 0.119038217 | AO62: 0.1168353355 | AP62: 0.1177754346 | AQ62: 0.1175840944 | AR62: 0.1161185891 | BB62: 0.1140065629 | BC62: 0.114209602 | BD62: 0.1153067081 | BE62: 0.1141855964 | BG62: LiquidezNo Premier50.5 | BH62: 22.24 | BJ62: LiquidezNo Premier50.5 | BK62: 22.24
L63: Cofi | M63: =IF(AND(D22="Cofinavit",D32>1),1-(D26-D32)/D26,IF(D22="Apoyo Infonavit",1-(D26-D32)/D26,0)) -> 0 | BG63: LiquidezNo Premier50.7 | BH63: 22.75 | BJ63: LiquidezNo Premier50.7 | BK63: 22.75
L64: Final | M64: =IFERROR(MIN(D26*(M62-M63),IF(D25=M6,MIN(P76+M61,M58),IF(P75<100000,"-",MIN(P75+M61,M58)))),0) -> 0 | BG64: LiquidezNo Premier100.5 | BH64: 14.49 | BJ64: LiquidezNo Premier100.5 | BK64: 14.49
L65: Factores y Estimación de Línea | BG65: LiquidezNo Premier100.7 | BH65: 15.08 | BJ65: LiquidezNo Premier100.7 | BK65: 15.08
BG66: LiquidezNo Premier150.5 | BH66: 12.33 | BJ66: LiquidezNo Premier150.5 | BK66: 12.33
L67: Factor DTI | M67: 0.65 | BG67: LiquidezNo Premier150.7 | BH67: 12.98 | BJ67: LiquidezNo Premier150.7 | BK67: 12.98
F68: =IF(AND(D19="Asalariado",H25>10000000),90%,0) -> 0 | L68: Factor No Asalariado | M68: 1
M69: =MIN(((IF(D17="SI",D31,0)+D29)*M67),(((IF(D17="SI",D28,0)+D29)*M67)-D30))*M68 -> 0 | Q69: Costo Avaluos | T69: Gastos Notariales | V69: Tipo de Financiamiento | W69: Monto Maximo | X69: Validación | Y69: Cumple
Q70: De | R70: Costo | T70: 0.02 | V70: Tradicional | W70: =D27 -> 0 | X70: HSBC + Inf < 95% | Y70: =IF(D21&D16&D23&L5=M168,(D26*0.95),IF(D21&D16&D23&D24=M170,(D26*0.85),IF(D21&D16&D23&D24=N170,(D26*0.9),IF(D21&D16&D23&D24=N171,(D26*0.9),IF(D21&D16&D23&D24=M171,(D26*O50),(D26*1)-D32))))) -> 0
L71: Factor Comisión Mensual | M71: =IF(D21=N6,0.348,IF(D21&D16=L6,0.29,0)) -> 0 | Q71: 0 | R71: 2146 | T71: 0.03 | V71: Apoyo Infonavit | W71: =Y72 -> 0 | X71: 100% GyH | Y71: =IF(SUM(Y70,D32)<SUM(D26,G18,G21*D26),SUM(D26,G18,G21*D26)-SUM(D32,D33),Y70) -> 2146
L72: Factor Vida | M72: =L86 -> 0.42 | Q72: 500001 | R72: 3422 | T72: 0.04 | V72: Cofinavit | W72: =Y72 -> 0 | Y72: =MIN(Y71,Y70) -> 0
L73: Factor Daños | M73: =VLOOKUP(D18,$Q$3:$R$39,2,0)*0.8 -> 0.3248 | Q73: 1000001 | R73: 5916 | T73: 0.05 | V73: CI+CB | W73: =IF(D25="Valor de la Vivienda",D26-D33,MIN(D26-D33,D29)) -> 0 | AB73: Apoyo Infonavit0.097
L74: Tasa para cálculo ingreso | M74: =IF(D22="CI+CB",(IF(OR(D25=M4,D21=N8),G26,VLOOKUP(D16&D21&D28,M102:N155,2,0))*0.7)+(10.45%*0.3),IF(OR(D25=M4,D21=N8),G26,VLOOKUP(D16&D21&D28,M102:N155,2,0))) -> 0 | Q74: 2000001 | R74: 9222 | T74: 0.06 | V74: Respalda2 | W74: =IF(D25="Valor de la Vivienda",D26-D33,MIN(D26-D33,D29)) -> 0 | AB74: =D22&D23 -> Tradicional0.089
L75: Ajuste corrección | M75: 0 | O75: Monto de Máximo | P75: =IFERROR(VLOOKUP(D21,V77:X82,IF(OR(D25=M4,D25=M6),2,3),0),0) -> 0 | Q75: 3000001 | R75: 12470 | T75: 0.07
L76: Factor de Línea/Tasa | M76: =IF(Amortización!E14="Pago Fijo",ROUND(PMT(M74/12,D28*12,-1000),2),VLOOKUP(D16&D21&D28,M102:O131,3,0))+M72+M73+M71+M75 ->  | O76: Valor de Vivienda | P76: =IF(OR(D21=V81,D21=V77),MIN(IF(D22=V74,W74,IF(D22=V72,W72,IF(D22=V73,W73,VLOOKUP(D21,V77:Y82,4,0)*D26))),Y81*D26,30000000),MIN(VLOOKUP(D21,V77:Y82,4,0)*D26,30000000))-IF(AND(D25=X45,D21=V77),D27,0) -> 0 | Q76: 4000001 | R76: 15370 | T76: 0.08 | V76: Producto | W76: Monto Max por Monto | X76: Monto Max por Ingreso | Y76: Max Financiamiento | Z76: Min Financiamiento
Q77: 5000001 | R77: 19952 | T77: 0.09 | V77: Adquisicion | W77: =MIN(VLOOKUP(D22,$V$70:$W$74,2,0),IF(D25=M4,D27,50000000),D26*Y77,50000000) -> 0 | X77: =MIN($G$29,IF($D$21=$V$77,IF(OR($D$22=$V$70,$D$22=$V$72,$D$22=$V$71),$D$26*Y77,IF($D$22=$V$74,MIN($D$26-D33,$D$26*Y77),IF($D$32+$D$33>0.1*$D$26,$D$26-$D$32,IF($D$32<0.05*$D$26,$G$29,$D$26*0.95-$D$32)))),$D$26*Y77)) -> 0 | Y77: =IF(AND(D16="Premier",D24="SI"),AC77,IF(AND(D16="Premier",D22="Apoyo Infonavit"),AD77,IF(AND(D16="Premier",D22="Alia2"),AD77,IF(AND(D23=L170,D22="Apoyo Infonavit",D24="SI"),AC77,IF(AND(D23=L171,D22="Apoyo Infonavit",D24="SI"),AC77,IF(AND(D22="Alia2",D23=L171),AC78,IF(D22="CI+CB",AD78,AB77))))))) -> 0.9 | Z77: 350000 | AB77: =IF(D16=L40,90%,IF(AND(D22="Cofinavit",D23=L168),95%,IF(D22="Apoyo Infonavit",95%,IF(AND(D23=L170,D22="Apoyo Infonavit"),95%,IF(AND(D23=L170,D22="Tradicional"),85%,IF(D23=L168,90%,IF(D23&D35=L183,80%,IF(D23&D35=L184,75%,90%))))+IF(D16=L40,0%,IF(D24=L4,15%))+IF(D22&D24=O6&L4,0.05,0)+IF(D22&O50=O6&0.9,0.05,+IF(D22&D24=O5&L4,0.05,0)+IF(D22&O50=O5&0.9,0.05,0))))))+IF(AB74=AB73,0.05,0) -> 0.9 | AC77: 0.9 | AD77: 0.95
Q78: 7000001 | R78: 23200 | T78: 0.1 | V78: Pago de Hipoteca | W78: =IF(D25="Por Valor de la Vivienda",MIN(D26*Y78,50000000),MIN(D26*Y78,D27,50000000)) -> 0 | X78: =MIN(D26*Y78,G29) -> 0 | Y78: =IF(D24="SI",AR42+0.1,AR42) -> 0.85 | Z78: 350000 | AC78: =IF(D16=L40,90%,IF(AND(D22="Alia2",D23=L170,D24="SI"),90%,IF(AND(D23=L168,D22="Apoyo Infonavit"),95%,IF(AND(D23=L170,D22="Alia2"),85%,IF(AND(D23=L170,D22="Tradicional"),85%,IF(D23=L168,90%,IF(D23&D35=L183,75%,IF(D23&D35=L184,75%,90%))))+IF(D16=L40,0%,IF(D24=L4,15%))+IF(D22&D24=O6&L4,0.05,0)+IF(D22&O50=O6&0.9,0.05,+IF(D22&D24=O5&L4,0.05,0)+IF(D22&O50=O5&0.9,0.05,0)))))) -> 0.9 | AD78: =IF(D24="SI",90%,85%) -> 0.85
M79: =ROUND(M69/(ROUND(PMT(M74/12,D28*12,-1000),2)+M71+M72+M73)*1000,0) ->  | Q79: 10000001 | R79: 24360 | T79: 0.11 | V79: Liquidez | W79: =MIN($D$26*Y79,$D$27,70000000) -> 0 | X79: =MIN(D26*Y79,G29,5000000) -> 0 | Y79: =BA42 -> 0.7 | Z79: 500000
T80: 0.12 | V80: =N8 -> Pago Hipoteca+Liquidez | W80: =MIN($D$26*Y80,$D$27,50000000) -> 0 | X80: =MIN(D26*Y80,G29) -> 0 | Y80: =AR42 -> 0.85 | Z80: 350000
L81: CréditoLTV | M81: =IF(D25=M4,D27,M82) -> 0 | V81: Exclusiva | W81: =MIN(VLOOKUP(D22,$V$70:$W$74,2,0),IF(D25=M4,D27,50000000),D26*Y81,50000000) -> 0 | X81: =MIN($G$29,IF($D$21=$V$81,IF(OR($D$22=$V$70,$D$22=$V$71),$D$26*$Y$81,IF($D$22=$V$74,MIN($D$26-#REF!,$D$26*$Y$81),IF($D$32+$D$33>0.1*$D$26,$D$26-$D$32-$D$33,IF($D$32<0.05*$D$26,$G$29,$D$26*0.95-$D$32)))),$D$26*Y77)) -> 0 | Y81: =IF(D21=N4,95%,IF(D22=O6,95%,IF(AND(D22=O5,D24="SI"),90%,IF(D22=O5,95%,IF(D22=O8,95%,IF(D22=O7,85%+AB81,AK42)))))) -> 0.95 | Z81: 350000 | AB81: =IF(D24="SI",5%,0) -> 0
L82: Credito solicitado | M82: =IF($D$25=$M$6,MIN(($D$26*$O$82)-$D$34,$P$76),"") ->  | O82: =IF(D21=V79,Y79,IF(D21=V78,Y78,IF(D21=V80,Y80,90%))) -> 0.9 | V82: Nomina Especial | W82: =MIN(VLOOKUP(D22,$V$70:$W$74,2,0),IF(D25=M4,D27,50000000),D26*Y82,50000000) -> 0 | X82: =MIN($G$29,IF($D$21=$V$82,IF(OR($D$22=$V$70,$D$22=$V$71),$D$26*$Y$82,IF($D$22=$V$74,MIN($D$26-#REF!,$D$26*$Y$82),IF($D$32+$D$33>0.1*$D$26,$D$26-$D$32-$D$33,IF($D$32<0.05*$D$26,$G$29,$D$26*0.95-$D$32)))),$D$26*Y77)) -> 0 | Y82: =IF(D22=O5,95%,90%) -> 0.9 | Z82: 350000
M83: =MIN(M82,M84,M81) -> 0 | N83: =IFERROR(M83*G19,0) -> 0 | V83: Plazos | W83: Ingresos Mínimos
M84: =MIN($D$26-$D$32-$D$33-D34,$D$26*1-$D$32) -> 0 | V84: =$D$28 -> 0 | W84: =IF($D$22="CI+CB",(Amortización!$K$21+Amortización!$AV$12)/100%/65%,IF(Amortización!$F$16="NO",Amortización!$K$21/100%/65%,Amortización!$K$24/100%/65%)) -> 0 | Y84: =IF(H25>10000000,"SI","NO") -> NO
L85: Factores Seguros | V85: =$D$28 -> 0 | W85: =IF($D$22="CI+CB",(Amortización!$K$21+Amortización!$AV$12)/100%/65%,IF(Amortización!$F$16="NO",Amortización!$K$21/100%/65%,Amortización!$K$24/100%/65%)) -> 0
K86: Vida | L86: =IF(Amortización!E11="Pago de Hipoteca",0.42,0.42) -> 0.42 | V86: =$D$28 -> 0 | W86: =IF($D$22="CI+CB",(Amortización!$K$21+Amortización!$AV$12)/100%/65%,IF(Amortización!$F$16="NO",Amortización!$K$21/100%/65%,Amortización!$K$24/100%/65%)) -> 0
K87: Daños | L87: 0.406 | V87: =$D$28 -> 0 | W87: =IF($D$22="CI+CB",(Amortización!$K$21+Amortización!$AV$12)/100%/65%,IF(Amortización!$F$16="NO",Amortización!$K$21/100%/65%,Amortización!$K$24/100%/65%)) -> 0
K89: Pago Fijo | M89: Pago Fijo
K90: Pago Bajo
R91: =IF(D22=O6,"Cofi",IF(D22=O8,"Cofi","")) ->  | V91: DTI | W91: 0.65
L93: =MIN(D26*0.9,D26-D34) -> 0
T94: =IF(OR(D22=O6,D22=O8),(H25+D32)/D26,G25) -> 0 | V94: =V77&L190 -> AdquisicionAlto Valor | W94: =IF(H25>10000000,"SI","NO") -> NO | X94: =IF(W94="SI","10%",0) -> 0
T95: =IF(AND(R91="Cofi",T94<=0.8, G25<=70%),0.7,MAX(T94,G25)) -> 0 | V95: =V77&L191 -> AdquisicionNormal | X95: 0.1
T96: =IF(D22<>O4,"",G25) -> 0 | V96: =V77&L192 -> Adquisicion | X96: 0.15
V97: =V77&L193 -> Adquisicion | X97: 0.4
V98: =$V$81&L190 -> ExclusivaAlto Valor | X98: 0.1
V99: =$V$81&L191 -> ExclusivaNormal | X99: 0.1
V100: =$V$81&L192 -> Exclusiva | X100: 0.15
L101: Premier | V101: =$V$81&L193 -> Exclusiva | X101: 0.4
K102: 5 | L102: 0.092 | M102: PremierAdquisicion5 | N102: 0.084 | O102: 19.99 | R102: ="PremierAdquisicion5"&IF(D24="SI","0.9","0.85") -> PremierAdquisicion50.85 | S102: =8.4%-T102-U102-V102-W102 -> 0.084 | T102: =IF(D19=L190,0%,IF($T$96<=0.85,0%,0)) -> 0 | U102: =IF(D19=L190,0%,IF(AND($D$22<>$O$4,$T$95<=0.95),0.35%,0)) -> 0 | V102: =IF($D$19=$L$190,0.95%,0) -> 0 | W102: =IF($D$22="CI+CB",-0.0035,0) -> 0
K103: 10 | L103: 0.0945 | M103: PremierAdquisicion10 | N103: 0.0865 | O103: 11.84 | R103: ="PremierAdquisicion10"&IF(D24="SI","0.9","0.85") -> PremierAdquisicion100.85 | S103: =8.65%-T103-U103-V103-W103 -> 0.0865 | T103: =IF(D19=L190,0%,IF($T$96<=0.85,0%,0)) -> 0 | U103: =IF(D19=L190,0%,IF(AND($D$22<>$O$4,$T$95<=0.95),0.35%,0)) -> 0 | V103: =IF($D$19=$L$190,0.95%,0) -> 0 | W103: =IF($D$22="CI+CB",-0.0035,0) -> 0
K104: 15 | L104: 0.097 | M104: PremierAdquisicion15 | N104: 0.089 | O104: 9.34 | R104: ="PremierAdquisicion15"&IF(D24="SI","0.9","0.85") -> PremierAdquisicion150.85 | S104: =8.9%-T104-U104-V104-W104 -> 0.089 | T104: =IF(D19=L190,0%,IF($T$96<=0.85,0%,0)) -> 0 | U104: =IF(D19=L190,0%,IF(AND($D$22<>$O$4,$T$95<=0.95),0.35%,0)) -> 0 | V104: =IF($D$19=$L$190,0.95%,0) -> 0 | W104: =IF($D$22="CI+CB",-0.0035,0) -> 0
K105: 20 | L105: 0.097 | M105: PremierAdquisicion20 | N105: 0.089 | O105: 8.11 | R105: ="PremierAdquisicion20"&IF(D24="SI","0.9","0.85") -> PremierAdquisicion200.85 | S105: =8.9%-T105-U105-V105-W105 -> 0.089 | T105: =IF(D19=L190,0%,IF($T$96<=0.85,0%,0)) -> 0 | U105: =IF(D19=L190,0%,IF(AND($D$22<>$O$4,$T$95<=0.95),0.35%,0)) -> 0 | V105: =IF($D$19=$L$190,0.95%,0) -> 0 | W105: =IF($D$22="CI+CB",-0.0035,0) -> 0
M106: No PremierAdquisicion5 | N106: 0.084 | O106: 20.15 | R106: No PremierAdquisicion50.9 | S106: 0.084
L107: No premier | M107: No PremierAdquisicion10 | N107: 0.0865 | O107: 12.02 | R107: No PremierAdquisicion50.94 | S107: 0.086
M108: No PremierAdquisicion15 | N108: 0.089 | O108: 9.54 | R108: No PremierAdquisicion50.85 | S108: 0.088
K109: 5 | L109: 0.104 | M109: No PremierAdquisicion20 | N109: 0.089 | O109: 8.33 | R109: No PremierAdquisicion50.75 | S109: 0.0915
K110: 10 | L110: 0.1065 | M110: No PremierExclusiva5 | N110: 0.0825 | O110: 20.03 | R110: No PremierAdquisicion100.9 | S110: 0.0865
K111: 15 | L111: 0.109 | M111: No PremierExclusiva10 | N111: 0.085 | O111: 11.89 | R111: No PremierAdquisicion100.94 | S111: 0.0885
K112: 20 | L112: 0.109 | M112: No PremierExclusiva15 | N112: 0.0875 | O112: 9.4 | R112: No PremierAdquisicion100.85 | S112: 0.0905
M113: No PremierExclusiva20 | N113: 0.0875 | O113: 8.18 | R113: No PremierAdquisicion100.75 | S113: 0.094
L114: Exclusiva | M114: No PremierPago de Hipoteca5 | N114: 0.0805 | O114: 20.06 | R114: No PremierAdquisicion150.9 | S114: 0.089
K115: 5 | L115: 0.097 | M115: No PremierPago de Hipoteca10 | N115: 0.083 | O115: 11.92 | R115: No PremierAdquisicion150.94 | S115: 0.091
K116: 10 | L116: 0.0995 | M116: No PremierPago de Hipoteca15 | N116: 0.0855 | O116: 9.43 | R116: No PremierAdquisicion150.85 | S116: 0.093
K117: 15 | L117: 0.102 | M117: No PremierPago de Hipoteca20 | N117: 0.0855 | O117: 8.21 | R117: No PremierAdquisicion150.75 | S117: 0.0965
K118: 20 | L118: 0.102 | M118: No PremierLiquidez5 | N118: 0.115 | R118: No PremierExclusiva50.9 | S118: =S119-0.25% -> 0.0849
L119: Pago Hipoteca | M119: No PremierLiquidez10 | N119: 0.1175 | R119: No PremierExclusiva100.9 | S119: =S120-0.25% -> 0.0874
K120: 5 | L120: 0.092 | M120: No PremierLiquidez15 | N120: 0.12 | R120: No PremierExclusiva150.9 | S120: =S121 -> 0.0899
K121: 10 | L121: 0.0945 | M121: PremierLiquidez5 | N121: 0.105 | R121: No PremierExclusiva200.9 | S121: 0.0899
K122: 15 | L122: 0.097 | M122: PremierLiquidez10 | N122: 0.1075 | R122: No PremierPago de Hipoteca50.85 | S122: 0.0805
K123: 20 | L123: 0.097 | M123: PremierLiquidez15 | N123: 0.11 | R123: No PremierPago de Hipoteca100.85 | S123: 0.083
M124: PremierPago de Hipoteca5 | N124: 0.0805 | O124: 19.89 | R124: No PremierPago de Hipoteca150.85 | S124: 0.0855
L125: LiquidezNo Premier | M125: PremierPago de Hipoteca10 | N125: 0.083 | O125: 11.74 | R125: No PremierPago de Hipoteca200.85 | S125: 0.0855
K126: 5 | L126: 0.115 | M126: PremierPago de Hipoteca15 | N126: 0.0855 | O126: 9.23 | R126: PremierLiquidez50.7 | S126: =10.5%-V126 -> 0.105 | V126: =IF($D$19=$L$190,0.4%,0) -> 0
K127: 10 | L127: 0.1175 | M127: PremierPago de Hipoteca20 | N127: 0.0855 | O127: 7.99 | R127: PremierLiquidez100.7 | S127: =10.75%-V127 -> 0.1075 | V127: =IF($D$19=$L$190,0.4%,0) -> 0
K128: 15 | L128: 0.12 | M128: PremierExclusiva5 | N128: 0.0825 | O128: 19.99 | R128: PremierLiquidez150.7 | S128: =11%-V128 -> 0.11 | V128: =IF($D$19=$L$190,0.4%,0) -> 0
M129: PremierExclusiva10 | N129: 0.085 | O129: 11.84 | R129: No PremierLiquidez50.5 | S129: 0.111
L130: liquidez Premier | M130: PremierExclusiva15 | N130: 0.0875 | O130: 9.34 | R130: No PremierLiquidez50.7 | S130: 0.115
K131: 5 | L131: 0.13 | M131: PremierExclusiva20 | N131: 0.0875 | O131: 8.11 | R131: No PremierLiquidez100.5 | S131: 0.1135
K132: 10 | L132: 0.1325 | M132: PremierPago de Hipoteca6 | N132: 0.0805 | R132: No PremierLiquidez100.7 | S132: 0.1175
K133: 15 | L133: 0.135 | M133: PremierPago de Hipoteca7 | N133: 0.0805 | R133: No PremierLiquidez150.5 | S133: 0.116
K134: 5 | M134: PremierPago de Hipoteca8 | N134: 0.0805 | R134: No PremierLiquidez150.7 | S134: 0.12
K135: 6 | M135: PremierPago de Hipoteca9 | N135: 0.0805 | R135: PremierPago de Hipoteca50.85 | S135: =8.05%-V135 -> 0.0805 | V135: =IF($D$19=$L$190,0.6%,0) -> 0
K136: 7 | M136: PremierPago de Hipoteca11 | N136: 0.083 | R136: PremierPago de Hipoteca100.85 | S136: =8.3%-V136 -> 0.083 | V136: =IF($D$19=$L$190,0.6%,0) -> 0
K137: 8 | M137: PremierPago de Hipoteca12 | N137: 0.083 | R137: PremierPago de Hipoteca150.85 | S137: =8.55%-V137 -> 0.0855 | V137: =IF($D$19=$L$190,0.6%,0) -> 0
K138: 9 | M138: PremierPago de Hipoteca13 | N138: 0.083 | R138: PremierPago de Hipoteca200.85 | S138: =8.55%-V138 -> 0.0855 | V138: =IF($D$19=$L$190,0.6%,0) -> 0
K139: 10 | M139: PremierPago de Hipoteca14 | N139: 0.083 | R139: PremierExclusiva50.9 | S139: =S140-0.25% -> 0.0849
K140: 11 | M140: PremierPago de Hipoteca16 | N140: 0.0855 | R140: PremierExclusiva100.9 | S140: =S141-0.25% -> 0.0874
K141: 12 | M141: PremierPago de Hipoteca17 | N141: 0.0855 | R141: PremierExclusiva150.9 | S141: =S142 -> 0.0899
K142: 13 | M142: PremierPago de Hipoteca18 | N142: 0.0855 | R142: PremierExclusiva200.9 | S142: 0.0899
K143: 14 | M143: PremierPago de Hipoteca19 | N143: 0.0855 | R143: No PremierAdquisicion200.9 | S143: 0.089
K144: 15 | M144: No PremierPago de Hipoteca6 | N144: 0.0805 | R144: No PremierAdquisicion200.94 | S144: 0.091
K145: 16 | M145: No PremierPago de Hipoteca7 | N145: 0.0805 | R145: No PremierAdquisicion200.85 | S145: 0.093
K146: 17 | M146: No PremierPago de Hipoteca8 | N146: 0.0805 | R146: No PremierAdquisicion200.75 | S146: 0.0965
K147: 18 | M147: No PremierPago de Hipoteca9 | N147: 0.0805 | R147: PremierLiquidez50.5 | S147: =S148-0.25% -> 0.098
K148: 19 | M148: No PremierPago de Hipoteca11 | N148: 0.083 | R148: PremierLiquidez100.5 | S148: =S149-0.25% -> 0.1005
K149: 20 | M149: No PremierPago de Hipoteca12 | N149: 0.083 | R149: PremierLiquidez150.5 | S149: 0.103
M150: No PremierPago de Hipoteca13 | N150: 0.083 | R150: No PremierPago de Hipoteca60.85 | S150: 0.0805
M151: No PremierPago de Hipoteca14 | N151: 0.083 | R151: No PremierPago de Hipoteca70.85 | S151: 0.0805
M152: No PremierPago de Hipoteca16 | N152: 0.0855 | R152: No PremierPago de Hipoteca80.85 | S152: 0.0805
L153: Crédito Infonavit | M153: No PremierPago de Hipoteca17 | N153: 0.0855 | R153: No PremierPago de Hipoteca90.85 | S153: 0.0805
L154: Crédito FOVISSSTE incluyendo SSV | M154: No PremierPago de Hipoteca18 | N154: 0.0855 | R154: No PremierPago de Hipoteca110.85 | S154: 0.083
L155: Saldo Subcuenta de Vivienda | M155: No PremierPago de Hipoteca19 | N155: 0.0855 | R155: No PremierPago de Hipoteca120.85 | S155: 0.083
R156: No PremierPago de Hipoteca130.85 | S156: 0.083
R157: No PremierPago de Hipoteca140.85 | S157: 0.083
L158: Ingreso mensual neto* | R158: No PremierPago de Hipoteca160.85 | S158: 0.0855
L159: Pago mensual en Buro(Obligaciones) | R159: No PremierPago de Hipoteca170.85 | S159: 0.0855
R160: No PremierPago de Hipoteca180.85 | S160: 0.0855
L161: Tipo de Programa | R161: No PremierPago de Hipoteca190.85 | S161: 0.0855
R162: PremierPago de Hipoteca60.85 | S162: =8.05%-V162 -> 0.0805 | V162: =IF($D$19=$L$190,0.6%,0) -> 0
L163: Monto del Crédito | R163: PremierPago de Hipoteca70.85 | S163: =8.05%-V163 -> 0.0805 | V163: =IF($D$19=$L$190,0.6%,0) -> 0
L164: Monto Hipoteca Actual | R164: PremierPago de Hipoteca80.85 | S164: =8.05%-V164 -> 0.0805 | V164: =IF($D$19=$L$190,0.6%,0) -> 0
L165: Enganche Adicional | R165: PremierPago de Hipoteca90.85 | S165: =8.05%-V165 -> 0.0805 | V165: =IF($D$19=$L$190,0.6%,0) -> 0
L166: Elige una tasa de interés | R166: PremierPago de Hipoteca110.85 | S166: =8.3%-V166 -> 0.083 | V166: =IF($D$19=$L$190,0.6%,0) -> 0
L167: ¿La hipoteca proviene de un Cofinavit, Apoyo, Aliados o Respaldados? | R167: PremierPago de Hipoteca120.85 | S167: =8.3%-V167 -> 0.083 | V167: 0
J168: 1 | L168: =IF($D$28=$P$4,8.4%,IF($D$28=$P$5,8.65%,8.9%)) -> 0.089 | M168: =N4&L41&L168&L5 -> AdquisicionNo Premier0.089NO | R168: PremierPago de Hipoteca130.85 | S168: =8.3%-V168 -> 0.083 | V168: 0
J169: 2 | L169: =IF($D$28=$P$4,8.6%,IF($D$28=$P$5,8.85%,9.1%)) -> 0.091 | R169: PremierPago de Hipoteca140.85 | S169: =8.3%-V169 -> 0.083 | V169: 0
J170: 3 | L170: =IF($D$28=$P$4,8.8%,IF($D$28=$P$5,9.05%,9.3%)) -> 0.093 | M170: =N4&L41&L170&L5 -> AdquisicionNo Premier0.093NO | N170: =N4&L41&L170&L4 -> AdquisicionNo Premier0.093SI | R170: PremierPago de Hipoteca160.85 | S170: =8.55%-V170 -> 0.0855 | V170: 0
J171: 4 | L171: =IF($D$28=$P$4,9.15%,IF($D$28=$P$5,9.4%,9.65%)) -> 0.0965 | M171: =N4&L41&L171&L5 -> AdquisicionNo Premier0.0965NO | N171: =N4&L41&L171&L4 -> AdquisicionNo Premier0.0965SI | R171: PremierPago de Hipoteca170.85 | S171: =8.55%-V171 -> 0.0855 | V171: 0
L172: ¿Se requiere financiamiento máximo? | R172: PremierPago de Hipoteca180.85 | S172: =8.55%-V172 -> 0.0855 | V172: 0
L173: Elige una Tasa | N173: =D27/D26 ->  | R173: PremierPago de Hipoteca190.85 | S173: =8.55%-V173 -> 0.0855 | V173: 0
R174: PremierNomina Especial50.9 | S174: 0.084
R175: PremierNomina Especial100.9 | S175: 0.0865
R176: PremierNomina Especial150.9 | S176: 0.089
N177: =D21="" -> FALSE | O177: Introducir Producto | R177: PremierNomina Especial200.9 | S177: 0.089
N178: =D26=0 -> TRUE | O178: Introducir Valor de la Vivienda | R178: No PremierNomina Especial50.9 | S178: 0.084
L179: =IF(D22="CI+CB",0,IF(D21=N5,0,IF(D16=L40,0.7%,IF(D21=N7,0.7%,0.6%)))) -> 0.007 | N179: =D26<350000 -> TRUE | O179: El monto mínimo de la garantía son $350,000 | R179: No PremierNomina Especial100.9 | S179: 0.0865
N180: =AND(D25=M4,D27=0) -> TRUE | O180: Introducir el Monto del Crédito | R180: No PremierNomina Especial150.9 | S180: 0.089
L181: 3 | N181: =AND(D25=M5,D29<8500) -> FALSE | O181: Se necesita un ingreso mayor a $10,000 | R181: No PremierNomina Especial200.9 | S181: 0.089
L182: 4 | N182: =AND(D21=N6,D26<350000) -> FALSE | O182: El monto mínimo de la garantía son $350,000
L183: =L171&L181 -> 0.09653 | N183: =AND(D21<>N6,H25>10000000) -> FALSE | O183: El monto máximo de crédito son $10,000,000
L184: =L171&L182 -> 0.09654 | N184: =AND(D21=N6,H25>5000000) -> FALSE | O184: El monto máximo de crédito son $5,000,000
L185: Comportamiento Crediticio | N185: =AND(D21=N6,D27>5000000) -> FALSE | O185: El monto máximo de crédito son $5,000,000
N186: =AND(D21=N6,N173>70%) ->  | O186: Recuerda, el LTV máximo es de 70%
O187: Recuerda, el LTV máximo es de 90%
N188: =AND($D$21=$N$5,$G$25>85%,$D$24="NO") -> FALSE | O188: Recuerda, el LTV máximo es de 85%
L189: Pago Hipoteca+LiquidezAlto Valor | N189: =AND(D21=N6,G25>70%) -> FALSE | O189: Recuerda, el LTV máximo es de 70%
L190: =IF(D16="Premier","Alto Valor","") -> Alto Valor | N190: =AND(D21=N6,D28>15) -> FALSE | O190: Introducir un plazo válido
L191: Normal
N192: =AND(D21=N7,D22<>O6,D22<>O8,H25<200000) -> FALSE | O192: El monto de crédito debe ser mayor a $200,000
O193: Seleccone un Tipo de Financiamiento Válido
N194: =AND(D22=O6,H25<100000) -> FALSE | O194: El monto de crédito debe ser mayor a $100,000
N195: =AND(D22=O8,H25<100000) -> FALSE | O195: El monto de crédito debe ser mayor a $100,000
N196: =AND(OR(D25=M5,D25=M4,D25=M6),D21=N8,D31=0) -> FALSE | O196: Introducir Monto de Hipoteca Actual
N197: =AND(D21=N8,D25=M4,D31<200000) -> FALSE | O197: Monto de Hipoteca Actual Debe Ser Mayor a $200,000
N198: =AND(D25=M4,D21=N8,D27-D31<10000) -> FALSE | O198: Monto de crédito solicitado debe ser al menos $10,000 mayor a la hipoteca actual
N199: =AND($D$21=$N$8,$G$25>85%) -> FALSE | O199: Recuerda, el LTV máximo es de 85%
N200: =AND(D21<>N7,D22<>O6,D22<>O8,H25<200000) -> TRUE | O200: El monto de crédito debe ser mayor a $200,000
T258: Pago de Hipoteca
T259: Liquidez

Sheet Amortización
S1: SI | U1: =Resumen!D28 -> 0 | Y1: =IF(U1=5,60,IF(U1=10,120,IF(U1=15,180,IF(U1=20,240)))) -> FALSE | AB1: =S1&0 -> SI0
S2: NO | U2: =IF(E16=S1,3,0) -> 0 | AB2: =COUNT(F21:F263) -> 1
G3: CREDITO HIPOTECARIO | AS3: CREDITO CI +CB
C4: Tabla de amortización | G4: Mensualidad | U4: Pago FijoSI
F5: =IF(E7="Pago de Hipoteca",E7&Resumen!D28&Resumen!O50,IF(E7&E9="AdquisicionPremier",Amortización!E7&Amortización!E9&Resumen!D28&90%,IF(E7&E9="LiquidezPremier",E7&E9&Resumen!D28&70%,E7&E9&Resumen!D28&Resumen!O50))) -> AdquisicionPremier0.9 | G5: plazo | H5: =E8&E11 -> Adquisicion | L5: =TODAY() -> 2021-11-24
C7: Datos Generales | E7: =IF(E8&E9=Resumen!N7&Resumen!L40,Resumen!N4,Amortización!E8) -> Adquisicion | H7: =IF(E10="CI+CB", "Datos del crédito HSBC - CI+CB", "Datos del crédito") -> Datos del crédito | R7: Producto | AH7: =K11/12 -> 0 | AI7: Plazo | AS7: Datos del crédito INFONAVIT - CI+CB
C8: Producto | E8: =Resumen!D21 -> Adquisicion | H8: Monto de Vivienda | K8: =Resumen!D26 -> 0 | M8: =IF(E16="SI","Intereses Diferidos","") ->  | N8: =IF(E16="SI",MAX(0,(F24*3)-AD19),"") ->  | R8: Adquisicion | U8: Pago Fijo | Y8: AdquisicionNo Premier15Pago Fijo | AS8: Monto de Vivienda
C9: Tipo de cliente | E9: =Resumen!D16 -> Premier | H9: Crédito | K9: =IF(H5="Pago Hipoteca+LiquidezPago de Hipoteca",Resumen!D31,IF(H5="Pago Hipoteca+LiquidezLiquidez",Resumen!H25-Resumen!D31,IF(E10=Resumen!O7,Resumen!G32,Resumen!H25))) -> 0 | M9: =IF(M8="","","Los prepagos liquidan inicialmente los intereses diferidos") ->  | R9: Pago de Hipoteca | U9: Pago Bajo | Y9: AdquisicionNo Premier20Pago Fijo | AH9: =C8&C9&AI7&H10 -> ProductoTipo de clientePlazoTasa anual | AN9: Plazo&Tasa | AS9: Crédito | AV9: =IF(E10="CI+CB",Resumen!G33,0) -> 0
C10: =IF(OR(E8=R11,E8=R10),"Esquema","Tipo de financiamiento") -> Tipo de financiamiento | E10: =IF(OR(E8=R11,E8=R10),"Pago Fijo",Resumen!D22) -> Tradicional | H10: Tasa anual | K10: =Resumen!G26 -> 0 | R10: Liquidez | Y10: =K11/12 -> 0 | AH10: =E8&E9&AH7&K10 -> AdquisicionPremier00 | AN10: =AH7&K10 -> 00 | AS10: Tasa anual | AV10: 0.1045
C11: =IF(E8=R11,"Tabla a simular","") ->  | H11: Plazo en meses | K11: =Resumen!$D$28*12 -> 0 | R11: Pago Hipoteca+Liquidez | AS11: Plazo en meses | AV11: =Resumen!$D$28*12 -> 0
H12: Comisión por apertura: | K12: =Resumen!$H$19 -> 0 | R12: Exclusiva | AS12: Mensualidad | AV12: =MAX(BA21:BA260) -> 0
C13: Opciones de pago | H13: Avaluo | K13: =Resumen!G18 -> 2146 | R13: Apoyo Infonavit | S13: Apoyo InfonavitAdquisicion | Y13: Seguro de Daños | AB13: =VLOOKUP(Resumen!D18,Resumen!Q3:R39,2,0)/1000 -> 0.000406 | AS13: Comisión por administración | AV13: 0.01
C14: =IF(E8=R10,"",IF(E8=R11,"",IF(E8=R9,"Esquema","Esquema"))) -> Esquema | E14: Pago Fijo | H14: Plazo para liquidación | K14: =IF(K9="-","-",COUNT($D$20:$D$263)) -> 1 | R14: Infonavit | Y14: Comisión por administración | AB14: =IF(OR(E8&E9="AdquisicionPremier",Resumen!D21=Resumen!N8),"0",IF(E8="Exclusiva","0",IF(E8&E9="AdquisicionNo Premier",250,IF(OR(E8="Pago de Hipoteca",E8="nomina Especial"),"0",250)))) -> 0 | AS14: Plazo para liquidación | AV14: =IF(AV9="-","-",COUNT($D$20:$D$263)) -> 1
C15: Tipo prepago | E15: Plazo | H15: ="Factor "&IF(E10="Pago Fijo","Pago Fijo",E14) -> Factor Pago Fijo | K15: =IF(E14=U9,VLOOKUP(AN10,AN17:AO81,2,0),PMT($K$10/12,$K$11,-1000)) ->  | R15: Apoyo Infonavit | AS15: ="Factor "&IF(AP10="Pago Fijo","Pago Fijo",AP14) -> Factor | AV15: =PMT($AV$10/12,$AV$11,-1000) -> 
C16: =IF(C12="","",IF(E14=U9,"","Skip Payment")) ->  | E16: NO
C17: Ingreso mensual | E17: =IF(OR(Resumen!D21&Resumen!D22=Resumen!O60,Resumen!D21&Resumen!D22=Resumen!O61,Resumen!D21&Resumen!D22=Resumen!O62),Resumen!D29,0) -> 0 | H17: CAT* | K17: =IF(ISERROR(((1+IRR(S20:S263))^(12))-1),"-",(((1+IRR(S20:S263))^(12))-1)) -> - | AH17: AdquisicionPremier50.084 | AI17: 19.77 | AL17: 5 | AM17: 0.0805 | AN17: =AL17&AM17 -> 50.0805 | AO17: 19.61 | AS17: CAT* | AV17: =IF(ISERROR(((1+IRR(BH20:BH263))^(12))-1),"-",(((1+IRR(BH20:BH263))^(12))-1)) -> -
AH18: AdquisicionPremier50.084 | AI18: 19.77 | AL18: 10 | AM18: 0.083 | AN18: =AL18&AM18 -> 100.083 | AO18: 11.43
C19: Mes | D19: Saldo Inicial | E19: Pago a Capital | F19: Intereses | G19: Seguro de Vida | H19: Seguro de Daños | I19: Comisión por Administración | J19: =IF(OR(E11=Resumen!N6,E8=Resumen!N6),"Iva Intereses","") ->  | K19: Mensualidad Total | L19: Saldo Final | M19: Prepago | N19: Aportación Infonavit | O19: Tasa de Interes | R19: Flujo sin IVA | S19: Flujo CAT | U19: FACTOR | V19: IVA | AD19: =SUM(M21:M263) -> 0 | AE19: Intereses diferidos por pagar | AF19: Prepago a saldo | AH19: AdquisicionPremier50.084 | AI19: 19.77 | AL19: 15 | AM19: 0.0855 | AN19: 150.0855 | AO19: 8.89 | AS19: Mes | AT19: Saldo Inicial | AU19: Pago a Capital | AV19: Intereses | AW19: Seguro de Vida | AX19: Seguro de Daños | AY19: Comisión por Administración | AZ19: =IF(OR(AU11=Resumen!BD6,AU8=Resumen!BD6),"Iva Intereses","") ->  | BA19: Mensualidad Total | BB19: Saldo Final | BC19: Prepago | BE19: Tasa de Interes | BH19: Flujo sin IVA
C20: 0 | K20: =IF(D20="","",E20+F20+G20+H20+I20) ->  | L20: =K9 -> 0 | Q20: 0 | R20: =IF(ISNUMBER(K9),-K9,0)+IF(ISNUMBER(K12),K12,0)+IF(ISNUMBER(K13),K13/1.16,0)+IF(ISNUMBER(Resumen!G20),Resumen!G20/1.16) -> 1850 | S20: =IF(ISNUMBER(K9),-K9,0)+IF(ISNUMBER(K12),K12,0)+IF(ISNUMBER(K13),K13/1.16,0)+IF(ISNUMBER(Resumen!G20),Resumen!G20/1.16) -> 1850 | AD20: Prepago real | AE20: =IF(E16="no",0,K9*K10*3/12) -> 0 | AH20: AdquisicionPremier100.0865 | AI20: 11.61 | AL20: 20 | AM20: 0.0855 | AN20: 200.0855 | AO20: 7.63 | AS20: 0 | BA20: =IF(AT20="","",AU20+AV20+AW20+AX20+AY20) ->  | BB20: =BA9 -> 0 | BG20: 0 | BH20: =IF(ISNUMBER(AV9),-AV9,0)+IF(ISNUMBER(AV12),AV12,0)+IF(ISNUMBER(AV13),AV13/1.16,0)+IF(ISNUMBER(Resumen!AW20),Resumen!AW20/1.16) -> 0.008620689655
C21: 1 | D21: =IF(K9="-","",K9) -> 0 | E21: =IF($E$16=$S$1,0,IF(D21="","",IF($E$14="Pago Fijo",MIN(IF($E$15="Mensualidad",-PMT(O21/12,$K$11-C20,D21)-F21,-PMT(O21/12,$K$11,$K$9)-F21),D21),MIN(U21*$K$9*$K$15/1000-F21,D21)))) ->  | F21: =IF($E$16=$S$1,0,IF(D21="","",D21*(O21/12))) -> 0 | G21: =IF($E$16=$S$1,0,IF(D21="","",L20*Resumen!$L$86/1000)) -> 0 | H21: =IF($E$16=$S$1,0,IF(D21="","",IF($E$11="Liquidez","0",Y21))) -> 0 | I21: =IF($E$16=$S$1,0,IF(D21="","",Amortización!$AB$14)) -> 0 | J21: =IFERROR(IF(OR($E$11=Resumen!$N$6,$E$8=Resumen!$N$6),Amortización!F21*0.16,0),"") -> 0 | K21: =IFERROR(IF(D21="","",E21+F21+G21+H21+I21+V21+J21),0) -> 0 | L21: =IFERROR(IF(D21="","",IF((D21-E21-AF21-N21)<1,0,D21-E21-AF21-N21)),0) -> 0 | M21: =IF(OR(L20=0,L20=""),"",0) ->  | O21: =IF(D21="","",Resumen!$G$26) -> 0 | Q21: =IF(ISNUMBER(Q20),IF($K$11>=Q20+1,Q20+1,""),"") ->  | R21: =IF(D21="","",E21+F21+G21+H21/1.16+I21/1.16+N21) ->  | S21: =IF($E$16=$S$1,AF21,IF(ISNUMBER(Q21),IF($E$14="Pago Fijo",PMT(O21/12,$K$11,-$K$9),U21*$K$15*$K$9/1000)+G21+AF21+H21/1.16+$AB$14/1.16,0)) -> 0 | U21: 1 | V21: 0 | Y21: =IF((($K$8*0.8)*($AB$13))>L20*($AB$13),($K$8*0.8)*($AB$13),($AB$13)*L20) -> 0 | AB21: =K9*K10/12 -> 0 | AD21: =IF($AE$20=0,0,IF(M21>AE20,MAX(0,M21-AE20),M21)) -> 0 | AE21: =IFERROR(MAX(0,AE20-M21),0) -> 0 | AF21: =IF($E$16="no",M21,IF(AE21>0,0,AD21)) ->  | AH21: AdquisicionPremier100.0865 | AI21: 11.61 | AL21: 5 | AM21: 0.084 | AN21: 50.084 | AO21: 19.77 | AS21: 1 | AT21: =IF(AV9="-","",AV9) -> 0 | AU21: =IF($E$16=$S$1,0,IF(AT21="","",PMT($AV$10/12,$AV$11,-$AT$21)-AV21)) ->  | AV21: =IF($E$16=$S$1,0,IF(AT21="","",AT21*(BE21/12))) -> 0 | AW21: =IF($E$16=$S$1,0,IF(AT21="","",BB20*0/1000)) -> 0 | AX21: =IF($E$16=$S$1,0,IF(AT21="","",IF($E$11="Liquidez","0",0))) -> 0 | AY21: =IF($E$16=$S$1,0,IF(AT21="","",AT21*$AV$13/12)) -> 0 | AZ21: =IFERROR(IF(OR($E$11=Resumen!$N$6,$E$8=Resumen!$N$6),Amortización!AV21*0.16,0),"") -> 0 | BA21: =IFERROR(IF(AT21="","",AU21+AV21+AW21+AX21+AY21+AZ21),0) -> 0 | BB21: =IFERROR(IF(AT21="","",IF((AT21-AU21-BV21)<1,0,AT21-AU21-BV21)),0) -> 0 | BC21: =IF(OR(BB20=0,BB20=""),"",0) ->  | BE21: =IF(AT21="","",$AV$10) -> 0.1045 | BG21: =IF(ISNUMBER(BG20),IF($K$11>=BG20+1,BG20+1,""),"") ->  | BH21: =IF(AT21="","",AU21+AV21+AW21+AX21/1.16+AY21/1.16) -> 
C22: =IF(OR(L21="",L21=0),"",IF(C21+1>$K$11+$U$2,"",C21+1)) ->  | D22: =IF(IF(D21="","",D21-E21-N21-AF21)<0.01,"",IF(D21="","",L21)) ->  | E22: =IF($E$16=$S$1,0,IF(D22="","",IF($E$14="Pago Fijo",MIN(IF($E$15="Mensualidad",-PMT(O22/12,$K$11-C21,D22)-F22,-PMT(O22/12,$K$11,$K$9)-F22),D22),MIN(U22*$K$9*$K$15/1000-F22,D22)))) ->  | F22: =IF($E$16=$S$1,0,IF(D22="","",D22*(O22/12))) ->  | G22: =IF($E$16=$S$1,0,IF(D22="","",L21*Resumen!$L$86/1000)) ->  | H22: =IF($E$16=$S$1,0,IF(D22="","",IF($E$11="Liquidez","0",Y22))) ->  | I22: =IF($E$16=$S$1,0,IF(D22="","",Amortización!$AB$14)) ->  | J22: =IFERROR(IF(OR($E$11=Resumen!$N$6,$E$8=Resumen!$N$6),Amortización!F22*0.16,0),"") -> 0 | K22: =IFERROR(IF(D22="","",E22+F22+G22+H22+I22+V22+J22),0) -> 0 | L22: =IFERROR(IF(D22="","",IF((D22-E22-AF22-N22)<1,0,D22-E22-AF22-N22)),0) -> 0 | N22: =IF(OR(L21=0,L21=""),"",IF(E22>=D22,0,$E$17*10%)) ->  | O22: =IF(D22="","",O21) ->  | Q22: =C22 ->  | S22: =IF($E$16=$S$1,AF22,IF(ISNUMBER(Q22),IF($E$14="Pago Fijo",PMT(O22/12,$K$11,-$K$9),U22*$K$15*$K$9/1000)+G22+AF22+H22/1.16+$AB$14/1.16,0)) -> 0 | U22: 1 | V22: 0 | Y22: =IF((($K$8*0.8)*($AB$13))>L21*($AB$13),($K$8*0.8)*($AB$13),($AB$13)*L21) -> 0 | AD22: =IF($AE$20=0,0,IF(M22>AE21,MAX(0,M22-AE21),M22)) -> 0 | AE22: =IFERROR(MAX(0,AE21-M22),0) -> 0 | AF22: =IF($E$16="no",M22,IF(AE22>0,0,AD22)) ->  | AH22: AdquisicionPremier100.0865 | AI22: 11.61 | AL22: 10 | AM22: 0.0865 | AN22: 100.0865 | AO22: 11.61 | AS22: =IF(OR(BB21="",BB21=0),"",IF(AS21+1>$K$11+$U$2,"",AS21+1)) ->  | AT22: =IF(IF(AT21="","",AT21-AU21-BJ21-BV21)<0.01,"",IF(AT21="","",BB21)) ->  | AU22: =IF($E$16=$S$1,0,IF(AT22="","",PMT($AV$10/12,$AV$11,-$AT$21)-AV22)) ->  | AV22: =IF($E$16=$S$1,0,IF(AT22="","",AT22*(BE22/12))) ->  | AW22: =IF($E$16=$S$1,0,IF(AT22="","",BB21*0/1000)) ->  | AX22: =IF($E$16=$S$1,0,IF(AT22="","",IF($E$11="Liquidez","0",0))) ->  | AY22: =IF($E$16=$S$1,0,IF(AT22="","",AT22*$AV$13/12)) ->  | AZ22: =IFERROR(IF(OR($E$11=Resumen!$N$6,$E$8=Resumen!$N$6),Amortización!AV22*0.16,0),"") -> 0 | BA22: =IFERROR(IF(AT22="","",AU22+AV22+AW22+AX22+AY22+AZ22),0) -> 0 | BB22: 0 | BE22: =IF(AT22="","",BE21) ->  | BG22: =AS22 ->  | BH22: =IF(AT22="","",AU22+AV22+AW22+AX22/1.16+AY22/1.16) -> 
D23: =IF(IF(D22="","",D22-E22-N22-AF22)<0.01,"",IF(D22="","",L22)) ->  | E23: =IF($E$16=$S$1,0,IF(D23="","",IF($E$14="Pago Fijo",MIN(IF($E$15="Mensualidad",-PMT(O23/12,$K$11-C22,D23)-F23,-PMT(O23/12,$K$11,$K$9)-F23),D23),MIN(U23*$K$9*$K$15/1000-F23,D23)))) ->  | F23: =IF($E$16=$S$1,0,IF(D23="","",D23*(O23/12))) ->  | G23: =IF($E$16=$S$1,0,IF(D23="","",L22*Resumen!$L$86/1000)) ->  | I23: =IF($E$16=$S$1,0,IF(D23="","",Amortización!$AB$14)) ->  | J23: =IFERROR(IF(OR($E$11=Resumen!$N$6,$E$8=Resumen!$N$6),Amortización!F23*0.16,0),"") -> 0 | K23: 0 | L23: 0 | S23: =IF($E$16=$S$1,AF23,IF(ISNUMBER(Q23),IF($E$14="Pago Fijo",PMT(O23/12,$K$11,-$K$9),U23*$K$15*$K$9/1000)+G23+AF23+H23/1.16+$AB$14/1.16,0)) -> 0 | U23: 1 | V23: 0 | Y23: =IF((($K$8*0.8)*($AB$13))>L22*($AB$13),($K$8*0.8)*($AB$13),($AB$13)*L22) -> 0 | AB23: =PMT(O23/12,K11,-K9) ->  | AD23: =IF($AE$20=0,0,IF(M23>AE22,MAX(0,M23-AE22),M23)) -> 0 | AE23: 0 | AH23: AdquisicionPremier150.089 | AI23: 9.09 | AL23: 15 | AM23: 0.089 | AN23: 150.089 | AO23: 9.09 | AV23: =IF($E$16=$S$1,0,IF(AT23="","",AT23*(BE23/12))) ->  | AZ23: =IFERROR(IF(OR($E$11=Resumen!$N$6,$E$8=Resumen!$N$6),Amortización!AV23*0.16,0),"") -> 0 | BA23: 0 | BB23: 0
E24: =IFERROR(IF($E$14&$E$16=$U$4,PMT(O24/12,$K$11,-$K$9)-F24,IF(D24="","",IF($E$14="Pago Fijo",MIN(IF($E$15="Mensualidad",-PMT(O24/12,$K$11-C23,D24)-F24,-PMT(O24/12,$K$11,$K$9)-F24),D24),MIN(U24*$K$9*$K$15/1000-F24,D24)))),0) -> 0 | F24: =IF(D24="","",D24*(O24/12)) ->  | G24: =IF(D24="","",L23*Resumen!$L$86/1000) ->  | I24: =IF($E$16=$S$1,0,IF(D24="","",Amortización!$AB$14)) ->  | J24: =IFERROR(IF(OR($E$11=Resumen!$N$6,$E$8=Resumen!$N$6),Amortización!F24*0.16,0),"") -> 0 | K24: 0 | L24: =IFERROR(IF(D24="","",IF((D24-E24-AF24-N24)<1,0,D24-E24-AF24-N24)),0) -> 0 | N24: =IF(OR(L23=0,L23=""),"",IF(E24>=D24,0,$E$17*10%)) ->  | S24: =IF(ISNUMBER(Q24),IF($E$14="Pago Fijo",PMT(O24/12,$K$11,-$K$9),U24*$K$15*$K$9/1000)+G24+AF24+H24/1.16+$AB$14/1.16,0)+IF($E$16&L24=$AB$1,$N$8,0) -> 0 | U24: 1 | V24: 0 | Y24: 0 | AB24: =AB23-AB21 ->  | AD24: 0 | AE24: 0 | AH24: AdquisicionPremier150.089 | AI24: 9.09 | AL24: 20 | AM24: 0.089 | AN24: 200.089 | AO24: 7.84 | AV24: =IF(AT24="","",AT24*(BE24/12)) ->  | AZ24: =IFERROR(IF(OR($E$11=Resumen!$N$6,$E$8=Resumen!$N$6),Amortización!AV24*0.16,0),"") -> 0 | BA24: 0 | BB24: 0
E25: =IFERROR(IF($E$14&$E$16=$U$4,PMT(O25/12,$K$11,-$K$9)-F25,IF(D25="","",IF($E$14="Pago Fijo",MIN(IF($E$15="Mensualidad",-PMT(O25/12,$K$11-C24,D25)-F25,-PMT(O25/12,$K$11,$K$9)-F25),D25),MIN(U25*$K$9*$K$15/1000-F25,D25)))),0) -> 0 | F25: =IF(D25="","",D25*(O25/12)) ->  | G25: =IF(D25="","",L24*Resumen!$L$86/1000) ->  | I25: =IF($E$16=$S$1,0,IF(D25="","",Amortización!$AB$14)) ->  | J25: =IFERROR(IF(OR($E$11=Resumen!$N$6,$E$8=Resumen!$N$6),Amortización!F25*0.16,0),"") -> 0 | K25: 0 | L25: 0 | S25: =IF(ISNUMBER(Q25),IF($E$14="Pago Fijo",PMT(O25/12,$K$11,-$K$9),U25*$K$15*$K$9/1000)+G25+AF25+H25/1.16+$AB$14/1.16,0)+IF($E$16&L25=$AB$1,$N$8,0) -> 0 | U25: 1 | V25: 0 | Y25: 0 | AD25: 0 | AE25: 0 | AH25: AdquisicionPremier150.089 | AI25: 9.09 | AL25: 5 | AM25: 0.086 | AN25: 50.086 | AO25: 19.87 | AZ25: =IFERROR(IF(OR($E$11=Resumen!$N$6,$E$8=Resumen!$N$6),Amortización!AV25*0.16,0),"") -> 0 | BA25: 0 | BB25: 0
E26: 0 | G26: =IF(D26="","",L25*Resumen!$L$86/1000) ->  | I26: =IF($E$16=$S$1,0,IF(D26="","",Amortización!$AB$14)) ->  | J26: =IFERROR(IF(OR($E$11=Resumen!$N$6,$E$8=Resumen!$N$6),Amortización!F26*0.16,0),"") -> 0 | K26: 0 | L26: 0 | N26: =IF(OR(L25=0,L25=""),"",IF(E26>=D26,0,$E$17*10%)) ->  | S26: 0 | U26: 1 | V26: 0 | Y26: 0 | AD26: 0 | AE26: 0 | AH26: AdquisicionPremier200.089 | AI26: 7.84 | AL26: 5 | AM26: 0.088 | AN26: 50.088 | AO26: 19.96 | AZ26: =IFERROR(IF(OR($E$11=Resumen!$N$6,$E$8=Resumen!$N$6),Amortización!AV26*0.16,0),"") -> 0 | BA26: 0 | BB26: 0
E27: 0 | G27: =IF(D27="","",L26*Resumen!$L$86/1000) ->  | I27: =IF($E$16=$S$1,0,IF(D27="","",Amortización!$AB$14)) ->  | J27: =IFERROR(IF(OR($E$11=Resumen!$N$6,$E$8=Resumen!$N$6),Amortización!F27*0.16,0),"") -> 0 | K27: 0 | L27: 0 | S27: 0 | U27: 1 | V27: 0 | Y27: 0 | AD27: 0 | AE27: 0 | AH27: AdquisicionPremier200.089 | AI27: 7.84 | AL27: 5 | AM27: 0.0915 | AN27: 50.0915 | AO27: 20.13 | AZ27: =IFERROR(IF(OR($E$11=Resumen!$N$6,$E$8=Resumen!$N$6),Amortización!AV27*0.16,0),"") -> 0 | BA27: 0 | BB27: 0
E28: 0 | G28: =IF(D28="","",L27*Resumen!$L$86/1000) ->  | I28: =IF($E$16=$S$1,0,IF(D28="","",Amortización!$AB$14)) ->  | J28: =IFERROR(IF(OR($E$11=Resumen!$N$6,$E$8=Resumen!$N$6),Amortización!F28*0.16,0),"") -> 0 | K28: 0 | L28: 0 | N28: =IF(OR(L27=0,L27=""),"",IF(E28>=D28,0,$E$17*10%)) ->  | S28: 0 | U28: 1 | V28: 0 | Y28: 0 | AD28: 0 | AE28: 0 | AH28: AdquisicionPremier200.089 | AI28: 7.84 | AL28: 5 | AM28: 0.1 | AN28: 50.1 | AO28: 20.54 | AZ28: =IFERROR(IF(OR($E$11=Resumen!$N$6,$E$8=Resumen!$N$6),Amortización!AV28*0.16,0),"") -> 0 | BA28: 0 | BB28: 0
E29: 0 | G29: =IF(D29="","",L28*Resumen!$L$86/1000) ->  | I29: =IF($E$16=$S$1,0,IF(D29="","",Amortización!$AB$14)) ->  | J29: =IFERROR(IF(OR($E$11=Resumen!$N$6,$E$8=Resumen!$N$6),Amortización!F29*0.16,0),"") -> 0 | K29: 0 | L29: 0 | S29: 0 | U29: 1 | V29: 0 | Y29: 0 | AD29: 0 | AE29: 0 | AH29: AdquisicionNo Premier50.084 | AI29: 19.77 | AL29: 10 | AM29: =AM25+0.0025 -> 0.0885 | AN29: 100.0885 | AO29: 11.71 | AZ29: =IFERROR(IF(OR($E$11=Resumen!$N$6,$E$8=Resumen!$N$6),Amortización!AV29*0.16,0),"") -> 0 | BA29: 0 | BB29: 0
E30: 0 | G30: =IF(D30="","",L29*Resumen!$L$86/1000) ->  | I30: =IF($E$16=$S$1,0,IF(D30="","",Amortización!$AB$14)) ->  | J30: =IFERROR(IF(OR($E$11=Resumen!$N$6,$E$8=Resumen!$N$6),Amortización!F30*0.16,0),"") -> 0 | K30: 0 | L30: 0 | N30: =IF(OR(L29=0,L29=""),"",IF(E30>=D30,0,$E$17*10%)) ->  | S30: 0 | U30: 1 | V30: 0 | Y30: 0 | AD30: 0 | AE30: 0 | AH30: AdquisicionNo Premier50.086 | AI30: 19.87 | AL30: 10 | AM30: 0.0905 | AN30: 100.0905 | AO30: 11.81 | AZ30: =IFERROR(IF(OR($E$11=Resumen!$N$6,$E$8=Resumen!$N$6),Amortización!AV30*0.16,0),"") -> 0 | BA30: 0 | BB30: 0
E31: 0 | G31: =IF(D31="","",L30*Resumen!$L$86/1000) ->  | I31: =IF($E$16=$S$1,0,IF(D31="","",Amortización!$AB$14)) ->  | J31: =IFERROR(IF(OR($E$11=Resumen!$N$6,$E$8=Resumen!$N$6),Amortización!F31*0.16,0),"") -> 0 | K31: 0 | L31: 0 | S31: 0 | U31: 1 | V31: 0 | Y31: 0 | AD31: 0 | AE31: 0 | AH31: AdquisicionNo Premier50.088 | AI31: 19.96 | AL31: 10 | AM31: 0.094 | AN31: 100.094 | AO31: 12 | AZ31: =IFERROR(IF(OR($E$11=Resumen!$N$6,$E$8=Resumen!$N$6),Amortización!AV31*0.16,0),"") -> 0 | BA31: 0 | BB31: 0
E32: 0 | G32: =IF(D32="","",L31*Resumen!$L$86/1000) ->  | I32: =IF($E$16=$S$1,0,IF(D32="","",Amortización!$AB$14)) ->  | J32: =IFERROR(IF(OR($E$11=Resumen!$N$6,$E$8=Resumen!$N$6),Amortización!F32*0.16,0),"") -> 0 | K32: 0 | L32: 0 | N32: =IF(OR(L31=0,L31=""),"",IF(E32>=D32,0,$E$17*10%)) ->  | S32: 0 | U32: 1 | V32: 0 | Y32: 0 | AD32: 0 | AE32: 0 | AH32: AdquisicionNo Premier50.0915 | AI32: 20.13 | AL32: 10 | AM32: 0.1025 | AN32: 100.1025 | AO32: 12.45 | AZ32: =IFERROR(IF(OR($E$11=Resumen!$N$6,$E$8=Resumen!$N$6),Amortización!AV32*0.16,0),"") -> 0 | BA32: 0 | BB32: 0
E33: 0 | G33: =IF(D33="","",L32*Resumen!$L$86/1000) ->  | I33: =IF($E$16=$S$1,0,IF(D33="","",Amortización!$AB$14)) ->  | J33: =IFERROR(IF(OR($E$11=Resumen!$N$6,$E$8=Resumen!$N$6),Amortización!F33*0.16,0),"") -> 0 | K33: 0 | L33: 0 | O33: =IF(D33="","",O32)-IF(E8&E9&Y10&E14=Y8,0%,IF(E8&E9&Y10&E14=Y9,0%,0))+IF(E10&E8=S13,0%,0) ->  | S33: 0 | U33: =IF($E$16=$S$1,1,IF(OR(AND($E$8="Adquisicion",$E$9="Premier"),AND($E$8="Exclusiva",$E$9="Premier"),AND($E$8="Exclusiva",$E$9="No Premier")),U21*1.019,IF(AND($E$8="Adquisicion",$E$9="No Premier"),U21*1.019,IF($E$8="Pago de Hipoteca",U21*1.019)))) -> 1.019 | V33: 0 | Y33: 0 | AD33: 0 | AE33: 0 | AH33: AdquisicionNo Premier100.0865 | AI33: 11.61 | AL33: 15 | AM33: 0.091 | AN33: 150.091 | AO33: 9.2 | AZ33: =IFERROR(IF(OR($E$11=Resumen!$N$6,$E$8=Resumen!$N$6),Amortización!AV33*0.16,0),"") -> 0 | BA33: 0 | BB33: 0 | BE33: =IF(AT33="","",BE32)-IF(AU8&AU9&BO10&AU14=BO8,0%,IF(AU8&AU9&BO10&AU14=BO9,0%,0))+IF(AU10&AU8=BI13,0%,0) -> 
E34: 0 | G34: =IF(D34="","",L33*Resumen!$L$86/1000) ->  | I34: =IF($E$16=$S$1,0,IF(D34="","",Amortización!$AB$14)) ->  | J34: =IFERROR(IF(OR($E$11=Resumen!$N$6,$E$8=Resumen!$N$6),Amortización!F34*0.16,0),"") -> 0 | K34: 0 | L34: 0 | N34: =IF(OR(L33=0,L33=""),"",IF(E34>=D34,0,$E$17*10%)) ->  | O34: =IF(D34="","",O33) ->  | S34: 0 | U34: =IF($E$16=$S$1,1,IF(OR(AND($E$8="Adquisicion",$E$9="Premier"),AND($E$8="Exclusiva",$E$9="Premier"),AND($E$8="Exclusiva",$E$9="No Premier")),U22*1.019,IF(AND($E$8="Adquisicion",$E$9="No Premier"),U22*1.019,IF($E$8="Pago de Hipoteca",U22*1.019)))) -> 1.019 | V34: 0 | Y34: 0 | AD34: 0 | AE34: 0 | AH34: AdquisicionNo Premier100.0885 | AI34: 11.71 | AL34: 15 | AM34: 0.093 | AN34: 150.093 | AO34: 9.31 | AZ34: =IFERROR(IF(OR($E$11=Resumen!$N$6,$E$8=Resumen!$N$6),Amortización!AV34*0.16,0),"") -> 0 | BA34: 0 | BB34: 0 | BE34: =IF(AT34="","",BE33) -> 
E35: 0 | G35: =IF(D35="","",L34*Resumen!$L$86/1000) ->  | I35: =IF($E$16=$S$1,0,IF(D35="","",Amortización!$AB$14)) ->  | J35: =IFERROR(IF(OR($E$11=Resumen!$N$6,$E$8=Resumen!$N$6),Amortización!F35*0.16,0),"") -> 0 | K35: 0 | L35: 0 | S35: 0 | U35: =IF($E$16=$S$1,1,IF(OR(AND($E$8="Adquisicion",$E$9="Premier"),AND($E$8="Exclusiva",$E$9="Premier"),AND($E$8="Exclusiva",$E$9="No Premier")),U23*1.019,IF(AND($E$8="Adquisicion",$E$9="No Premier"),U23*1.019,IF($E$8="Pago de Hipoteca",U23*1.019)))) -> 1.019 | V35: 0 | Y35: 0 | AD35: 0 | AE35: 0 | AH35: AdquisicionNo Premier100.0905 | AI35: 11.81 | AL35: 15 | AM35: 0.0965 | AN35: 150.0965 | AO35: 9.52 | AZ35: =IFERROR(IF(OR($E$11=Resumen!$N$6,$E$8=Resumen!$N$6),Amortización!AV35*0.16,0),"") -> 0 | BA35: 0 | BB35: 0
E36: 0 | G36: =IF(D36="","",L35*Resumen!$L$86/1000) ->  | I36: =IF($E$16=$S$1,0,IF(D36="","",Amortización!$AB$14)) ->  | J36: =IFERROR(IF(OR($E$11=Resumen!$N$6,$E$8=Resumen!$N$6),Amortización!F36*0.16,0),"") -> 0 | K36: 0 | L36: 0 | N36: =IF(OR(L35=0,L35=""),"",IF(E36>=D36,0,$E$17*10%)) ->  | S36: 0 | U36: =IF(OR(AND($E$8="Adquisicion",$E$9="Premier"),AND($E$8="Exclusiva",$E$9="Premier"),AND($E$8="Exclusiva",$E$9="No Premier")),U24*1.019,IF(AND($E$8="Adquisicion",$E$9="No Premier"),U24*1.019,IF($E$8="Pago de Hipoteca",U24*1.019))) -> 1.019 | V36: 0 | Y36: 0 | AD36: 0 | AE36: 0 | AH36: AdquisicionNo Premier100.094 | AI36: 12 | AL36: 15 | AM36: 0.105 | AN36: 150.105 | AO36: 10.01 | AZ36: =IFERROR(IF(OR($E$11=Resumen!$N$6,$E$8=Resumen!$N$6),Amortización!AV36*0.16,0),"") -> 0 | BA36: 0 | BB36: 0
E37: 0 | G37: =IF(D37="","",L36*Resumen!$L$86/1000) ->  | I37: =IF($E$16=$S$1,0,IF(D37="","",Amortización!$AB$14)) ->  | J37: =IFERROR(IF(OR($E$11=Resumen!$N$6,$E$8=Resumen!$N$6),Amortización!F37*0.16,0),"") -> 0 | K37: 0 | L37: 0 | S37: 0 | U37: 1.019 | V37: 0 | Y37: 0 | AD37: 0 | AE37: 0 | AH37: AdquisicionNo Premier150.089 | AI37: 9.09 | AL37: 20 | AM37: 0.091 | AN37: 200.091 | AO37: 7.96 | AZ37: =IFERROR(IF(OR($E$11=Resumen!$N$6,$E$8=Resumen!$N$6),Amortización!AV37*0.16,0),"") -> 0 | BA37: 0 | BB37: 0
E38: 0 | G38: =IF(D38="","",L37*Resumen!$L$86/1000) ->  | I38: =IF($E$16=$S$1,0,IF(D38="","",Amortización!$AB$14)) ->  | J38: =IFERROR(IF(OR($E$11=Resumen!$N$6,$E$8=Resumen!$N$6),Amortización!F38*0.16,0),"") -> 0 | K38: 0 | L38: 0 | N38: =IF(OR(L37=0,L37=""),"",IF(E38>=D38,0,$E$17*10%)) ->  | S38: 0 | U38: 1.019 | V38: 0 | Y38: 0 | AD38: 0 | AE38: 0 | AH38: AdquisicionNo Premier150.091 | AI38: 9.2 | AL38: 20 | AM38: 0.093 | AN38: 200.093 | AO38: 8.08 | AZ38: =IFERROR(IF(OR($E$11=Resumen!$N$6,$E$8=Resumen!$N$6),Amortización!AV38*0.16,0),"") -> 0 | BA38: 0 | BB38: 0
E39: 0 | G39: =IF(D39="","",L38*Resumen!$L$86/1000) ->  | I39: =IF($E$16=$S$1,0,IF(D39="","",Amortización!$AB$14)) ->  | J39: =IFERROR(IF(OR($E$11=Resumen!$N$6,$E$8=Resumen!$N$6),Amortización!F39*0.16,0),"") -> 0 | K39: 0 | L39: 0 | S39: 0 | U39: 1.019 | V39: 0 | Y39: 0 | AD39: 0 | AE39: 0 | AH39: AdquisicionNo Premier150.093 | AI39: 9.31 | AL39: 20 | AM39: 0.0965 | AN39: 200.0965 | AO39: 8.3 | AZ39: =IFERROR(IF(OR($E$11=Resumen!$N$6,$E$8=Resumen!$N$6),Amortización!AV39*0.16,0),"") -> 0 | BA39: 0 | BB39: 0
E40: 0 | G40: =IF(D40="","",L39*Resumen!$L$86/1000) ->  | I40: =IF($E$16=$S$1,0,IF(D40="","",Amortización!$AB$14)) ->  | J40: =IFERROR(IF(OR($E$11=Resumen!$N$6,$E$8=Resumen!$N$6),Amortización!F40*0.16,0),"") -> 0 | K40: 0 | L40: 0 | N40: =IF(OR(L39=0,L39=""),"",IF(E40>=D40,0,$E$17*10%)) ->  | S40: 0 | U40: 1.019 | V40: 0 | Y40: 0 | AD40: 0 | AE40: 0 | AH40: AdquisicionNo Premier150.0965 | AI40: 9.52 | AL40: 20 | AM40: 0.105 | AN40: 200.105 | AO40: 8.84 | AZ40: =IFERROR(IF(OR($E$11=Resumen!$N$6,$E$8=Resumen!$N$6),Amortización!AV40*0.16,0),"") -> 0 | BA40: 0 | BB40: 0
E41: 0 | G41: =IF(D41="","",L40*Resumen!$L$86/1000) ->  | I41: =IF($E$16=$S$1,0,IF(D41="","",Amortización!$AB$14)) ->  | J41: =IFERROR(IF(OR($E$11=Resumen!$N$6,$E$8=Resumen!$N$6),Amortización!F41*0.16,0),"") -> 0 | K41: 0 | L41: 0 | S41: 0 | U41: 1.019 | V41: 0 | Y41: 0 | AD41: 0 | AE41: 0 | AH41: AdquisicionNo Premier200.089 | AI41: 7.84 | AL41: 5 | AM41: 0.0805 | AN41: 50.0805 | AO41: 19.61 | AZ41: =IFERROR(IF(OR($E$11=Resumen!$N$6,$E$8=Resumen!$N$6),Amortización!AV41*0.16,0),"") -> 0 | BA41: 0 | BB41: 0
E42: 0 | G42: =IF(D42="","",L41*Resumen!$L$86/1000) ->  | I42: =IF($E$16=$S$1,0,IF(D42="","",Amortización!$AB$14)) ->  | J42: =IFERROR(IF(OR($E$11=Resumen!$N$6,$E$8=Resumen!$N$6),Amortización!F42*0.16,0),"") -> 0 | K42: 0 | L42: 0 | N42: =IF(OR(L41=0,L41=""),"",IF(E42>=D42,0,$E$17*10%)) ->  | S42: 0 | U42: 1.019 | V42: 0 | Y42: 0 | AD42: 0 | AE42: 0 | AH42: AdquisicionNo Premier200.091 | AI42: 7.96 | AL42: 6 | AM42: 0.0805 | AN42: 60.0805 | AO42: 16.82 | AZ42: =IFERROR(IF(OR($E$11=Resumen!$N$6,$E$8=Resumen!$N$6),Amortización!AV42*0.16,0),"") -> 0 | BA42: 0 | BB42: 0
E43: 0 | G43: =IF(D43="","",L42*Resumen!$L$86/1000) ->  | I43: =IF($E$16=$S$1,0,IF(D43="","",Amortización!$AB$14)) ->  | J43: =IFERROR(IF(OR($E$11=Resumen!$N$6,$E$8=Resumen!$N$6),Amortización!F43*0.16,0),"") -> 0 | K43: 0 | L43: 0 | S43: 0 | U43: 1.019 | V43: 0 | Y43: 0 | AD43: 0 | AE43: 0 | AH43: AdquisicionNo Premier200.093 | AI43: 8.08 | AL43: 7 | AM43: 0.0805 | AN43: 70.0805 | AO43: 14.84 | AZ43: =IFERROR(IF(OR($E$11=Resumen!$N$6,$E$8=Resumen!$N$6),Amortización!AV43*0.16,0),"") -> 0 | BA43: 0 | BB43: 0
E44: 0 | G44: =IF(D44="","",L43*Resumen!$L$86/1000) ->  | I44: =IF($E$16=$S$1,0,IF(D44="","",Amortización!$AB$14)) ->  | J44: =IFERROR(IF(OR($E$11=Resumen!$N$6,$E$8=Resumen!$N$6),Amortización!F44*0.16,0),"") -> 0 | K44: 0 | L44: 0 | N44: =IF(OR(L43=0,L43=""),"",IF(E44>=D44,0,$E$17*10%)) ->  | S44: 0 | U44: 1.019 | V44: 0 | Y44: 0 | AD44: 0 | AE44: 0 | AH44: AdquisicionNo Premier200.0965 | AI44: 8.3 | AL44: 8 | AM44: 0.0805 | AN44: 80.0805 | AO44: 13.36 | AZ44: =IFERROR(IF(OR($E$11=Resumen!$N$6,$E$8=Resumen!$N$6),Amortización!AV44*0.16,0),"") -> 0 | BA44: 0 | BB44: 0
E45: 0 | G45: =IF(D45="","",L44*Resumen!$L$86/1000) ->  | I45: =IF($E$16=$S$1,0,IF(D45="","",Amortización!$AB$14)) ->  | J45: =IFERROR(IF(OR($E$11=Resumen!$N$6,$E$8=Resumen!$N$6),Amortización!F45*0.16,0),"") -> 0 | K45: 0 | L45: 0 | O45: =IF(D45="","",O44)-IF(E20&E21&Y23&E26=Y21,0%,IF(E20&E21&Y23&E26=Y22,0%,0))+IF(E22&E20=S25,0%,0) ->  | S45: 0 | U45: 1.038361 | V45: 0 | Y45: 0 | AD45: 0 | AE45: 0 | AH45: ExclusivaNo Premier50.0825 | AI45: 19.7 | AL45: 9 | AM45: 0.0805 | AN45: 90.0805 | AO45: 12.21 | AZ45: =IFERROR(IF(OR($E$11=Resumen!$N$6,$E$8=Resumen!$N$6),Amortización!AV45*0.16,0),"") -> 0 | BA45: 0 | BB45: 0 | BE45: =IF(AT45="","",BE44)-IF(AU20&AU21&BO23&AU26=BO21,0%,IF(AU20&AU21&BO23&AU26=BO22,0%,0))+IF(AU22&AU20=BI25,0%,0) -> 
E46: 0 | G46: =IF(D46="","",L45*Resumen!$L$86/1000) ->  | I46: =IF($E$16=$S$1,0,IF(D46="","",Amortización!$AB$14)) ->  | J46: =IFERROR(IF(OR($E$11=Resumen!$N$6,$E$8=Resumen!$N$6),Amortización!F46*0.16,0),"") -> 0 | K46: 0 | L46: 0 | N46: =IF(OR(L45=0,L45=""),"",IF(E46>=D46,0,$E$17*10%)) ->  | O46: =IF(D46="","",O45) ->  | S46: 0 | U46: 1.038361 | V46: 0 | Y46: 0 | AD46: 0 | AE46: 0 | AH46: ExclusivaNo Premier100.085 | AI46: 11.53 | AL46: 10 | AM46: 0.083 | AN46: 100.083 | AO46: 11.43 | AZ46: =IFERROR(IF(OR($E$11=Resumen!$N$6,$E$8=Resumen!$N$6),Amortización!AV46*0.16,0),"") -> 0 | BA46: 0 | BB46: 0 | BE46: =IF(AT46="","",BE45) -> 
E47: 0 | G47: =IF(D47="","",L46*Resumen!$L$86/1000) ->  | I47: =IF($E$16=$S$1,0,IF(D47="","",Amortización!$AB$14)) ->  | J47: =IFERROR(IF(OR($E$11=Resumen!$N$6,$E$8=Resumen!$N$6),Amortización!F47*0.16,0),"") -> 0 | K47: 0 | L47: 0 | S47: 0 | U47: 1.038361 | V47: 0 | Y47: 0 | AD47: 0 | AE47: 0 | AH47: ExclusivaNo Premier150.0875 | AI47: 9 | AL47: 11 | AM47: 0.083 | AN47: 110.083 | AO47: 10.69 | AZ47: =IFERROR(IF(OR($E$11=Resumen!$N$6,$E$8=Resumen!$N$6),Amortización!AV47*0.16,0),"") -> 0 | BA47: 0 | BB47: 0
E48: 0 | G48: =IF(D48="","",L47*Resumen!$L$86/1000) ->  | I48: =IF($E$16=$S$1,0,IF(D48="","",Amortización!$AB$14)) ->  | J48: =IFERROR(IF(OR($E$11=Resumen!$N$6,$E$8=Resumen!$N$6),Amortización!F48*0.16,0),"") -> 0 | K48: 0 | L48: 0 | N48: =IF(OR(L47=0,L47=""),"",IF(E48>=D48,0,$E$17*10%)) ->  | S48: 0 | U48: 1.038361 | V48: 0 | Y48: 0 | AD48: 0 | AE48: 0 | AH48: ExclusivaNo Premier200.0875 | AI48: 7.75 | AL48: 12 | AM48: 0.083 | AN48: 120.083 | AO48: 10.08 | AZ48: =IFERROR(IF(OR($E$11=Resumen!$N$6,$E$8=Resumen!$N$6),Amortización!AV48*0.16,0),"") -> 0 | BA48: 0 | BB48: 0
E49: 0 | G49: =IF(D49="","",L48*Resumen!$L$86/1000) ->  | I49: =IF($E$16=$S$1,0,IF(D49="","",Amortización!$AB$14)) ->  | J49: =IFERROR(IF(OR($E$11=Resumen!$N$6,$E$8=Resumen!$N$6),Amortización!F49*0.16,0),"") -> 0 | K49: 0 | L49: 0 | S49: 0 | U49: 1.038361 | V49: 0 | Y49: 0 | AD49: 0 | AE49: 0 | AH49: Pago de HipotecaNo Premier50.0805 | AI49: 19.61 | AL49: 13 | AM49: 0.083 | AN49: 130.083 | AO49: 9.56 | AZ49: =IFERROR(IF(OR($E$11=Resumen!$N$6,$E$8=Resumen!$N$6),Amortización!AV49*0.16,0),"") -> 0 | BA49: 0 | BB49: 0
E50: 0 | G50: =IF(D50="","",L49*Resumen!$L$86/1000) ->  | I50: =IF($E$16=$S$1,0,IF(D50="","",Amortización!$AB$14)) ->  | J50: =IFERROR(IF(OR($E$11=Resumen!$N$6,$E$8=Resumen!$N$6),Amortización!F50*0.16,0),"") -> 0 | K50: 0 | L50: 0 | N50: =IF(OR(L49=0,L49=""),"",IF(E50>=D50,0,$E$17*10%)) ->  | S50: 0 | U50: 1.038361 | V50: 0 | Y50: 0 | AD50: 0 | AE50: 0 | AH50: Pago de HipotecaNo Premier100.083 | AI50: 11.43 | AL50: 14 | AM50: 0.083 | AN50: 140.083 | AO50: 9.13 | AZ50: =IFERROR(IF(OR($E$11=Resumen!$N$6,$E$8=Resumen!$N$6),Amortización!AV50*0.16,0),"") -> 0 | BA50: 0 | BB50: 0
E51: 0 | G51: =IF(D51="","",L50*Resumen!$L$86/1000) ->  | I51: =IF($E$16=$S$1,0,IF(D51="","",Amortización!$AB$14)) ->  | J51: =IFERROR(IF(OR($E$11=Resumen!$N$6,$E$8=Resumen!$N$6),Amortización!F51*0.16,0),"") -> 0 | K51: 0 | L51: 0 | S51: 0 | U51: 1.038361 | V51: 0 | Y51: 0 | AD51: 0 | AE51: 0 | AH51: Pago de HipotecaNo Premier150.0855 | AI51: 8.89 | AL51: 15 | AM51: 0.0855 | AN51: 150.0855 | AO51: 8.89 | AZ51: =IFERROR(IF(OR($E$11=Resumen!$N$6,$E$8=Resumen!$N$6),Amortización!AV51*0.16,0),"") -> 0 | BA51: 0 | BB51: 0
E52: 0 | G52: =IF(D52="","",L51*Resumen!$L$86/1000) ->  | I52: =IF($E$16=$S$1,0,IF(D52="","",Amortización!$AB$14)) ->  | J52: =IFERROR(IF(OR($E$11=Resumen!$N$6,$E$8=Resumen!$N$6),Amortización!F52*0.16,0),"") -> 0 | K52: 0 | L52: 0 | N52: =IF(OR(L51=0,L51=""),"",IF(E52>=D52,0,$E$17*10%)) ->  | S52: 0 | U52: 1.038361 | V52: 0 | Y52: 0 | AD52: 0 | AE52: 0 | AH52: Pago de HipotecaNo Premier200.0855 | AI52: 7.63 | AL52: 16 | AM52: 0.0855 | AN52: 160.0855 | AO52: 8.57 | AZ52: =IFERROR(IF(OR($E$11=Resumen!$N$6,$E$8=Resumen!$N$6),Amortización!AV52*0.16,0),"") -> 0 | BA52: 0 | BB52: 0
E53: 0 | G53: =IF(D53="","",L52*Resumen!$L$86/1000) ->  | I53: =IF($E$16=$S$1,0,IF(D53="","",Amortización!$AB$14)) ->  | J53: =IFERROR(IF(OR($E$11=Resumen!$N$6,$E$8=Resumen!$N$6),Amortización!F53*0.16,0),"") -> 0 | K53: 0 | L53: 0 | R53: =IF(D53="","",E53+F53+G53+H53/1.16+I53/1.16+N53) ->  | S53: 0 | U53: 1.038361 | V53: 0 | Y53: 0 | AD53: 0 | AE53: 0 | AH53: ExclusivaPremier50.0825 | AI53: 19.7 | AL53: 17 | AM53: 0.0855 | AN53: 170.0855 | AO53: 8.29 | AZ53: =IFERROR(IF(OR($E$11=Resumen!$N$6,$E$8=Resumen!$N$6),Amortización!AV53*0.16,0),"") -> 0 | BA53: 0 | BB53: 0
C54: =IF(OR(L53="",L53=0),"",IF(C53+1>$K$11+$U$2,"",C53+1)) ->  | E54: 0 | G54: =IF(D54="","",L53*Resumen!$L$86/1000) ->  | I54: =IF($E$16=$S$1,0,IF(D54="","",Amortización!$AB$14)) ->  | J54: =IFERROR(IF(OR($E$11=Resumen!$N$6,$E$8=Resumen!$N$6),Amortización!F54*0.16,0),"") -> 0 | K54: 0 | L54: 0 | N54: =IF(OR(L53=0,L53=""),"",IF(E54>=D54,0,$E$17*10%)) ->  | Q54: =C54 ->  | S54: 0 | U54: 1.038361 | V54: 0 | Y54: 0 | AD54: 0 | AE54: 0 | AH54: ExclusivaPremier50.0825 | AI54: 19.7 | AL54: 18 | AM54: 0.0855 | AN54: 180.0855 | AO54: 8.04 | AZ54: =IFERROR(IF(OR($E$11=Resumen!$N$6,$E$8=Resumen!$N$6),Amortización!AV54*0.16,0),"") -> 0 | BA54: 0 | BB54: 0
E55: 0 | G55: =IF(D55="","",L54*Resumen!$L$86/1000) ->  | I55: =IF($E$16=$S$1,0,IF(D55="","",Amortización!$AB$14)) ->  | J55: =IFERROR(IF(OR($E$11=Resumen!$N$6,$E$8=Resumen!$N$6),Amortización!F55*0.16,0),"") -> 0 | K55: 0 | L55: 0 | S55: 0 | U55: 1.038361 | V55: 0 | Y55: 0 | AD55: 0 | AE55: 0 | AH55: ExclusivaPremier50.0825 | AI55: 19.7 | AL55: 19 | AM55: 0.0855 | AN55: 190.0855 | AO55: 7.82 | AZ55: =IFERROR(IF(OR($E$11=Resumen!$N$6,$E$8=Resumen!$N$6),Amortización!AV55*0.16,0),"") -> 0 | BA55: 0 | BB55: 0
E56: 0 | F56: =IF(D56="","",D56*(O56/12)) ->  | G56: =IF(D56="","",L55*Resumen!$L$86/1000) ->  | I56: =IF($E$16=$S$1,0,IF(D56="","",Amortización!$AB$14)) ->  | J56: =IFERROR(IF(OR($E$11=Resumen!$N$6,$E$8=Resumen!$N$6),Amortización!F56*0.16,0),"") -> 0 | K56: 0 | L56: 0 | N56: =IF(OR(L55=0,L55=""),"",IF(E56>=D56,0,$E$17*10%)) ->  | S56: 0 | U56: 1.038361 | V56: 0 | Y56: 0 | AD56: 0 | AE56: 0 | AH56: ExclusivaPremier100.085 | AI56: 11.53 | AL56: 20 | AM56: 0.0855 | AN56: 200.0855 | AO56: 7.63 | AZ56: =IFERROR(IF(OR($E$11=Resumen!$N$6,$E$8=Resumen!$N$6),Amortización!AV56*0.16,0),"") -> 0 | BA56: 0 | BB56: 0
E57: 0 | G57: =IF(D57="","",L56*Resumen!$L$86/1000) ->  | I57: =IF($E$16=$S$1,0,IF(D57="","",Amortización!$AB$14)) ->  | J57: =IFERROR(IF(OR($E$11=Resumen!$N$6,$E$8=Resumen!$N$6),Amortización!F57*0.16,0),"") -> 0 | K57: 0 | L57: 0 | S57: 0 | U57: 1.058089859 | V57: 0 | Y57: 0 | AD57: 0 | AE57: 0 | AH57: ExclusivaPremier100.085 | AI57: 11.53 | AL57: 20 | AM57: 0.0899 | AN57: 200.0899 | AO57: 7.89 | AZ57: =IFERROR(IF(OR($E$11=Resumen!$N$6,$E$8=Resumen!$N$6),Amortización!AV57*0.16,0),"") -> 0 | BA57: 0 | BB57: 0
E58: 0 | G58: =IF(D58="","",L57*Resumen!$L$86/1000) ->  | I58: =IF($E$16=$S$1,0,IF(D58="","",Amortización!$AB$14)) ->  | J58: =IFERROR(IF(OR($E$11=Resumen!$N$6,$E$8=Resumen!$N$6),Amortización!F58*0.16,0),"") -> 0 | K58: 0 | L58: 0 | N58: =IF(OR(L57=0,L57=""),"",IF(E58>=D58,0,$E$17*10%)) ->  | S58: 0 | U58: 1.058089859 | V58: 0 | Y58: 0 | AD58: 0 | AE58: 0 | AH58: ExclusivaPremier100.085 | AI58: 11.53 | AL58: 15 | AM58: 0.0899 | AN58: 150.0899 | AO58: 9.14 | AZ58: =IFERROR(IF(OR($E$11=Resumen!$N$6,$E$8=Resumen!$N$6),Amortización!AV58*0.16,0),"") -> 0 | BA58: 0 | BB58: 0
E59: 0 | G59: =IF(D59="","",L58*Resumen!$L$86/1000) ->  | I59: =IF($E$16=$S$1,0,IF(D59="","",Amortización!$AB$14)) ->  | J59: =IFERROR(IF(OR($E$11=Resumen!$N$6,$E$8=Resumen!$N$6),Amortización!F59*0.16,0),"") -> 0 | K59: 0 | L59: 0 | S59: 0 | U59: 1.058089859 | V59: 0 | Y59: 0 | AD59: 0 | AE59: 0 | AH59: ExclusivaPremier150.0875 | AI59: 9 | AL59: 10 | AM59: 0.0874 | AN59: 100.0874 | AO59: 11.65 | AZ59: =IFERROR(IF(OR($E$11=Resumen!$N$6,$E$8=Resumen!$N$6),Amortización!AV59*0.16,0),"") -> 0 | BA59: 0 | BB59: 0
E60: 0 | G60: =IF(D60="","",L59*Resumen!$L$86/1000) ->  | I60: =IF($E$16=$S$1,0,IF(D60="","",Amortización!$AB$14)) ->  | J60: =IFERROR(IF(OR($E$11=Resumen!$N$6,$E$8=Resumen!$N$6),Amortización!F60*0.16,0),"") -> 0 | K60: 0 | L60: 0 | N60: =IF(OR(L59=0,L59=""),"",IF(E60>=D60,0,$E$17*10%)) ->  | S60: 0 | U60: 1.058089859 | V60: 0 | Y60: 0 | AD60: 0 | AE60: 0 | AH60: ExclusivaPremier150.0875 | AI60: 9 | AL60: 5 | AM60: 0.0849 | AN60: 50.0849 | AO60: 19.81 | AZ60: =IFERROR(IF(OR($E$11=Resumen!$N$6,$E$8=Resumen!$N$6),Amortización!AV60*0.16,0),"") -> 0 | BA60: 0 | BB60: 0
E61: 0 | G61: =IF(D61="","",L60*Resumen!$L$86/1000) ->  | I61: =IF($E$16=$S$1,0,IF(D61="","",Amortización!$AB$14)) ->  | J61: =IFERROR(IF(OR($E$11=Resumen!$N$6,$E$8=Resumen!$N$6),Amortización!F61*0.16,0),"") -> 0 | K61: 0 | L61: 0 | S61: 0 | U61: 1.058089859 | V61: 0 | Y61: 0 | AD61: 0 | AE61: 0 | AH61: ExclusivaPremier150.0875 | AI61: 9 | AZ61: =IFERROR(IF(OR($E$11=Resumen!$N$6,$E$8=Resumen!$N$6),Amortización!AV61*0.16,0),"") -> 0 | BA61: 0 | BB61: 0
E62: 0 | G62: =IF(D62="","",L61*Resumen!$L$86/1000) ->  | I62: =IF($E$16=$S$1,0,IF(D62="","",Amortización!$AB$14)) ->  | J62: =IFERROR(IF(OR($E$11=Resumen!$N$6,$E$8=Resumen!$N$6),Amortización!F62*0.16,0),"") -> 0 | K62: 0 | L62: 0 | N62: =IF(OR(L61=0,L61=""),"",IF(E62>=D62,0,$E$17*10%)) ->  | S62: 0 | U62: 1.058089859 | V62: 0 | Y62: 0 | AD62: 0 | AE62: 0 | AH62: ExclusivaPremier200.0875 | AI62: 7.75 | AZ62: =IFERROR(IF(OR($E$11=Resumen!$N$6,$E$8=Resumen!$N$6),Amortización!AV62*0.16,0),"") -> 0 | BA62: 0 | BB62: 0
E63: 0 | G63: =IF(D63="","",L62*Resumen!$L$86/1000) ->  | I63: =IF($E$16=$S$1,0,IF(D63="","",Amortización!$AB$14)) ->  | J63: =IFERROR(IF(OR($E$11=Resumen!$N$6,$E$8=Resumen!$N$6),Amortización!F63*0.16,0),"") -> 0 | K63: 0 | L63: 0 | S63: 0 | U63: 1.058089859 | V63: 0 | Y63: 0 | AD63: 0 | AE63: 0 | AH63: ExclusivaPremier200.0875 | AI63: 7.75 | AZ63: =IFERROR(IF(OR($E$11=Resumen!$N$6,$E$8=Resumen!$N$6),Amortización!AV63*0.16,0),"") -> 0 | BA63: 0 | BB63: 0
E64: 0 | G64: =IF(D64="","",L63*Resumen!$L$86/1000) ->  | I64: =IF($E$16=$S$1,0,IF(D64="","",Amortización!$AB$14)) ->  | J64: =IFERROR(IF(OR($E$11=Resumen!$N$6,$E$8=Resumen!$N$6),Amortización!F64*0.16,0),"") -> 0 | K64: 0 | L64: 0 | N64: =IF(OR(L63=0,L63=""),"",IF(E64>=D64,0,$E$17*10%)) ->  | S64: 0 | U64: 1.058089859 | V64: 0 | Y64: 0 | AD64: 0 | AE64: 0 | AH64: ExclusivaPremier200.0875 | AI64: 7.75 | AZ64: =IFERROR(IF(OR($E$11=Resumen!$N$6,$E$8=Resumen!$N$6),Amortización!AV64*0.16,0),"") -> 0 | BA64: 0 | BB64: 0
E65: 0 | G65: =IF(D65="","",L64*Resumen!$L$86/1000) ->  | I65: =IF($E$16=$S$1,0,IF(D65="","",Amortización!$AB$14)) ->  | J65: =IFERROR(IF(OR($E$11=Resumen!$N$6,$E$8=Resumen!$N$6),Amortización!F65*0.16,0),"") -> 0 | K65: 0 | L65: 0 | S65: 0 | U65: 1.058089859 | V65: 0 | Y65: 0 | AD65: 0 | AE65: 0 | AH65: Pago de HipotecaPremier50.0805 | AI65: 19.61 | AZ65: =IFERROR(IF(OR($E$11=Resumen!$N$6,$E$8=Resumen!$N$6),Amortización!AV65*0.16,0),"") -> 0 | BA65: 0 | BB65: 0
E66: 0 | G66: =IF(D66="","",L65*Resumen!$L$86/1000) ->  | I66: =IF($E$16=$S$1,0,IF(D66="","",Amortización!$AB$14)) ->  | J66: =IFERROR(IF(OR($E$11=Resumen!$N$6,$E$8=Resumen!$N$6),Amortización!F66*0.16,0),"") -> 0 | K66: 0 | L66: 0 | N66: =IF(OR(L65=0,L65=""),"",IF(E66>=D66,0,$E$17*10%)) ->  | S66: 0 | U66: 1.058089859 | V66: 0 | Y66: 0 | AD66: 0 | AE66: 0 | AH66: Pago de HipotecaPremier100.083 | AI66: 11.43 | AZ66: =IFERROR(IF(OR($E$11=Resumen!$N$6,$E$8=Resumen!$N$6),Amortización!AV66*0.16,0),"") -> 0 | BA66: 0 | BB66: 0
E67: 0 | G67: =IF(D67="","",L66*Resumen!$L$86/1000) ->  | I67: =IF($E$16=$S$1,0,IF(D67="","",Amortización!$AB$14)) ->  | J67: =IFERROR(IF(OR($E$11=Resumen!$N$6,$E$8=Resumen!$N$6),Amortización!F67*0.16,0),"") -> 0 | K67: 0 | L67: 0 | S67: 0 | U67: 1.058089859 | V67: 0 | Y67: 0 | AD67: 0 | AE67: 0 | AH67: Pago de HipotecaPremier150.0855 | AI67: 8.89 | AZ67: =IFERROR(IF(OR($E$11=Resumen!$N$6,$E$8=Resumen!$N$6),Amortización!AV67*0.16,0),"") -> 0 | BA67: 0 | BB67: 0
E68: 0 | G68: =IF(D68="","",L67*Resumen!$L$86/1000) ->  | I68: =IF($E$16=$S$1,0,IF(D68="","",Amortización!$AB$14)) ->  | J68: =IFERROR(IF(OR($E$11=Resumen!$N$6,$E$8=Resumen!$N$6),Amortización!F68*0.16,0),"") -> 0 | K68: 0 | L68: 0 | N68: =IF(OR(L67=0,L67=""),"",IF(E68>=D68,0,$E$17*10%)) ->  | S68: 0 | U68: =IF(OR(AND($E$8="Adquisicion",$E$9="Premier"),AND($E$8="Exclusiva",$E$9="Premier"),AND($E$8="Exclusiva",$E$9="No Premier")),U56*1.019,IF(AND($E$8="Adquisicion",$E$9="No Premier"),U56*1.019,IF($E$8="Pago de Hipoteca",U56*1.019))) -> 1.058089859 | V68: 0 | Y68: 0 | AD68: 0 | AE68: 0 | AH68: Pago de HipotecaPremier200.0855 | AI68: 7.63 | AZ68: =IFERROR(IF(OR($E$11=Resumen!$N$6,$E$8=Resumen!$N$6),Amortización!AV68*0.16,0),"") -> 0 | BA68: 0 | BB68: 0
E69: 0 | G69: =IF(D69="","",L68*Resumen!$L$86/1000) ->  | I69: =IF($E$16=$S$1,0,IF(D69="","",Amortización!$AB$14)) ->  | J69: =IFERROR(IF(OR($E$11=Resumen!$N$6,$E$8=Resumen!$N$6),Amortización!F69*0.16,0),"") -> 0 | K69: 0 | L69: 0 | S69: 0 | U69: 1.078193566 | V69: 0 | Y69: 0 | AD69: 0 | AE69: 0 | AH69: AdquisicionPremier50.0805 | AI69: 19.61 | AZ69: =IFERROR(IF(OR($E$11=Resumen!$N$6,$E$8=Resumen!$N$6),Amortización!AV69*0.16,0),"") -> 0 | BA69: 0 | BB69: 0
E70: 0 | G70: =IF(D70="","",L69*Resumen!$L$86/1000) ->  | I70: =IF($E$16=$S$1,0,IF(D70="","",Amortización!$AB$14)) ->  | J70: =IFERROR(IF(OR($E$11=Resumen!$N$6,$E$8=Resumen!$N$6),Amortización!F70*0.16,0),"") -> 0 | K70: 0 | L70: 0 | N70: =IF(OR(L69=0,L69=""),"",IF(E70>=D70,0,$E$17*10%)) ->  | S70: 0 | U70: 1.078193566 | V70: 0 | Y70: 0 | AD70: 0 | AE70: 0 | AH70: AdquisicionPremier100.083 | AI70: 11.43 | AZ70: =IFERROR(IF(OR($E$11=Resumen!$N$6,$E$8=Resumen!$N$6),Amortización!AV70*0.16,0),"") -> 0 | BA70: 0 | BB70: 0
E71: 0 | G71: =IF(D71="","",L70*Resumen!$L$86/1000) ->  | I71: =IF($E$16=$S$1,0,IF(D71="","",Amortización!$AB$14)) ->  | J71: =IFERROR(IF(OR($E$11=Resumen!$N$6,$E$8=Resumen!$N$6),Amortización!F71*0.16,0),"") -> 0 | K71: 0 | L71: 0 | S71: 0 | U71: 1.078193566 | V71: 0 | Y71: 0 | AD71: 0 | AE71: 0 | AH71: AdquisicionPremier150.0855 | AI71: 8.89 | AZ71: =IFERROR(IF(OR($E$11=Resumen!$N$6,$E$8=Resumen!$N$6),Amortización!AV71*0.16,0),"") -> 0 | BA71: 0 | BB71: 0
E72: 0 | G72: =IF(D72="","",L71*Resumen!$L$86/1000) ->  | I72: =IF($E$16=$S$1,0,IF(D72="","",Amortización!$AB$14)) ->  | J72: =IFERROR(IF(OR($E$11=Resumen!$N$6,$E$8=Resumen!$N$6),Amortización!F72*0.16,0),"") -> 0 | K72: 0 | L72: 0 | N72: =IF(OR(L71=0,L71=""),"",IF(E72>=D72,0,$E$17*10%)) ->  | S72: 0 | U72: 1.078193566 | V72: 0 | Y72: 0 | AD72: 0 | AE72: 0 | AH72: AdquisicionPremier200.0855 | AI72: 7.63 | AZ72: =IFERROR(IF(OR($E$11=Resumen!$N$6,$E$8=Resumen!$N$6),Amortización!AV72*0.16,0),"") -> 0 | BA72: 0 | BB72: 0
E73: 0 | G73: =IF(D73="","",L72*Resumen!$L$86/1000) ->  | I73: =IF($E$16=$S$1,0,IF(D73="","",Amortización!$AB$14)) ->  | J73: =IFERROR(IF(OR($E$11=Resumen!$N$6,$E$8=Resumen!$N$6),Amortización!F73*0.16,0),"") -> 0 | K73: 0 | L73: 0 | S73: 0 | U73: 1.078193566 | V73: 0 | Y73: 0 | AD73: 0 | AE73: 0 | AH73: AdquisicionPremier50.0745 | AI73: 19.33 | AZ73: =IFERROR(IF(OR($E$11=Resumen!$N$6,$E$8=Resumen!$N$6),Amortización!AV73*0.16,0),"") -> 0 | BA73: 0 | BB73: 0
E74: 0 | G74: =IF(D74="","",L73*Resumen!$L$86/1000) ->  | I74: =IF($E$16=$S$1,0,IF(D74="","",Amortización!$AB$14)) ->  | J74: =IFERROR(IF(OR($E$11=Resumen!$N$6,$E$8=Resumen!$N$6),Amortización!F74*0.16,0),"") -> 0 | K74: 0 | L74: 0 | N74: =IF(OR(L73=0,L73=""),"",IF(E74>=D74,0,$E$17*10%)) ->  | S74: 0 | U74: 1.078193566 | V74: 0 | Y74: 0 | AD74: 0 | AE74: 0 | AH74: AdquisicionPremier100.077 | AI74: 11.12 | AZ74: =IFERROR(IF(OR($E$11=Resumen!$N$6,$E$8=Resumen!$N$6),Amortización!AV74*0.16,0),"") -> 0 | BA74: 0 | BB74: 0
E75: 0 | G75: =IF(D75="","",L74*Resumen!$L$86/1000) ->  | I75: =IF($E$16=$S$1,0,IF(D75="","",Amortización!$AB$14)) ->  | J75: =IFERROR(IF(OR($E$11=Resumen!$N$6,$E$8=Resumen!$N$6),Amortización!F75*0.16,0),"") -> 0 | K75: 0 | L75: 0 | S75: 0 | U75: 1.078193566 | V75: 0 | Y75: 0 | AD75: 0 | AE75: 0 | AH75: AdquisicionPremier150.0795 | AI75: 8.56 | AZ75: =IFERROR(IF(OR($E$11=Resumen!$N$6,$E$8=Resumen!$N$6),Amortización!AV75*0.16,0),"") -> 0 | BA75: 0 | BB75: 0
E76: 0 | G76: =IF(D76="","",L75*Resumen!$L$86/1000) ->  | I76: =IF($E$16=$S$1,0,IF(D76="","",Amortización!$AB$14)) ->  | J76: =IFERROR(IF(OR($E$11=Resumen!$N$6,$E$8=Resumen!$N$6),Amortización!F76*0.16,0),"") -> 0 | K76: 0 | L76: 0 | N76: =IF(OR(L75=0,L75=""),"",IF(E76>=D76,0,$E$17*10%)) ->  | S76: 0 | U76: 1.078193566 | V76: 0 | Y76: 0 | AD76: 0 | AE76: 0 | AH76: AdquisicionPremier200.0795 | AI76: 7.28 | AZ76: =IFERROR(IF(OR($E$11=Resumen!$N$6,$E$8=Resumen!$N$6),Amortización!AV76*0.16,0),"") -> 0 | BA76: 0 | BB76: 0
E77: 0 | G77: =IF(D77="","",L76*Resumen!$L$86/1000) ->  | I77: =IF($E$16=$S$1,0,IF(D77="","",Amortización!$AB$14)) ->  | J77: =IFERROR(IF(OR($E$11=Resumen!$N$6,$E$8=Resumen!$N$6),Amortización!F77*0.16,0),"") -> 0 | K77: 0 | L77: 0 | S77: 0 | U77: 1.078193566 | V77: 0 | Y77: 0 | AD77: 0 | AE77: 0 | AH77: Pago de HipotecaPremier50.0745 | AI77: 19.33 | AZ77: =IFERROR(IF(OR($E$11=Resumen!$N$6,$E$8=Resumen!$N$6),Amortización!AV77*0.16,0),"") -> 0 | BA77: 0 | BB77: 0
E78: 0 | G78: =IF(D78="","",L77*Resumen!$L$86/1000) ->  | I78: =IF($E$16=$S$1,0,IF(D78="","",Amortización!$AB$14)) ->  | J78: =IFERROR(IF(OR($E$11=Resumen!$N$6,$E$8=Resumen!$N$6),Amortización!F78*0.16,0),"") -> 0 | K78: 0 | L78: 0 | N78: =IF(OR(L77=0,L77=""),"",IF(E78>=D78,0,$E$17*10%)) ->  | S78: 0 | U78: 1.078193566 | V78: 0 | Y78: 0 | AD78: 0 | AE78: 0 | AH78: Pago de HipotecaPremier100.077 | AI78: 11.12 | AZ78: =IFERROR(IF(OR($E$11=Resumen!$N$6,$E$8=Resumen!$N$6),Amortización!AV78*0.16,0),"") -> 0 | BA78: 0 | BB78: 0
E79: 0 | G79: =IF(D79="","",L78*Resumen!$L$86/1000) ->  | I79: =IF($E$16=$S$1,0,IF(D79="","",Amortización!$AB$14)) ->  | J79: =IFERROR(IF(OR($E$11=Resumen!$N$6,$E$8=Resumen!$N$6),Amortización!F79*0.16,0),"") -> 0 | K79: 0 | L79: 0 | S79: 0 | U79: 1.078193566 | V79: 0 | Y79: 0 | AD79: 0 | AE79: 0 | AH79: Pago de HipotecaPremier150.0795 | AI79: 8.56 | AZ79: =IFERROR(IF(OR($E$11=Resumen!$N$6,$E$8=Resumen!$N$6),Amortización!AV79*0.16,0),"") -> 0 | BA79: 0 | BB79: 0
E80: 0 | G80: =IF(D80="","",L79*Resumen!$L$86/1000) ->  | I80: =IF($E$16=$S$1,0,IF(D80="","",Amortización!$AB$14)) ->  | J80: =IFERROR(IF(OR($E$11=Resumen!$N$6,$E$8=Resumen!$N$6),Amortización!F80*0.16,0),"") -> 0 | K80: 0 | L80: 0 | N80: =IF(OR(L79=0,L79=""),"",IF(E80>=D80,0,$E$17*10%)) ->  | S80: 0 | U80: 1.078193566 | V80: 0 | Y80: 0 | AD80: 0 | AE80: 0 | AH80: Pago de HipotecaPremier200.0795 | AI80: 7.28 | AZ80: =IFERROR(IF(OR($E$11=Resumen!$N$6,$E$8=Resumen!$N$6),Amortización!AV80*0.16,0),"") -> 0 | BA80: 0 | BB80: 0
E81: 0 | G81: =IF(D81="","",L80*Resumen!$L$86/1000) ->  | I81: =IF($E$16=$S$1,0,IF(D81="","",Amortización!$AB$14)) ->  | J81: =IFERROR(IF(OR($E$11=Resumen!$N$6,$E$8=Resumen!$N$6),Amortización!F81*0.16,0),"") -> 0 | K81: 0 | L81: 0 | S81: 0 | U81: 1.098679244 | V81: 0 | Y81: 0 | AD81: 0 | AE81: 0 | AZ81: =IFERROR(IF(OR($E$11=Resumen!$N$6,$E$8=Resumen!$N$6),Amortización!AV81*0.16,0),"") -> 0 | BA81: 0 | BB81: 0
E82: 0 | G82: =IF(D82="","",L81*Resumen!$L$86/1000) ->  | I82: =IF($E$16=$S$1,0,IF(D82="","",Amortización!$AB$14)) ->  | J82: =IFERROR(IF(OR($E$11=Resumen!$N$6,$E$8=Resumen!$N$6),Amortización!F82*0.16,0),"") -> 0 | K82: 0 | L82: 0 | N82: =IF(OR(L81=0,L81=""),"",IF(E82>=D82,0,$E$17*10%)) ->  | S82: 0 | U82: 1.098679244 | V82: 0 | Y82: 0 | AD82: 0 | AE82: 0 | AZ82: =IFERROR(IF(OR($E$11=Resumen!$N$6,$E$8=Resumen!$N$6),Amortización!AV82*0.16,0),"") -> 0 | BA82: 0 | BB82: 0
E83: 0 | G83: =IF(D83="","",L82*Resumen!$L$86/1000) ->  | I83: =IF($E$16=$S$1,0,IF(D83="","",Amortización!$AB$14)) ->  | J83: =IFERROR(IF(OR($E$11=Resumen!$N$6,$E$8=Resumen!$N$6),Amortización!F83*0.16,0),"") -> 0 | K83: 0 | L83: 0 | S83: 0 | U83: 1.098679244 | V83: 0 | Y83: 0 | AD83: 0 | AE83: 0 | AZ83: =IFERROR(IF(OR($E$11=Resumen!$N$6,$E$8=Resumen!$N$6),Amortización!AV83*0.16,0),"") -> 0 | BA83: 0 | BB83: 0
E84: 0 | G84: =IF(D84="","",L83*Resumen!$L$86/1000) ->  | I84: =IF($E$16=$S$1,0,IF(D84="","",Amortización!$AB$14)) ->  | J84: =IFERROR(IF(OR($E$11=Resumen!$N$6,$E$8=Resumen!$N$6),Amortización!F84*0.16,0),"") -> 0 | K84: 0 | L84: 0 | N84: =IF(OR(L83=0,L83=""),"",IF(E84>=D84,0,$E$17*10%)) ->  | S84: 0 | U84: 1.098679244 | V84: 0 | Y84: 0 | AD84: 0 | AE84: 0 | AZ84: =IFERROR(IF(OR($E$11=Resumen!$N$6,$E$8=Resumen!$N$6),Amortización!AV84*0.16,0),"") -> 0 | BA84: 0 | BB84: 0
E85: 0 | G85: =IF(D85="","",L84*Resumen!$L$86/1000) ->  | I85: =IF($E$16=$S$1,0,IF(D85="","",Amortización!$AB$14)) ->  | J85: =IFERROR(IF(OR($E$11=Resumen!$N$6,$E$8=Resumen!$N$6),Amortización!F85*0.16,0),"") -> 0 | K85: 0 | L85: 0 | M85: =IF(OR(L84=0,L84=""),"",0) ->  | S85: 0 | U85: 1.098679244 | V85: 0 | Y85: 0 | AD85: 0 | AE85: 0 | AZ85: =IFERROR(IF(OR($E$11=Resumen!$N$6,$E$8=Resumen!$N$6),Amortización!AV85*0.16,0),"") -> 0 | BA85: 0 | BB85: =IFERROR(IF(AT85="","",IF((AT85-AU85-BV85)<1,0,AT85-AU85-BV85)),0) -> 0 | BC85: =IF(OR(BB84=0,BB84=""),"",0) -> 
E86: 0 | G86: =IF(D86="","",L85*Resumen!$L$86/1000) ->  | H86: =IF($E$16=$S$1,0,IF(D86="","",IF($E$11="Liquidez","0",Y86))) ->  | I86: =IF($E$16=$S$1,0,IF(D86="","",Amortización!$AB$14)) ->  | J86: =IFERROR(IF(OR($E$11=Resumen!$N$6,$E$8=Resumen!$N$6),Amortización!F86*0.16,0),"") -> 0 | K86: =IFERROR(IF(D86="","",E86+F86+G86+H86+I86+V86+J86),0) -> 0 | L86: =IFERROR(IF(D86="","",IF((D86-E86-AF86-N86)<1,0,D86-E86-AF86-N86)),0) -> 0 | N86: =IF(OR(L85=0,L85=""),"",IF(E86>=D86,0,$E$17*10%)) ->  | R86: =IF(D86="","",E86+F86+G86+H86/1.16+I86/1.16+N86) ->  | S86: 0 | U86: 1.098679244 | V86: 0 | Y86: 0 | AD86: =IF($AE$20=0,0,IF(M86>AE85,MAX(0,M86-AE85),M86)) -> 0 | AE86: =IFERROR(MAX(0,AE85-M86),0) -> 0 | AF86: =IF($E$16="no",M86,IF(AE86>0,0,AD86)) ->  | AS86: =IF(OR(BB85="",BB85=0),"",IF(AS85+1>$K$11+$U$2,"",AS85+1)) ->  | AT86: =IF(IF(AT85="","",AT85-AU85-BJ85-BV85)<0.01,"",IF(AT85="","",BB85)) ->  | AU86: =IF($E$16=$S$1,0,IF(AT86="","",PMT($AV$10/12,$AV$11,-$AT$21)-AV86)) ->  | AW86: =IF($E$16=$S$1,0,IF(AT86="","",BB85*0/1000)) ->  | AX86: =IF($E$16=$S$1,0,IF(AT86="","",IF($E$11="Liquidez","0",0))) ->  | AY86: =IF($E$16=$S$1,0,IF(AT86="","",AT86*$AV$13/12)) ->  | AZ86: =IFERROR(IF(OR($E$11=Resumen!$N$6,$E$8=Resumen!$N$6),Amortización!AV86*0.16,0),"") -> 0 | BA86: =IFERROR(IF(AT86="","",AU86+AV86+AW86+AX86+AY86+AZ86),0) -> 0 | BB86: 0 | BG86: =AS86 ->  | BH86: =IF(AT86="","",AU86+AV86+AW86+AX86/1.16+AY86/1.16) -> 
C87: =IF(OR(L86="",L86=0),"",IF(C86+1>$K$11+$U$2,"",C86+1)) ->  | D87: =IF(IF(D86="","",D86-E86-N86-AF86)<0.01,"",IF(D86="","",L86)) ->  | E87: 0 | G87: =IF(D87="","",L86*Resumen!$L$86/1000) ->  | I87: =IF($E$16=$S$1,0,IF(D87="","",Amortización!$AB$14)) ->  | J87: =IFERROR(IF(OR($E$11=Resumen!$N$6,$E$8=Resumen!$N$6),Amortización!F87*0.16,0),"") -> 0 | K87: 0 | L87: 0 | O87: =IF(D87="","",O86) ->  | Q87: =C87 ->  | S87: 0 | U87: 1.098679244 | V87: 0 | Y87: =IF((($K$8*0.8)*($AB$13))>L86*($AB$13),($K$8*0.8)*($AB$13),($AB$13)*L86) -> 0 | AD87: 0 | AE87: 0 | AZ87: =IFERROR(IF(OR($E$11=Resumen!$N$6,$E$8=Resumen!$N$6),Amortización!AV87*0.16,0),"") -> 0 | BA87: 0 | BB87: 0
E88: 0 | G88: =IF(D88="","",L87*Resumen!$L$86/1000) ->  | I88: =IF($E$16=$S$1,0,IF(D88="","",Amortización!$AB$14)) ->  | J88: =IFERROR(IF(OR($E$11=Resumen!$N$6,$E$8=Resumen!$N$6),Amortización!F88*0.16,0),"") -> 0 | K88: 0 | L88: 0 | N88: =IF(OR(L87=0,L87=""),"",IF(E88>=D88,0,$E$17*10%)) ->  | S88: 0 | U88: 1.098679244 | V88: 0 | Y88: 0 | AD88: 0 | AE88: 0 | AV88: =IF(AT88="","",AT88*(BE88/12)) ->  | AZ88: =IFERROR(IF(OR($E$11=Resumen!$N$6,$E$8=Resumen!$N$6),Amortización!AV88*0.16,0),"") -> 0 | BA88: 0 | BB88: 0
E89: =IFERROR(IF($E$14&$E$16=$U$4,PMT(O89/12,$K$11,-$K$9)-F89,IF(D89="","",IF($E$14="Pago Fijo",MIN(IF($E$15="Mensualidad",-PMT(O89/12,$K$11-C88,D89)-F89,-PMT(O89/12,$K$11,$K$9)-F89),D89),MIN(U89*$K$9*$K$15/1000-F89,D89)))),0) -> 0 | G89: =IF(D89="","",L88*Resumen!$L$86/1000) ->  | I89: =IF($E$16=$S$1,0,IF(D89="","",Amortización!$AB$14)) ->  | J89: =IFERROR(IF(OR($E$11=Resumen!$N$6,$E$8=Resumen!$N$6),Amortización!F89*0.16,0),"") -> 0 | K89: 0 | L89: 0 | S89: =IF(ISNUMBER(Q89),IF($E$14="Pago Fijo",PMT(O89/12,$K$11,-$K$9),U89*$K$15*$K$9/1000)+G89+AF89+H89/1.16+$AB$14/1.16,0)+IF($E$16&L89=$AB$1,$N$8,0) -> 0 | U89: 1.098679244 | V89: 0 | Y89: 0 | AD89: 0 | AE89: 0 | AZ89: =IFERROR(IF(OR($E$11=Resumen!$N$6,$E$8=Resumen!$N$6),Amortización!AV89*0.16,0),"") -> 0 | BA89: 0 | BB89: 0
E90: 0 | F90: =IF(D90="","",D90*(O90/12)) ->  | G90: =IF(D90="","",L89*Resumen!$L$86/1000) ->  | I90: =IF($E$16=$S$1,0,IF(D90="","",Amortización!$AB$14)) ->  | J90: =IFERROR(IF(OR($E$11=Resumen!$N$6,$E$8=Resumen!$N$6),Amortización!F90*0.16,0),"") -> 0 | K90: 0 | L90: 0 | N90: =IF(OR(L89=0,L89=""),"",IF(E90>=D90,0,$E$17*10%)) ->  | S90: 0 | U90: 1.098679244 | V90: 0 | Y90: 0 | AD90: 0 | AE90: 0 | AZ90: =IFERROR(IF(OR($E$11=Resumen!$N$6,$E$8=Resumen!$N$6),Amortización!AV90*0.16,0),"") -> 0 | BA90: 0 | BB90: 0
E91: 0 | G91: =IF(D91="","",L90*Resumen!$L$86/1000) ->  | I91: =IF($E$16=$S$1,0,IF(D91="","",Amortización!$AB$14)) ->  | J91: =IFERROR(IF(OR($E$11=Resumen!$N$6,$E$8=Resumen!$N$6),Amortización!F91*0.16,0),"") -> 0 | K91: 0 | L91: 0 | S91: 0 | U91: 1.098679244 | V91: 0 | Y91: 0 | AD91: 0 | AE91: 0 | AZ91: =IFERROR(IF(OR($E$11=Resumen!$N$6,$E$8=Resumen!$N$6),Amortización!AV91*0.16,0),"") -> 0 | BA91: 0 | BB91: 0
E92: 0 | G92: =IF(D92="","",L91*Resumen!$L$86/1000) ->  | I92: =IF($E$16=$S$1,0,IF(D92="","",Amortización!$AB$14)) ->  | J92: =IFERROR(IF(OR($E$11=Resumen!$N$6,$E$8=Resumen!$N$6),Amortización!F92*0.16,0),"") -> 0 | K92: 0 | L92: 0 | N92: =IF(OR(L91=0,L91=""),"",IF(E92>=D92,0,$E$17*10%)) ->  | S92: 0 | U92: 1.098679244 | V92: 0 | Y92: 0 | AD92: 0 | AE92: 0 | AZ92: =IFERROR(IF(OR($E$11=Resumen!$N$6,$E$8=Resumen!$N$6),Amortización!AV92*0.16,0),"") -> 0 | BA92: 0 | BB92: 0
E93: 0 | G93: =IF(D93="","",L92*Resumen!$L$86/1000) ->  | I93: =IF($E$16=$S$1,0,IF(D93="","",Amortización!$AB$14)) ->  | J93: =IFERROR(IF(OR($E$11=Resumen!$N$6,$E$8=Resumen!$N$6),Amortización!F93*0.16,0),"") -> 0 | K93: 0 | L93: 0 | S93: 0 | U93: 1.11955415 | V93: 0 | Y93: 0 | AD93: 0 | AE93: 0 | AZ93: =IFERROR(IF(OR($E$11=Resumen!$N$6,$E$8=Resumen!$N$6),Amortización!AV93*0.16,0),"") -> 0 | BA93: 0 | BB93: 0
E94: 0 | G94: =IF(D94="","",L93*Resumen!$L$86/1000) ->  | I94: =IF($E$16=$S$1,0,IF(D94="","",Amortización!$AB$14)) ->  | J94: =IFERROR(IF(OR($E$11=Resumen!$N$6,$E$8=Resumen!$N$6),Amortización!F94*0.16,0),"") -> 0 | K94: 0 | L94: 0 | N94: =IF(OR(L93=0,L93=""),"",IF(E94>=D94,0,$E$17*10%)) ->  | S94: 0 | U94: 1.11955415 | V94: 0 | Y94: 0 | AD94: 0 | AE94: 0 | AZ94: =IFERROR(IF(OR($E$11=Resumen!$N$6,$E$8=Resumen!$N$6),Amortización!AV94*0.16,0),"") -> 0 | BA94: 0 | BB94: 0
E95: 0 | G95: =IF(D95="","",L94*Resumen!$L$86/1000) ->  | I95: =IF($E$16=$S$1,0,IF(D95="","",Amortización!$AB$14)) ->  | J95: =IFERROR(IF(OR($E$11=Resumen!$N$6,$E$8=Resumen!$N$6),Amortización!F95*0.16,0),"") -> 0 | K95: 0 | L95: 0 | S95: 0 | U95: 1.11955415 | V95: 0 | Y95: 0 | AD95: 0 | AE95: 0 | AZ95: =IFERROR(IF(OR($E$11=Resumen!$N$6,$E$8=Resumen!$N$6),Amortización!AV95*0.16,0),"") -> 0 | BA95: 0 | BB95: 0
E96: 0 | G96: =IF(D96="","",L95*Resumen!$L$86/1000) ->  | I96: =IF($E$16=$S$1,0,IF(D96="","",Amortización!$AB$14)) ->  | J96: =IFERROR(IF(OR($E$11=Resumen!$N$6,$E$8=Resumen!$N$6),Amortización!F96*0.16,0),"") -> 0 | K96: 0 | L96: 0 | N96: =IF(OR(L95=0,L95=""),"",IF(E96>=D96,0,$E$17*10%)) ->  | S96: 0 | U96: 1.11955415 | V96: 0 | Y96: 0 | AD96: 0 | AE96: 0 | AZ96: =IFERROR(IF(OR($E$11=Resumen!$N$6,$E$8=Resumen!$N$6),Amortización!AV96*0.16,0),"") -> 0 | BA96: 0 | BB96: 0
E97: 0 | G97: =IF(D97="","",L96*Resumen!$L$86/1000) ->  | I97: =IF($E$16=$S$1,0,IF(D97="","",Amortización!$AB$14)) ->  | J97: =IFERROR(IF(OR($E$11=Resumen!$N$6,$E$8=Resumen!$N$6),Amortización!F97*0.16,0),"") -> 0 | K97: 0 | L97: 0 | S97: 0 | U97: 1.11955415 | V97: 0 | Y97: 0 | AD97: 0 | AE97: 0 | AZ97: =IFERROR(IF(OR($E$11=Resumen!$N$6,$E$8=Resumen!$N$6),Amortización!AV97*0.16,0),"") -> 0 | BA97: 0 | BB97: 0
E98: 0 | G98: =IF(D98="","",L97*Resumen!$L$86/1000) ->  | I98: =IF($E$16=$S$1,0,IF(D98="","",Amortización!$AB$14)) ->  | J98: =IFERROR(IF(OR($E$11=Resumen!$N$6,$E$8=Resumen!$N$6),Amortización!F98*0.16,0),"") -> 0 | K98: 0 | L98: 0 | N98: =IF(OR(L97=0,L97=""),"",IF(E98>=D98,0,$E$17*10%)) ->  | S98: 0 | U98: 1.11955415 | V98: 0 | Y98: 0 | AD98: 0 | AE98: 0 | AZ98: =IFERROR(IF(OR($E$11=Resumen!$N$6,$E$8=Resumen!$N$6),Amortización!AV98*0.16,0),"") -> 0 | BA98: 0 | BB98: 0
E99: 0 | G99: =IF(D99="","",L98*Resumen!$L$86/1000) ->  | I99: =IF($E$16=$S$1,0,IF(D99="","",Amortización!$AB$14)) ->  | J99: =IFERROR(IF(OR($E$11=Resumen!$N$6,$E$8=Resumen!$N$6),Amortización!F99*0.16,0),"") -> 0 | K99: 0 | L99: 0 | S99: 0 | U99: 1.11955415 | V99: 0 | Y99: 0 | AD99: 0 | AE99: 0 | AZ99: =IFERROR(IF(OR($E$11=Resumen!$N$6,$E$8=Resumen!$N$6),Amortización!AV99*0.16,0),"") -> 0 | BA99: 0 | BB99: 0
E100: 0 | G100: =IF(D100="","",L99*Resumen!$L$86/1000) ->  | I100: =IF($E$16=$S$1,0,IF(D100="","",Amortización!$AB$14)) ->  | J100: =IFERROR(IF(OR($E$11=Resumen!$N$6,$E$8=Resumen!$N$6),Amortización!F100*0.16,0),"") -> 0 | K100: 0 | L100: 0 | N100: =IF(OR(L99=0,L99=""),"",IF(E100>=D100,0,$E$17*10%)) ->  | S100: 0 | U100: =IF(OR(AND($E$8="Adquisicion",$E$9="Premier"),AND($E$8="Exclusiva",$E$9="Premier"),AND($E$8="Exclusiva",$E$9="No Premier")),U88*1.019,IF(AND($E$8="Adquisicion",$E$9="No Premier"),U88*1.019,IF($E$8="Pago de Hipoteca",U88*1.019))) -> 1.11955415 | V100: 0 | Y100: 0 | AD100: 0 | AE100: 0 | AZ100: =IFERROR(IF(OR($E$11=Resumen!$N$6,$E$8=Resumen!$N$6),Amortización!AV100*0.16,0),"") -> 0 | BA100: 0 | BB100: 0
E101: 0 | G101: =IF(D101="","",L100*Resumen!$L$86/1000) ->  | I101: =IF($E$16=$S$1,0,IF(D101="","",Amortización!$AB$14)) ->  | J101: =IFERROR(IF(OR($E$11=Resumen!$N$6,$E$8=Resumen!$N$6),Amortización!F101*0.16,0),"") -> 0 | K101: 0 | L101: 0 | S101: 0 | U101: 1.11955415 | V101: 0 | Y101: 0 | AD101: 0 | AE101: 0 | AZ101: =IFERROR(IF(OR($E$11=Resumen!$N$6,$E$8=Resumen!$N$6),Amortización!AV101*0.16,0),"") -> 0 | BA101: 0 | BB101: 0
E102: 0 | G102: =IF(D102="","",L101*Resumen!$L$86/1000) ->  | I102: =IF($E$16=$S$1,0,IF(D102="","",Amortización!$AB$14)) ->  | J102: =IFERROR(IF(OR($E$11=Resumen!$N$6,$E$8=Resumen!$N$6),Amortización!F102*0.16,0),"") -> 0 | K102: 0 | L102: 0 | N102: =IF(OR(L101=0,L101=""),"",IF(E102>=D102,0,$E$17*10%)) ->  | S102: 0 | U102: 1.11955415 | V102: 0 | Y102: 0 | AD102: 0 | AE102: 0 | AZ102: =IFERROR(IF(OR($E$11=Resumen!$N$6,$E$8=Resumen!$N$6),Amortización!AV102*0.16,0),"") -> 0 | BA102: 0 | BB102: 0
E103: 0 | G103: =IF(D103="","",L102*Resumen!$L$86/1000) ->  | I103: =IF($E$16=$S$1,0,IF(D103="","",Amortización!$AB$14)) ->  | J103: =IFERROR(IF(OR($E$11=Resumen!$N$6,$E$8=Resumen!$N$6),Amortización!F103*0.16,0),"") -> 0 | K103: 0 | L103: 0 | S103: 0 | U103: 1.11955415 | V103: 0 | Y103: 0 | AD103: 0 | AE103: 0 | AZ103: =IFERROR(IF(OR($E$11=Resumen!$N$6,$E$8=Resumen!$N$6),Amortización!AV103*0.16,0),"") -> 0 | BA103: 0 | BB103: 0
E104: 0 | G104: =IF(D104="","",L103*Resumen!$L$86/1000) ->  | I104: =IF($E$16=$S$1,0,IF(D104="","",Amortización!$AB$14)) ->  | J104: =IFERROR(IF(OR($E$11=Resumen!$N$6,$E$8=Resumen!$N$6),Amortización!F104*0.16,0),"") -> 0 | K104: 0 | L104: 0 | N104: =IF(OR(L103=0,L103=""),"",IF(E104>=D104,0,$E$17*10%)) ->  | S104: 0 | U104: 1.11955415 | V104: 0 | Y104: 0 | AD104: 0 | AE104: 0 | AZ104: =IFERROR(IF(OR($E$11=Resumen!$N$6,$E$8=Resumen!$N$6),Amortización!AV104*0.16,0),"") -> 0 | BA104: 0 | BB104: 0
E105: 0 | G105: =IF(D105="","",L104*Resumen!$L$86/1000) ->  | I105: =IF($E$16=$S$1,0,IF(D105="","",Amortización!$AB$14)) ->  | J105: =IFERROR(IF(OR($E$11=Resumen!$N$6,$E$8=Resumen!$N$6),Amortización!F105*0.16,0),"") -> 0 | K105: 0 | L105: 0 | S105: 0 | U105: 1.140825679 | V105: 0 | Y105: 0 | AD105: 0 | AE105: 0 | AZ105: =IFERROR(IF(OR($E$11=Resumen!$N$6,$E$8=Resumen!$N$6),Amortización!AV105*0.16,0),"") -> 0 | BA105: 0 | BB105: 0
E106: 0 | G106: =IF(D106="","",L105*Resumen!$L$86/1000) ->  | I106: =IF($E$16=$S$1,0,IF(D106="","",Amortización!$AB$14)) ->  | J106: =IFERROR(IF(OR($E$11=Resumen!$N$6,$E$8=Resumen!$N$6),Amortización!F106*0.16,0),"") -> 0 | K106: 0 | L106: 0 | N106: =IF(OR(L105=0,L105=""),"",IF(E106>=D106,0,$E$17*10%)) ->  | S106: 0 | U106: 1.140825679 | V106: 0 | Y106: 0 | AD106: 0 | AE106: 0 | AZ106: =IFERROR(IF(OR($E$11=Resumen!$N$6,$E$8=Resumen!$N$6),Amortización!AV106*0.16,0),"") -> 0 | BA106: 0 | BB106: 0
E107: 0 | G107: =IF(D107="","",L106*Resumen!$L$86/1000) ->  | I107: =IF($E$16=$S$1,0,IF(D107="","",Amortización!$AB$14)) ->  | J107: =IFERROR(IF(OR($E$11=Resumen!$N$6,$E$8=Resumen!$N$6),Amortización!F107*0.16,0),"") -> 0 | K107: 0 | L107: 0 | S107: 0 | U107: 1.140825679 | V107: 0 | Y107: 0 | AD107: 0 | AE107: 0 | AZ107: =IFERROR(IF(OR($E$11=Resumen!$N$6,$E$8=Resumen!$N$6),Amortización!AV107*0.16,0),"") -> 0 | BA107: 0 | BB107: 0
E108: 0 | G108: =IF(D108="","",L107*Resumen!$L$86/1000) ->  | I108: =IF($E$16=$S$1,0,IF(D108="","",Amortización!$AB$14)) ->  | J108: =IFERROR(IF(OR($E$11=Resumen!$N$6,$E$8=Resumen!$N$6),Amortización!F108*0.16,0),"") -> 0 | K108: 0 | L108: 0 | N108: =IF(OR(L107=0,L107=""),"",IF(E108>=D108,0,$E$17*10%)) ->  | S108: 0 | U108: 1.140825679 | V108: 0 | Y108: 0 | AD108: 0 | AE108: 0 | AZ108: =IFERROR(IF(OR($E$11=Resumen!$N$6,$E$8=Resumen!$N$6),Amortización!AV108*0.16,0),"") -> 0 | BA108: 0 | BB108: 0
E109: 0 | G109: =IF(D109="","",L108*Resumen!$L$86/1000) ->  | I109: =IF($E$16=$S$1,0,IF(D109="","",Amortización!$AB$14)) ->  | J109: =IFERROR(IF(OR($E$11=Resumen!$N$6,$E$8=Resumen!$N$6),Amortización!F109*0.16,0),"") -> 0 | K109: 0 | L109: 0 | S109: 0 | U109: 1.140825679 | V109: 0 | Y109: 0 | AD109: 0 | AE109: 0 | AZ109: =IFERROR(IF(OR($E$11=Resumen!$N$6,$E$8=Resumen!$N$6),Amortización!AV109*0.16,0),"") -> 0 | BA109: 0 | BB109: 0
E110: 0 | G110: =IF(D110="","",L109*Resumen!$L$86/1000) ->  | I110: =IF($E$16=$S$1,0,IF(D110="","",Amortización!$AB$14)) ->  | J110: =IFERROR(IF(OR($E$11=Resumen!$N$6,$E$8=Resumen!$N$6),Amortización!F110*0.16,0),"") -> 0 | K110: 0 | L110: 0 | N110: =IF(OR(L109=0,L109=""),"",IF(E110>=D110,0,$E$17*10%)) ->  | S110: 0 | U110: 1.140825679 | V110: 0 | Y110: 0 | AD110: 0 | AE110: 0 | AZ110: =IFERROR(IF(OR($E$11=Resumen!$N$6,$E$8=Resumen!$N$6),Amortización!AV110*0.16,0),"") -> 0 | BA110: 0 | BB110: 0 | BE110: =IF(AT110="","",BE109) -> 
E111: 0 | G111: =IF(D111="","",L110*Resumen!$L$86/1000) ->  | I111: =IF($E$16=$S$1,0,IF(D111="","",Amortización!$AB$14)) ->  | J111: =IFERROR(IF(OR($E$11=Resumen!$N$6,$E$8=Resumen!$N$6),Amortización!F111*0.16,0),"") -> 0 | K111: 0 | L111: 0 | S111: 0 | U111: 1.140825679 | V111: 0 | Y111: 0 | AD111: 0 | AE111: 0 | AZ111: =IFERROR(IF(OR($E$11=Resumen!$N$6,$E$8=Resumen!$N$6),Amortización!AV111*0.16,0),"") -> 0 | BA111: 0 | BB111: 0
E112: 0 | G112: =IF(D112="","",L111*Resumen!$L$86/1000) ->  | I112: =IF($E$16=$S$1,0,IF(D112="","",Amortización!$AB$14)) ->  | J112: =IFERROR(IF(OR($E$11=Resumen!$N$6,$E$8=Resumen!$N$6),Amortización!F112*0.16,0),"") -> 0 | K112: 0 | L112: 0 | N112: =IF(OR(L111=0,L111=""),"",IF(E112>=D112,0,$E$17*10%)) ->  | S112: 0 | U112: 1.140825679 | V112: 0 | Y112: 0 | AD112: 0 | AE112: 0 | AZ112: =IFERROR(IF(OR($E$11=Resumen!$N$6,$E$8=Resumen!$N$6),Amortización!AV112*0.16,0),"") -> 0 | BA112: 0 | BB112: 0
E113: 0 | G113: =IF(D113="","",L112*Resumen!$L$86/1000) ->  | I113: =IF($E$16=$S$1,0,IF(D113="","",Amortización!$AB$14)) ->  | J113: =IFERROR(IF(OR($E$11=Resumen!$N$6,$E$8=Resumen!$N$6),Amortización!F113*0.16,0),"") -> 0 | K113: 0 | L113: 0 | S113: 0 | U113: 1.140825679 | V113: 0 | Y113: 0 | AD113: 0 | AE113: 0 | AZ113: =IFERROR(IF(OR($E$11=Resumen!$N$6,$E$8=Resumen!$N$6),Amortización!AV113*0.16,0),"") -> 0 | BA113: 0 | BB113: 0
E114: 0 | G114: =IF(D114="","",L113*Resumen!$L$86/1000) ->  | I114: =IF($E$16=$S$1,0,IF(D114="","",Amortización!$AB$14)) ->  | J114: =IFERROR(IF(OR($E$11=Resumen!$N$6,$E$8=Resumen!$N$6),Amortización!F114*0.16,0),"") -> 0 | K114: 0 | L114: 0 | N114: =IF(OR(L113=0,L113=""),"",IF(E114>=D114,0,$E$17*10%)) ->  | S114: 0 | U114: 1.140825679 | V114: 0 | Y114: 0 | AD114: 0 | AE114: 0 | AZ114: =IFERROR(IF(OR($E$11=Resumen!$N$6,$E$8=Resumen!$N$6),Amortización!AV114*0.16,0),"") -> 0 | BA114: 0 | BB114: 0
E115: 0 | G115: =IF(D115="","",L114*Resumen!$L$86/1000) ->  | I115: =IF($E$16=$S$1,0,IF(D115="","",Amortización!$AB$14)) ->  | J115: =IFERROR(IF(OR($E$11=Resumen!$N$6,$E$8=Resumen!$N$6),Amortización!F115*0.16,0),"") -> 0 | K115: 0 | L115: 0 | S115: 0 | U115: 1.140825679 | V115: 0 | Y115: 0 | AD115: 0 | AE115: 0 | AZ115: =IFERROR(IF(OR($E$11=Resumen!$N$6,$E$8=Resumen!$N$6),Amortización!AV115*0.16,0),"") -> 0 | BA115: 0 | BB115: 0
E116: 0 | G116: =IF(D116="","",L115*Resumen!$L$86/1000) ->  | I116: =IF($E$16=$S$1,0,IF(D116="","",Amortización!$AB$14)) ->  | J116: =IFERROR(IF(OR($E$11=Resumen!$N$6,$E$8=Resumen!$N$6),Amortización!F116*0.16,0),"") -> 0 | K116: 0 | L116: 0 | N116: =IF(OR(L115=0,L115=""),"",IF(E116>=D116,0,$E$17*10%)) ->  | S116: 0 | U116: 1.140825679 | V116: 0 | Y116: 0 | AD116: 0 | AE116: 0 | AZ116: =IFERROR(IF(OR($E$11=Resumen!$N$6,$E$8=Resumen!$N$6),Amortización!AV116*0.16,0),"") -> 0 | BA116: 0 | BB116: 0
E117: 0 | G117: =IF(D117="","",L116*Resumen!$L$86/1000) ->  | I117: =IF($E$16=$S$1,0,IF(D117="","",Amortización!$AB$14)) ->  | J117: =IFERROR(IF(OR($E$11=Resumen!$N$6,$E$8=Resumen!$N$6),Amortización!F117*0.16,0),"") -> 0 | K117: 0 | L117: 0 | S117: 0 | U117: 1.162501366 | V117: 0 | Y117: 0 | AD117: 0 | AE117: 0 | AZ117: =IFERROR(IF(OR($E$11=Resumen!$N$6,$E$8=Resumen!$N$6),Amortización!AV117*0.16,0),"") -> 0 | BA117: 0 | BB117: 0
E118: 0 | G118: =IF(D118="","",L117*Resumen!$L$86/1000) ->  | I118: =IF($E$16=$S$1,0,IF(D118="","",Amortización!$AB$14)) ->  | J118: =IFERROR(IF(OR($E$11=Resumen!$N$6,$E$8=Resumen!$N$6),Amortización!F118*0.16,0),"") -> 0 | K118: 0 | L118: 0 | N118: =IF(OR(L117=0,L117=""),"",IF(E118>=D118,0,$E$17*10%)) ->  | S118: 0 | U118: 1.162501366 | V118: 0 | Y118: 0 | AD118: 0 | AE118: 0 | AZ118: =IFERROR(IF(OR($E$11=Resumen!$N$6,$E$8=Resumen!$N$6),Amortización!AV118*0.16,0),"") -> 0 | BA118: 0 | BB118: 0
E119: 0 | G119: =IF(D119="","",L118*Resumen!$L$86/1000) ->  | I119: =IF($E$16=$S$1,0,IF(D119="","",Amortización!$AB$14)) ->  | J119: =IFERROR(IF(OR($E$11=Resumen!$N$6,$E$8=Resumen!$N$6),Amortización!F119*0.16,0),"") -> 0 | K119: 0 | L119: 0 | S119: 0 | U119: 1.162501366 | V119: 0 | Y119: 0 | AD119: 0 | AE119: 0 | AZ119: =IFERROR(IF(OR($E$11=Resumen!$N$6,$E$8=Resumen!$N$6),Amortización!AV119*0.16,0),"") -> 0 | BA119: 0 | BB119: 0
E120: 0 | G120: =IF(D120="","",L119*Resumen!$L$86/1000) ->  | I120: =IF($E$16=$S$1,0,IF(D120="","",Amortización!$AB$14)) ->  | J120: =IFERROR(IF(OR($E$11=Resumen!$N$6,$E$8=Resumen!$N$6),Amortización!F120*0.16,0),"") -> 0 | K120: 0 | L120: 0 | N120: =IF(OR(L119=0,L119=""),"",IF(E120>=D120,0,$E$17*10%)) ->  | S120: 0 | U120: 1.162501366 | V120: 0 | Y120: 0 | AD120: 0 | AE120: 0 | AZ120: =IFERROR(IF(OR($E$11=Resumen!$N$6,$E$8=Resumen!$N$6),Amortización!AV120*0.16,0),"") -> 0 | BA120: 0 | BB120: 0
E121: 0 | G121: =IF(D121="","",L120*Resumen!$L$86/1000) ->  | I121: =IF($E$16=$S$1,0,IF(D121="","",Amortización!$AB$14)) ->  | J121: =IFERROR(IF(OR($E$11=Resumen!$N$6,$E$8=Resumen!$N$6),Amortización!F121*0.16,0),"") -> 0 | K121: 0 | L121: 0 | S121: 0 | U121: 1.162501366 | V121: 0 | Y121: 0 | AD121: 0 | AE121: 0 | AZ121: =IFERROR(IF(OR($E$11=Resumen!$N$6,$E$8=Resumen!$N$6),Amortización!AV121*0.16,0),"") -> 0 | BA121: 0 | BB121: 0
E122: 0 | G122: =IF(D122="","",L121*Resumen!$L$86/1000) ->  | I122: =IF($E$16=$S$1,0,IF(D122="","",Amortización!$AB$14)) ->  | J122: =IFERROR(IF(OR($E$11=Resumen!$N$6,$E$8=Resumen!$N$6),Amortización!F122*0.16,0),"") -> 0 | K122: 0 | L122: 0 | N122: =IF(OR(L121=0,L121=""),"",IF(E122>=D122,0,$E$17*10%)) ->  | S122: 0 | U122: 1.162501366 | V122: 0 | Y122: 0 | AD122: 0 | AE122: 0 | AZ122: =IFERROR(IF(OR($E$11=Resumen!$N$6,$E$8=Resumen!$N$6),Amortización!AV122*0.16,0),"") -> 0 | BA122: 0 | BB122: 0
E123: 0 | G123: =IF(D123="","",L122*Resumen!$L$86/1000) ->  | I123: =IF($E$16=$S$1,0,IF(D123="","",Amortización!$AB$14)) ->  | J123: =IFERROR(IF(OR($E$11=Resumen!$N$6,$E$8=Resumen!$N$6),Amortización!F123*0.16,0),"") -> 0 | K123: 0 | L123: 0 | S123: 0 | U123: 1.162501366 | V123: 0 | Y123: 0 | AD123: 0 | AE123: 0 | AZ123: =IFERROR(IF(OR($E$11=Resumen!$N$6,$E$8=Resumen!$N$6),Amortización!AV123*0.16,0),"") -> 0 | BA123: 0 | BB123: 0
E124: 0 | G124: =IF(D124="","",L123*Resumen!$L$86/1000) ->  | I124: =IF($E$16=$S$1,0,IF(D124="","",Amortización!$AB$14)) ->  | J124: =IFERROR(IF(OR($E$11=Resumen!$N$6,$E$8=Resumen!$N$6),Amortización!F124*0.16,0),"") -> 0 | K124: 0 | L124: 0 | N124: =IF(OR(L123=0,L123=""),"",IF(E124>=D124,0,$E$17*10%)) ->  | S124: 0 | U124: 1.162501366 | V124: 0 | Y124: 0 | AD124: 0 | AE124: 0 | AZ124: =IFERROR(IF(OR($E$11=Resumen!$N$6,$E$8=Resumen!$N$6),Amortización!AV124*0.16,0),"") -> 0 | BA124: 0 | BB124: 0
E125: 0 | G125: =IF(D125="","",L124*Resumen!$L$86/1000) ->  | I125: =IF($E$16=$S$1,0,IF(D125="","",Amortización!$AB$14)) ->  | J125: =IFERROR(IF(OR($E$11=Resumen!$N$6,$E$8=Resumen!$N$6),Amortización!F125*0.16,0),"") -> 0 | K125: 0 | L125: 0 | S125: 0 | U125: 1.162501366 | V125: 0 | Y125: 0 | AD125: 0 | AE125: 0 | AZ125: =IFERROR(IF(OR($E$11=Resumen!$N$6,$E$8=Resumen!$N$6),Amortización!AV125*0.16,0),"") -> 0 | BA125: 0 | BB125: 0
E126: 0 | G126: =IF(D126="","",L125*Resumen!$L$86/1000) ->  | I126: =IF($E$16=$S$1,0,IF(D126="","",Amortización!$AB$14)) ->  | J126: =IFERROR(IF(OR($E$11=Resumen!$N$6,$E$8=Resumen!$N$6),Amortización!F126*0.16,0),"") -> 0 | K126: 0 | L126: 0 | N126: =IF(OR(L125=0,L125=""),"",IF(E126>=D126,0,$E$17*10%)) ->  | S126: 0 | U126: 1.162501366 | V126: 0 | Y126: 0 | AD126: 0 | AE126: 0 | AZ126: =IFERROR(IF(OR($E$11=Resumen!$N$6,$E$8=Resumen!$N$6),Amortización!AV126*0.16,0),"") -> 0 | BA126: 0 | BB126: 0
E127: 0 | G127: =IF(D127="","",L126*Resumen!$L$86/1000) ->  | I127: =IF($E$16=$S$1,0,IF(D127="","",Amortización!$AB$14)) ->  | J127: =IFERROR(IF(OR($E$11=Resumen!$N$6,$E$8=Resumen!$N$6),Amortización!F127*0.16,0),"") -> 0 | K127: 0 | L127: 0 | S127: 0 | U127: 1.162501366 | V127: 0 | Y127: 0 | AD127: 0 | AE127: 0 | AZ127: =IFERROR(IF(OR($E$11=Resumen!$N$6,$E$8=Resumen!$N$6),Amortización!AV127*0.16,0),"") -> 0 | BA127: 0 | BB127: 0
E128: 0 | G128: =IF(D128="","",L127*Resumen!$L$86/1000) ->  | I128: =IF($E$16=$S$1,0,IF(D128="","",Amortización!$AB$14)) ->  | J128: =IFERROR(IF(OR($E$11=Resumen!$N$6,$E$8=Resumen!$N$6),Amortización!F128*0.16,0),"") -> 0 | K128: 0 | L128: 0 | N128: =IF(OR(L127=0,L127=""),"",IF(E128>=D128,0,$E$17*10%)) ->  | S128: 0 | U128: 1.162501366 | V128: 0 | Y128: 0 | AD128: 0 | AE128: 0 | AZ128: =IFERROR(IF(OR($E$11=Resumen!$N$6,$E$8=Resumen!$N$6),Amortización!AV128*0.16,0),"") -> 0 | BA128: 0 | BB128: 0
E129: 0 | G129: =IF(D129="","",L128*Resumen!$L$86/1000) ->  | I129: =IF($E$16=$S$1,0,IF(D129="","",Amortización!$AB$14)) ->  | J129: =IFERROR(IF(OR($E$11=Resumen!$N$6,$E$8=Resumen!$N$6),Amortización!F129*0.16,0),"") -> 0 | K129: 0 | L129: 0 | S129: 0 | U129: 1.184588892 | V129: 0 | Y129: 0 | AD129: 0 | AE129: 0 | AZ129: =IFERROR(IF(OR($E$11=Resumen!$N$6,$E$8=Resumen!$N$6),Amortización!AV129*0.16,0),"") -> 0 | BA129: 0 | BB129: 0
E130: 0 | G130: =IF(D130="","",L129*Resumen!$L$86/1000) ->  | I130: =IF($E$16=$S$1,0,IF(D130="","",Amortización!$AB$14)) ->  | J130: =IFERROR(IF(OR($E$11=Resumen!$N$6,$E$8=Resumen!$N$6),Amortización!F130*0.16,0),"") -> 0 | K130: 0 | L130: 0 | N130: =IF(OR(L129=0,L129=""),"",IF(E130>=D130,0,$E$17*10%)) ->  | S130: 0 | U130: 1.184588892 | V130: 0 | Y130: 0 | AD130: 0 | AE130: 0 | AZ130: =IFERROR(IF(OR($E$11=Resumen!$N$6,$E$8=Resumen!$N$6),Amortización!AV130*0.16,0),"") -> 0 | BA130: 0 | BB130: 0
E131: 0 | G131: =IF(D131="","",L130*Resumen!$L$86/1000) ->  | I131: =IF($E$16=$S$1,0,IF(D131="","",Amortización!$AB$14)) ->  | J131: =IFERROR(IF(OR($E$11=Resumen!$N$6,$E$8=Resumen!$N$6),Amortización!F131*0.16,0),"") -> 0 | K131: 0 | L131: 0 | S131: 0 | U131: 1.184588892 | V131: 0 | Y131: 0 | AD131: 0 | AE131: 0 | AZ131: =IFERROR(IF(OR($E$11=Resumen!$N$6,$E$8=Resumen!$N$6),Amortización!AV131*0.16,0),"") -> 0 | BA131: 0 | BB131: 0
E132: 0 | G132: =IF(D132="","",L131*Resumen!$L$86/1000) ->  | I132: =IF($E$16=$S$1,0,IF(D132="","",Amortización!$AB$14)) ->  | J132: =IFERROR(IF(OR($E$11=Resumen!$N$6,$E$8=Resumen!$N$6),Amortización!F132*0.16,0),"") -> 0 | K132: 0 | L132: 0 | N132: =IF(OR(L131=0,L131=""),"",IF(E132>=D132,0,$E$17*10%)) ->  | S132: 0 | U132: =IF(OR(AND($E$8="Adquisicion",$E$9="Premier"),AND($E$8="Exclusiva",$E$9="Premier"),AND($E$8="Exclusiva",$E$9="No Premier")),U120*1.019,IF(AND($E$8="Adquisicion",$E$9="No Premier"),U120*1.019,IF($E$8="Pago de Hipoteca",U120*1.019))) -> 1.184588892 | V132: 0 | Y132: 0 | AD132: 0 | AE132: 0 | AZ132: =IFERROR(IF(OR($E$11=Resumen!$N$6,$E$8=Resumen!$N$6),Amortización!AV132*0.16,0),"") -> 0 | BA132: 0 | BB132: 0
E133: 0 | G133: =IF(D133="","",L132*Resumen!$L$86/1000) ->  | I133: =IF($E$16=$S$1,0,IF(D133="","",Amortización!$AB$14)) ->  | J133: =IFERROR(IF(OR($E$11=Resumen!$N$6,$E$8=Resumen!$N$6),Amortización!F133*0.16,0),"") -> 0 | K133: 0 | L133: 0 | S133: 0 | U133: 1.184588892 | V133: 0 | Y133: 0 | AD133: 0 | AE133: 0 | AZ133: =IFERROR(IF(OR($E$11=Resumen!$N$6,$E$8=Resumen!$N$6),Amortización!AV133*0.16,0),"") -> 0 | BA133: 0 | BB133: 0
E134: 0 | G134: =IF(D134="","",L133*Resumen!$L$86/1000) ->  | I134: =IF($E$16=$S$1,0,IF(D134="","",Amortización!$AB$14)) ->  | J134: =IFERROR(IF(OR($E$11=Resumen!$N$6,$E$8=Resumen!$N$6),Amortización!F134*0.16,0),"") -> 0 | K134: 0 | L134: 0 | N134: =IF(OR(L133=0,L133=""),"",IF(E134>=D134,0,$E$17*10%)) ->  | S134: 0 | U134: 1.184588892 | V134: 0 | Y134: 0 | AD134: 0 | AE134: 0 | AZ134: =IFERROR(IF(OR($E$11=Resumen!$N$6,$E$8=Resumen!$N$6),Amortización!AV134*0.16,0),"") -> 0 | BA134: 0 | BB134: 0
E135: 0 | G135: =IF(D135="","",L134*Resumen!$L$86/1000) ->  | I135: =IF($E$16=$S$1,0,IF(D135="","",Amortización!$AB$14)) ->  | J135: =IFERROR(IF(OR($E$11=Resumen!$N$6,$E$8=Resumen!$N$6),Amortización!F135*0.16,0),"") -> 0 | K135: 0 | L135: 0 | S135: 0 | U135: 1.184588892 | V135: 0 | Y135: 0 | AD135: 0 | AE135: 0 | AZ135: =IFERROR(IF(OR($E$11=Resumen!$N$6,$E$8=Resumen!$N$6),Amortización!AV135*0.16,0),"") -> 0 | BA135: 0 | BB135: 0
E136: 0 | G136: =IF(D136="","",L135*Resumen!$L$86/1000) ->  | I136: =IF($E$16=$S$1,0,IF(D136="","",Amortización!$AB$14)) ->  | J136: =IFERROR(IF(OR($E$11=Resumen!$N$6,$E$8=Resumen!$N$6),Amortización!F136*0.16,0),"") -> 0 | K136: 0 | L136: 0 | N136: =IF(OR(L135=0,L135=""),"",IF(E136>=D136,0,$E$17*10%)) ->  | S136: 0 | U136: 1.184588892 | V136: 0 | Y136: 0 | AD136: 0 | AE136: 0 | AZ136: =IFERROR(IF(OR($E$11=Resumen!$N$6,$E$8=Resumen!$N$6),Amortización!AV136*0.16,0),"") -> 0 | BA136: 0 | BB136: 0
E137: 0 | G137: =IF(D137="","",L136*Resumen!$L$86/1000) ->  | I137: =IF($E$16=$S$1,0,IF(D137="","",Amortización!$AB$14)) ->  | J137: =IFERROR(IF(OR($E$11=Resumen!$N$6,$E$8=Resumen!$N$6),Amortización!F137*0.16,0),"") -> 0 | K137: 0 | L137: 0 | S137: 0 | U137: 1.184588892 | V137: 0 | Y137: 0 | AD137: 0 | AE137: 0 | AZ137: =IFERROR(IF(OR($E$11=Resumen!$N$6,$E$8=Resumen!$N$6),Amortización!AV137*0.16,0),"") -> 0 | BA137: 0 | BB137: 0
E138: 0 | G138: =IF(D138="","",L137*Resumen!$L$86/1000) ->  | I138: =IF($E$16=$S$1,0,IF(D138="","",Amortización!$AB$14)) ->  | J138: =IFERROR(IF(OR($E$11=Resumen!$N$6,$E$8=Resumen!$N$6),Amortización!F138*0.16,0),"") -> 0 | K138: 0 | L138: 0 | N138: =IF(OR(L137=0,L137=""),"",IF(E138>=D138,0,$E$17*10%)) ->  | S138: 0 | U138: 1.184588892 | V138: 0 | Y138: 0 | AD138: 0 | AE138: 0 | AZ138: =IFERROR(IF(OR($E$11=Resumen!$N$6,$E$8=Resumen!$N$6),Amortización!AV138*0.16,0),"") -> 0 | BA138: 0 | BB138: 0
E139: 0 | G139: =IF(D139="","",L138*Resumen!$L$86/1000) ->  | I139: =IF($E$16=$S$1,0,IF(D139="","",Amortización!$AB$14)) ->  | J139: =IFERROR(IF(OR($E$11=Resumen!$N$6,$E$8=Resumen!$N$6),Amortización!F139*0.16,0),"") -> 0 | K139: 0 | L139: 0 | S139: 0 | U139: 1.184588892 | V139: 0 | Y139: 0 | AD139: 0 | AE139: 0 | AZ139: =IFERROR(IF(OR($E$11=Resumen!$N$6,$E$8=Resumen!$N$6),Amortización!AV139*0.16,0),"") -> 0 | BA139: 0 | BB139: 0
E140: 0 | G140: =IF(D140="","",L139*Resumen!$L$86/1000) ->  | I140: =IF($E$16=$S$1,0,IF(D140="","",Amortización!$AB$14)) ->  | J140: =IFERROR(IF(OR($E$11=Resumen!$N$6,$E$8=Resumen!$N$6),Amortización!F140*0.16,0),"") -> 0 | K140: 0 | L140: 0 | N140: =IF(OR(L139=0,L139=""),"",IF(E140>=D140,0,$E$17*10%)) ->  | S140: 0 | U140: 1.184588892 | V140: 0 | Y140: 0 | AD140: 0 | AE140: 0 | AZ140: =IFERROR(IF(OR($E$11=Resumen!$N$6,$E$8=Resumen!$N$6),Amortización!AV140*0.16,0),"") -> 0 | BA140: 0 | BB140: 0
E141: 0 | G141: =IF(D141="","",L140*Resumen!$L$86/1000) ->  | I141: =IF($E$16=$S$1,0,IF(D141="","",Amortización!$AB$14)) ->  | J141: =IFERROR(IF(OR($E$11=Resumen!$N$6,$E$8=Resumen!$N$6),Amortización!F141*0.16,0),"") -> 0 | K141: 0 | L141: 0 | S141: 0 | U141: 1.207096081 | V141: 0 | Y141: 0 | AD141: 0 | AE141: 0 | AZ141: =IFERROR(IF(OR($E$11=Resumen!$N$6,$E$8=Resumen!$N$6),Amortización!AV141*0.16,0),"") -> 0 | BA141: 0 | BB141: 0
E142: 0 | G142: =IF(D142="","",L141*Resumen!$L$86/1000) ->  | I142: =IF($E$16=$S$1,0,IF(D142="","",Amortización!$AB$14)) ->  | J142: =IFERROR(IF(OR($E$11=Resumen!$N$6,$E$8=Resumen!$N$6),Amortización!F142*0.16,0),"") -> 0 | K142: 0 | L142: 0 | N142: =IF(OR(L141=0,L141=""),"",IF(E142>=D142,0,$E$17*10%)) ->  | S142: 0 | U142: 1.207096081 | V142: 0 | Y142: 0 | AD142: 0 | AE142: 0 | AZ142: =IFERROR(IF(OR($E$11=Resumen!$N$6,$E$8=Resumen!$N$6),Amortización!AV142*0.16,0),"") -> 0 | BA142: 0 | BB142: 0
E143: 0 | G143: =IF(D143="","",L142*Resumen!$L$86/1000) ->  | I143: =IF($E$16=$S$1,0,IF(D143="","",Amortización!$AB$14)) ->  | J143: =IFERROR(IF(OR($E$11=Resumen!$N$6,$E$8=Resumen!$N$6),Amortización!F143*0.16,0),"") -> 0 | K143: 0 | L143: 0 | S143: 0 | U143: 1.207096081 | V143: 0 | Y143: 0 | AD143: 0 | AE143: 0 | AZ143: =IFERROR(IF(OR($E$11=Resumen!$N$6,$E$8=Resumen!$N$6),Amortización!AV143*0.16,0),"") -> 0 | BA143: 0 | BB143: 0
E144: 0 | G144: =IF(D144="","",L143*Resumen!$L$86/1000) ->  | I144: =IF($E$16=$S$1,0,IF(D144="","",Amortización!$AB$14)) ->  | J144: =IFERROR(IF(OR($E$11=Resumen!$N$6,$E$8=Resumen!$N$6),Amortización!F144*0.16,0),"") -> 0 | K144: 0 | L144: 0 | N144: =IF(OR(L143=0,L143=""),"",IF(E144>=D144,0,$E$17*10%)) ->  | S144: 0 | U144: 1.207096081 | V144: 0 | Y144: 0 | AD144: 0 | AE144: 0 | AZ144: =IFERROR(IF(OR($E$11=Resumen!$N$6,$E$8=Resumen!$N$6),Amortización!AV144*0.16,0),"") -> 0 | BA144: 0 | BB144: 0
E145: 0 | G145: =IF(D145="","",L144*Resumen!$L$86/1000) ->  | I145: =IF($E$16=$S$1,0,IF(D145="","",Amortización!$AB$14)) ->  | J145: =IFERROR(IF(OR($E$11=Resumen!$N$6,$E$8=Resumen!$N$6),Amortización!F145*0.16,0),"") -> 0 | K145: 0 | L145: 0 | S145: 0 | U145: 1.207096081 | V145: 0 | Y145: 0 | AD145: 0 | AE145: 0 | AZ145: =IFERROR(IF(OR($E$11=Resumen!$N$6,$E$8=Resumen!$N$6),Amortización!AV145*0.16,0),"") -> 0 | BA145: 0 | BB145: 0
E146: 0 | G146: =IF(D146="","",L145*Resumen!$L$86/1000) ->  | I146: =IF($E$16=$S$1,0,IF(D146="","",Amortización!$AB$14)) ->  | J146: =IFERROR(IF(OR($E$11=Resumen!$N$6,$E$8=Resumen!$N$6),Amortización!F146*0.16,0),"") -> 0 | K146: 0 | L146: 0 | N146: =IF(OR(L145=0,L145=""),"",IF(E146>=D146,0,$E$17*10%)) ->  | S146: 0 | U146: 1.207096081 | V146: 0 | Y146: 0 | AD146: 0 | AE146: 0 | AZ146: =IFERROR(IF(OR($E$11=Resumen!$N$6,$E$8=Resumen!$N$6),Amortización!AV146*0.16,0),"") -> 0 | BA146: 0 | BB146: 0
E147: 0 | G147: =IF(D147="","",L146*Resumen!$L$86/1000) ->  | I147: =IF($E$16=$S$1,0,IF(D147="","",Amortización!$AB$14)) ->  | J147: =IFERROR(IF(OR($E$11=Resumen!$N$6,$E$8=Resumen!$N$6),Amortización!F147*0.16,0),"") -> 0 | K147: 0 | L147: 0 | S147: 0 | U147: 1.207096081 | V147: 0 | Y147: 0 | AD147: 0 | AE147: 0 | AZ147: =IFERROR(IF(OR($E$11=Resumen!$N$6,$E$8=Resumen!$N$6),Amortización!AV147*0.16,0),"") -> 0 | BA147: 0 | BB147: 0
E148: 0 | G148: =IF(D148="","",L147*Resumen!$L$86/1000) ->  | I148: =IF($E$16=$S$1,0,IF(D148="","",Amortización!$AB$14)) ->  | J148: =IFERROR(IF(OR($E$11=Resumen!$N$6,$E$8=Resumen!$N$6),Amortización!F148*0.16,0),"") -> 0 | K148: 0 | L148: 0 | N148: =IF(OR(L147=0,L147=""),"",IF(E148>=D148,0,$E$17*10%)) ->  | S148: 0 | U148: 1.207096081 | V148: 0 | Y148: 0 | AD148: 0 | AE148: 0 | AZ148: =IFERROR(IF(OR($E$11=Resumen!$N$6,$E$8=Resumen!$N$6),Amortización!AV148*0.16,0),"") -> 0 | BA148: 0 | BB148: 0
E149: 0 | G149: =IF(D149="","",L148*Resumen!$L$86/1000) ->  | I149: =IF($E$16=$S$1,0,IF(D149="","",Amortización!$AB$14)) ->  | J149: =IFERROR(IF(OR($E$11=Resumen!$N$6,$E$8=Resumen!$N$6),Amortización!F149*0.16,0),"") -> 0 | K149: 0 | L149: 0 | M149: =IF(OR(L148=0,L148=""),"",0) ->  | S149: 0 | U149: 1.207096081 | V149: 0 | Y149: 0 | AD149: 0 | AE149: 0 | AZ149: =IFERROR(IF(OR($E$11=Resumen!$N$6,$E$8=Resumen!$N$6),Amortización!AV149*0.16,0),"") -> 0 | BA149: 0 | BB149: =IFERROR(IF(AT149="","",IF((AT149-AU149-BV149)<1,0,AT149-AU149-BV149)),0) -> 0 | BC149: =IF(OR(BB148=0,BB148=""),"",0) -> 
E150: 0 | G150: =IF(D150="","",L149*Resumen!$L$86/1000) ->  | H150: =IF($E$16=$S$1,0,IF(D150="","",IF($E$11="Liquidez","0",Y150))) ->  | I150: =IF($E$16=$S$1,0,IF(D150="","",Amortización!$AB$14)) ->  | J150: =IFERROR(IF(OR($E$11=Resumen!$N$6,$E$8=Resumen!$N$6),Amortización!F150*0.16,0),"") -> 0 | K150: =IFERROR(IF(D150="","",E150+F150+G150+H150+I150+V150+J150),0) -> 0 | L150: =IFERROR(IF(D150="","",IF((D150-E150-AF150-N150)<1,0,D150-E150-AF150-N150)),0) -> 0 | N150: =IF(OR(L149=0,L149=""),"",IF(E150>=D150,0,$E$17*10%)) ->  | R150: =IF(D150="","",E150+F150+G150+H150/1.16+I150/1.16+N150) ->  | S150: 0 | U150: 1.207096081 | V150: 0 | Y150: 0 | AD150: =IF($AE$20=0,0,IF(M150>AE149,MAX(0,M150-AE149),M150)) -> 0 | AE150: =IFERROR(MAX(0,AE149-M150),0) -> 0 | AF150: =IF($E$16="no",M150,IF(AE150>0,0,AD150)) ->  | AS150: =IF(OR(BB149="",BB149=0),"",IF(AS149+1>$K$11+$U$2,"",AS149+1)) ->  | AT150: =IF(IF(AT149="","",AT149-AU149-BJ149-BV149)<0.01,"",IF(AT149="","",BB149)) ->  | AU150: =IF($E$16=$S$1,0,IF(AT150="","",PMT($AV$10/12,$AV$11,-$AT$21)-AV150)) ->  | AW150: =IF($E$16=$S$1,0,IF(AT150="","",BB149*0/1000)) ->  | AX150: =IF($E$16=$S$1,0,IF(AT150="","",IF($E$11="Liquidez","0",0))) ->  | AY150: =IF($E$16=$S$1,0,IF(AT150="","",AT150*$AV$13/12)) ->  | AZ150: =IFERROR(IF(OR($E$11=Resumen!$N$6,$E$8=Resumen!$N$6),Amortización!AV150*0.16,0),"") -> 0 | BA150: =IFERROR(IF(AT150="","",AU150+AV150+AW150+AX150+AY150+AZ150),0) -> 0 | BB150: 0 | BG150: =AS150 ->  | BH150: =IF(AT150="","",AU150+AV150+AW150+AX150/1.16+AY150/1.16) -> 
C151: =IF(OR(L150="",L150=0),"",IF(C150+1>$K$11+$U$2,"",C150+1)) ->  | D151: =IF(IF(D150="","",D150-E150-N150-AF150)<0.01,"",IF(D150="","",L150)) ->  | E151: 0 | G151: =IF(D151="","",L150*Resumen!$L$86/1000) ->  | I151: =IF($E$16=$S$1,0,IF(D151="","",Amortización!$AB$14)) ->  | J151: =IFERROR(IF(OR($E$11=Resumen!$N$6,$E$8=Resumen!$N$6),Amortización!F151*0.16,0),"") -> 0 | K151: 0 | L151: 0 | O151: =IF(D151="","",O150) ->  | Q151: =C151 ->  | S151: 0 | U151: 1.207096081 | V151: 0 | Y151: =IF((($K$8*0.8)*($AB$13))>L150*($AB$13),($K$8*0.8)*($AB$13),($AB$13)*L150) -> 0 | AD151: 0 | AE151: 0 | AZ151: =IFERROR(IF(OR($E$11=Resumen!$N$6,$E$8=Resumen!$N$6),Amortización!AV151*0.16,0),"") -> 0 | BA151: 0 | BB151: 0
E152: 0 | G152: =IF(D152="","",L151*Resumen!$L$86/1000) ->  | I152: =IF($E$16=$S$1,0,IF(D152="","",Amortización!$AB$14)) ->  | J152: =IFERROR(IF(OR($E$11=Resumen!$N$6,$E$8=Resumen!$N$6),Amortización!F152*0.16,0),"") -> 0 | K152: 0 | L152: 0 | N152: =IF(OR(L151=0,L151=""),"",IF(E152>=D152,0,$E$17*10%)) ->  | S152: 0 | U152: 1.207096081 | V152: 0 | Y152: 0 | AD152: 0 | AE152: 0 | AV152: =IF(AT152="","",AT152*(BE152/12)) ->  | AZ152: =IFERROR(IF(OR($E$11=Resumen!$N$6,$E$8=Resumen!$N$6),Amortización!AV152*0.16,0),"") -> 0 | BA152: 0 | BB152: 0
E153: =IFERROR(IF($E$14&$E$16=$U$4,PMT(O153/12,$K$11,-$K$9)-F153,IF(D153="","",IF($E$14="Pago Fijo",MIN(IF($E$15="Mensualidad",-PMT(O153/12,$K$11-C152,D153)-F153,-PMT(O153/12,$K$11,$K$9)-F153),D153),MIN(U153*$K$9*$K$15/1000-F153,D153)))),0) -> 0 | G153: =IF(D153="","",L152*Resumen!$L$86/1000) ->  | I153: =IF($E$16=$S$1,0,IF(D153="","",Amortización!$AB$14)) ->  | J153: =IFERROR(IF(OR($E$11=Resumen!$N$6,$E$8=Resumen!$N$6),Amortización!F153*0.16,0),"") -> 0 | K153: 0 | L153: 0 | S153: =IF(ISNUMBER(Q153),IF($E$14="Pago Fijo",PMT(O153/12,$K$11,-$K$9),U153*$K$15*$K$9/1000)+G153+AF153+H153/1.16+$AB$14/1.16,0)+IF($E$16&L153=$AB$1,$N$8,0) -> 0 | U153: 1.230030907 | V153: 0 | Y153: 0 | AD153: 0 | AE153: 0 | AZ153: =IFERROR(IF(OR($E$11=Resumen!$N$6,$E$8=Resumen!$N$6),Amortización!AV153*0.16,0),"") -> 0 | BA153: 0 | BB153: 0
E154: 0 | F154: =IF(D154="","",D154*(O154/12)) ->  | G154: =IF(D154="","",L153*Resumen!$L$86/1000) ->  | I154: =IF($E$16=$S$1,0,IF(D154="","",Amortización!$AB$14)) ->  | J154: =IFERROR(IF(OR($E$11=Resumen!$N$6,$E$8=Resumen!$N$6),Amortización!F154*0.16,0),"") -> 0 | K154: 0 | L154: 0 | N154: =IF(OR(L153=0,L153=""),"",IF(E154>=D154,0,$E$17*10%)) ->  | S154: 0 | U154: 1.230030907 | V154: 0 | Y154: 0 | AD154: 0 | AE154: 0 | AZ154: =IFERROR(IF(OR($E$11=Resumen!$N$6,$E$8=Resumen!$N$6),Amortización!AV154*0.16,0),"") -> 0 | BA154: 0 | BB154: 0
E155: 0 | G155: =IF(D155="","",L154*Resumen!$L$86/1000) ->  | I155: =IF($E$16=$S$1,0,IF(D155="","",Amortización!$AB$14)) ->  | J155: =IFERROR(IF(OR($E$11=Resumen!$N$6,$E$8=Resumen!$N$6),Amortización!F155*0.16,0),"") -> 0 | K155: 0 | L155: 0 | S155: 0 | U155: 1.230030907 | V155: 0 | Y155: 0 | AD155: 0 | AE155: 0 | AZ155: =IFERROR(IF(OR($E$11=Resumen!$N$6,$E$8=Resumen!$N$6),Amortización!AV155*0.16,0),"") -> 0 | BA155: 0 | BB155: 0
E156: 0 | G156: =IF(D156="","",L155*Resumen!$L$86/1000) ->  | I156: =IF($E$16=$S$1,0,IF(D156="","",Amortización!$AB$14)) ->  | J156: =IFERROR(IF(OR($E$11=Resumen!$N$6,$E$8=Resumen!$N$6),Amortización!F156*0.16,0),"") -> 0 | K156: 0 | L156: 0 | N156: =IF(OR(L155=0,L155=""),"",IF(E156>=D156,0,$E$17*10%)) ->  | S156: 0 | U156: 1.230030907 | V156: 0 | Y156: 0 | AD156: 0 | AE156: 0 | AZ156: =IFERROR(IF(OR($E$11=Resumen!$N$6,$E$8=Resumen!$N$6),Amortización!AV156*0.16,0),"") -> 0 | BA156: 0 | BB156: 0
E157: 0 | G157: =IF(D157="","",L156*Resumen!$L$86/1000) ->  | I157: =IF($E$16=$S$1,0,IF(D157="","",Amortización!$AB$14)) ->  | J157: =IFERROR(IF(OR($E$11=Resumen!$N$6,$E$8=Resumen!$N$6),Amortización!F157*0.16,0),"") -> 0 | K157: 0 | L157: 0 | S157: 0 | U157: 1.230030907 | V157: 0 | Y157: 0 | AD157: 0 | AE157: 0 | AZ157: =IFERROR(IF(OR($E$11=Resumen!$N$6,$E$8=Resumen!$N$6),Amortización!AV157*0.16,0),"") -> 0 | BA157: 0 | BB157: 0
E158: 0 | G158: =IF(D158="","",L157*Resumen!$L$86/1000) ->  | I158: =IF($E$16=$S$1,0,IF(D158="","",Amortización!$AB$14)) ->  | J158: =IFERROR(IF(OR($E$11=Resumen!$N$6,$E$8=Resumen!$N$6),Amortización!F158*0.16,0),"") -> 0 | K158: 0 | L158: 0 | N158: =IF(OR(L157=0,L157=""),"",IF(E158>=D158,0,$E$17*10%)) ->  | S158: 0 | U158: 1.230030907 | V158: 0 | Y158: 0 | AD158: 0 | AE158: 0 | AZ158: =IFERROR(IF(OR($E$11=Resumen!$N$6,$E$8=Resumen!$N$6),Amortización!AV158*0.16,0),"") -> 0 | BA158: 0 | BB158: 0
E159: 0 | G159: =IF(D159="","",L158*Resumen!$L$86/1000) ->  | I159: =IF($E$16=$S$1,0,IF(D159="","",Amortización!$AB$14)) ->  | J159: =IFERROR(IF(OR($E$11=Resumen!$N$6,$E$8=Resumen!$N$6),Amortización!F159*0.16,0),"") -> 0 | K159: 0 | L159: 0 | S159: 0 | U159: 1.230030907 | V159: 0 | Y159: 0 | AD159: 0 | AE159: 0 | AZ159: =IFERROR(IF(OR($E$11=Resumen!$N$6,$E$8=Resumen!$N$6),Amortización!AV159*0.16,0),"") -> 0 | BA159: 0 | BB159: 0
E160: 0 | G160: =IF(D160="","",L159*Resumen!$L$86/1000) ->  | I160: =IF($E$16=$S$1,0,IF(D160="","",Amortización!$AB$14)) ->  | J160: =IFERROR(IF(OR($E$11=Resumen!$N$6,$E$8=Resumen!$N$6),Amortización!F160*0.16,0),"") -> 0 | K160: 0 | L160: 0 | N160: =IF(OR(L159=0,L159=""),"",IF(E160>=D160,0,$E$17*10%)) ->  | S160: 0 | U160: 1.230030907 | V160: 0 | Y160: 0 | AD160: 0 | AE160: 0 | AZ160: =IFERROR(IF(OR($E$11=Resumen!$N$6,$E$8=Resumen!$N$6),Amortización!AV160*0.16,0),"") -> 0 | BA160: 0 | BB160: 0
E161: 0 | G161: =IF(D161="","",L160*Resumen!$L$86/1000) ->  | I161: =IF($E$16=$S$1,0,IF(D161="","",Amortización!$AB$14)) ->  | J161: =IFERROR(IF(OR($E$11=Resumen!$N$6,$E$8=Resumen!$N$6),Amortización!F161*0.16,0),"") -> 0 | K161: 0 | L161: 0 | S161: 0 | U161: 1.230030907 | V161: 0 | Y161: 0 | AD161: 0 | AE161: 0 | AZ161: =IFERROR(IF(OR($E$11=Resumen!$N$6,$E$8=Resumen!$N$6),Amortización!AV161*0.16,0),"") -> 0 | BA161: 0 | BB161: 0
E162: 0 | G162: =IF(D162="","",L161*Resumen!$L$86/1000) ->  | I162: =IF($E$16=$S$1,0,IF(D162="","",Amortización!$AB$14)) ->  | J162: =IFERROR(IF(OR($E$11=Resumen!$N$6,$E$8=Resumen!$N$6),Amortización!F162*0.16,0),"") -> 0 | K162: 0 | L162: 0 | N162: =IF(OR(L161=0,L161=""),"",IF(E162>=D162,0,$E$17*10%)) ->  | S162: 0 | U162: 1.230030907 | V162: 0 | Y162: 0 | AD162: 0 | AE162: 0 | AZ162: =IFERROR(IF(OR($E$11=Resumen!$N$6,$E$8=Resumen!$N$6),Amortización!AV162*0.16,0),"") -> 0 | BA162: 0 | BB162: 0
E163: 0 | G163: =IF(D163="","",L162*Resumen!$L$86/1000) ->  | I163: =IF($E$16=$S$1,0,IF(D163="","",Amortización!$AB$14)) ->  | J163: =IFERROR(IF(OR($E$11=Resumen!$N$6,$E$8=Resumen!$N$6),Amortización!F163*0.16,0),"") -> 0 | K163: 0 | L163: 0 | S163: 0 | U163: 1.230030907 | V163: 0 | Y163: 0 | AD163: 0 | AE163: 0 | AZ163: =IFERROR(IF(OR($E$11=Resumen!$N$6,$E$8=Resumen!$N$6),Amortización!AV163*0.16,0),"") -> 0 | BA163: 0 | BB163: 0
E164: 0 | G164: =IF(D164="","",L163*Resumen!$L$86/1000) ->  | I164: =IF($E$16=$S$1,0,IF(D164="","",Amortización!$AB$14)) ->  | J164: =IFERROR(IF(OR($E$11=Resumen!$N$6,$E$8=Resumen!$N$6),Amortización!F164*0.16,0),"") -> 0 | K164: 0 | L164: 0 | N164: =IF(OR(L163=0,L163=""),"",IF(E164>=D164,0,$E$17*10%)) ->  | S164: 0 | U164: =IF(OR(AND($E$8="Adquisicion",$E$9="Premier"),AND($E$8="Exclusiva",$E$9="Premier"),AND($E$8="Exclusiva",$E$9="No Premier")),U152*1.019,IF(AND($E$8="Adquisicion",$E$9="No Premier"),U152*1.019,IF($E$8="Pago de Hipoteca",U152*1.019))) -> 1.230030907 | V164: 0 | Y164: 0 | AD164: 0 | AE164: 0 | AZ164: =IFERROR(IF(OR($E$11=Resumen!$N$6,$E$8=Resumen!$N$6),Amortización!AV164*0.16,0),"") -> 0 | BA164: 0 | BB164: 0
E165: 0 | G165: =IF(D165="","",L164*Resumen!$L$86/1000) ->  | I165: =IF($E$16=$S$1,0,IF(D165="","",Amortización!$AB$14)) ->  | J165: =IFERROR(IF(OR($E$11=Resumen!$N$6,$E$8=Resumen!$N$6),Amortización!F165*0.16,0),"") -> 0 | K165: 0 | L165: 0 | S165: 0 | U165: 1.253401494 | V165: 0 | Y165: 0 | AD165: 0 | AE165: 0 | AZ165: =IFERROR(IF(OR($E$11=Resumen!$N$6,$E$8=Resumen!$N$6),Amortización!AV165*0.16,0),"") -> 0 | BA165: 0 | BB165: 0
E166: 0 | G166: =IF(D166="","",L165*Resumen!$L$86/1000) ->  | I166: =IF($E$16=$S$1,0,IF(D166="","",Amortización!$AB$14)) ->  | J166: =IFERROR(IF(OR($E$11=Resumen!$N$6,$E$8=Resumen!$N$6),Amortización!F166*0.16,0),"") -> 0 | K166: 0 | L166: 0 | N166: =IF(OR(L165=0,L165=""),"",IF(E166>=D166,0,$E$17*10%)) ->  | S166: 0 | U166: 1.253401494 | V166: 0 | Y166: 0 | AD166: 0 | AE166: 0 | AZ166: =IFERROR(IF(OR($E$11=Resumen!$N$6,$E$8=Resumen!$N$6),Amortización!AV166*0.16,0),"") -> 0 | BA166: 0 | BB166: 0
E167: 0 | G167: =IF(D167="","",L166*Resumen!$L$86/1000) ->  | I167: =IF($E$16=$S$1,0,IF(D167="","",Amortización!$AB$14)) ->  | J167: =IFERROR(IF(OR($E$11=Resumen!$N$6,$E$8=Resumen!$N$6),Amortización!F167*0.16,0),"") -> 0 | K167: 0 | L167: 0 | S167: 0 | U167: 1.253401494 | V167: 0 | Y167: 0 | AD167: 0 | AE167: 0 | AZ167: =IFERROR(IF(OR($E$11=Resumen!$N$6,$E$8=Resumen!$N$6),Amortización!AV167*0.16,0),"") -> 0 | BA167: 0 | BB167: 0
E168: 0 | G168: =IF(D168="","",L167*Resumen!$L$86/1000) ->  | I168: =IF($E$16=$S$1,0,IF(D168="","",Amortización!$AB$14)) ->  | J168: =IFERROR(IF(OR($E$11=Resumen!$N$6,$E$8=Resumen!$N$6),Amortización!F168*0.16,0),"") -> 0 | K168: 0 | L168: 0 | N168: =IF(OR(L167=0,L167=""),"",IF(E168>=D168,0,$E$17*10%)) ->  | S168: 0 | U168: 1.253401494 | V168: 0 | Y168: 0 | AD168: 0 | AE168: 0 | AZ168: =IFERROR(IF(OR($E$11=Resumen!$N$6,$E$8=Resumen!$N$6),Amortización!AV168*0.16,0),"") -> 0 | BA168: 0 | BB168: 0
E169: 0 | G169: =IF(D169="","",L168*Resumen!$L$86/1000) ->  | I169: =IF($E$16=$S$1,0,IF(D169="","",Amortización!$AB$14)) ->  | J169: =IFERROR(IF(OR($E$11=Resumen!$N$6,$E$8=Resumen!$N$6),Amortización!F169*0.16,0),"") -> 0 | K169: 0 | L169: 0 | S169: 0 | U169: 1.253401494 | V169: 0 | Y169: 0 | AD169: 0 | AE169: 0 | AZ169: =IFERROR(IF(OR($E$11=Resumen!$N$6,$E$8=Resumen!$N$6),Amortización!AV169*0.16,0),"") -> 0 | BA169: 0 | BB169: 0
E170: 0 | G170: =IF(D170="","",L169*Resumen!$L$86/1000) ->  | I170: =IF($E$16=$S$1,0,IF(D170="","",Amortización!$AB$14)) ->  | J170: =IFERROR(IF(OR($E$11=Resumen!$N$6,$E$8=Resumen!$N$6),Amortización!F170*0.16,0),"") -> 0 | K170: 0 | L170: 0 | N170: =IF(OR(L169=0,L169=""),"",IF(E170>=D170,0,$E$17*10%)) ->  | S170: 0 | U170: 1.253401494 | V170: 0 | Y170: 0 | AD170: 0 | AE170: 0 | AZ170: =IFERROR(IF(OR($E$11=Resumen!$N$6,$E$8=Resumen!$N$6),Amortización!AV170*0.16,0),"") -> 0 | BA170: 0 | BB170: 0
E171: 0 | G171: =IF(D171="","",L170*Resumen!$L$86/1000) ->  | I171: =IF($E$16=$S$1,0,IF(D171="","",Amortización!$AB$14)) ->  | J171: =IFERROR(IF(OR($E$11=Resumen!$N$6,$E$8=Resumen!$N$6),Amortización!F171*0.16,0),"") -> 0 | K171: 0 | L171: 0 | S171: 0 | U171: 1.253401494 | V171: 0 | Y171: 0 | AD171: 0 | AE171: 0 | AZ171: =IFERROR(IF(OR($E$11=Resumen!$N$6,$E$8=Resumen!$N$6),Amortización!AV171*0.16,0),"") -> 0 | BA171: 0 | BB171: 0
E172: 0 | G172: =IF(D172="","",L171*Resumen!$L$86/1000) ->  | I172: =IF($E$16=$S$1,0,IF(D172="","",Amortización!$AB$14)) ->  | J172: =IFERROR(IF(OR($E$11=Resumen!$N$6,$E$8=Resumen!$N$6),Amortización!F172*0.16,0),"") -> 0 | K172: 0 | L172: 0 | N172: =IF(OR(L171=0,L171=""),"",IF(E172>=D172,0,$E$17*10%)) ->  | S172: 0 | U172: 1.253401494 | V172: 0 | Y172: 0 | AD172: 0 | AE172: 0 | AZ172: =IFERROR(IF(OR($E$11=Resumen!$N$6,$E$8=Resumen!$N$6),Amortización!AV172*0.16,0),"") -> 0 | BA172: 0 | BB172: 0
E173: 0 | G173: =IF(D173="","",L172*Resumen!$L$86/1000) ->  | I173: =IF($E$16=$S$1,0,IF(D173="","",Amortización!$AB$14)) ->  | J173: =IFERROR(IF(OR($E$11=Resumen!$N$6,$E$8=Resumen!$N$6),Amortización!F173*0.16,0),"") -> 0 | K173: 0 | L173: 0 | S173: 0 | U173: 1.253401494 | V173: 0 | Y173: 0 | AD173: 0 | AE173: 0 | AZ173: =IFERROR(IF(OR($E$11=Resumen!$N$6,$E$8=Resumen!$N$6),Amortización!AV173*0.16,0),"") -> 0 | BA173: 0 | BB173: 0
E174: 0 | G174: =IF(D174="","",L173*Resumen!$L$86/1000) ->  | I174: =IF($E$16=$S$1,0,IF(D174="","",Amortización!$AB$14)) ->  | J174: =IFERROR(IF(OR($E$11=Resumen!$N$6,$E$8=Resumen!$N$6),Amortización!F174*0.16,0),"") -> 0 | K174: 0 | L174: 0 | N174: =IF(OR(L173=0,L173=""),"",IF(E174>=D174,0,$E$17*10%)) ->  | S174: 0 | U174: 1.253401494 | V174: 0 | Y174: 0 | AD174: 0 | AE174: 0 | AZ174: =IFERROR(IF(OR($E$11=Resumen!$N$6,$E$8=Resumen!$N$6),Amortización!AV174*0.16,0),"") -> 0 | BA174: 0 | BB174: 0 | BE174: =IF(AT174="","",BE173) -> 
E175: 0 | G175: =IF(D175="","",L174*Resumen!$L$86/1000) ->  | I175: =IF($E$16=$S$1,0,IF(D175="","",Amortización!$AB$14)) ->  | J175: =IFERROR(IF(OR($E$11=Resumen!$N$6,$E$8=Resumen!$N$6),Amortización!F175*0.16,0),"") -> 0 | K175: 0 | L175: 0 | S175: 0 | U175: 1.253401494 | V175: 0 | Y175: 0 | AD175: 0 | AE175: 0 | AZ175: =IFERROR(IF(OR($E$11=Resumen!$N$6,$E$8=Resumen!$N$6),Amortización!AV175*0.16,0),"") -> 0 | BA175: 0 | BB175: 0
E176: 0 | G176: =IF(D176="","",L175*Resumen!$L$86/1000) ->  | I176: =IF($E$16=$S$1,0,IF(D176="","",Amortización!$AB$14)) ->  | J176: =IFERROR(IF(OR($E$11=Resumen!$N$6,$E$8=Resumen!$N$6),Amortización!F176*0.16,0),"") -> 0 | K176: 0 | L176: 0 | N176: =IF(OR(L175=0,L175=""),"",IF(E176>=D176,0,$E$17*10%)) ->  | S176: 0 | U176: 1.253401494 | V176: 0 | Y176: 0 | AD176: 0 | AE176: 0 | AZ176: =IFERROR(IF(OR($E$11=Resumen!$N$6,$E$8=Resumen!$N$6),Amortización!AV176*0.16,0),"") -> 0 | BA176: 0 | BB176: 0
E177: 0 | G177: =IF(D177="","",L176*Resumen!$L$86/1000) ->  | I177: =IF($E$16=$S$1,0,IF(D177="","",Amortización!$AB$14)) ->  | J177: =IFERROR(IF(OR($E$11=Resumen!$N$6,$E$8=Resumen!$N$6),Amortización!F177*0.16,0),"") -> 0 | K177: 0 | L177: 0 | S177: 0 | U177: 1.277216123 | V177: 0 | Y177: 0 | AD177: 0 | AE177: 0 | AZ177: =IFERROR(IF(OR($E$11=Resumen!$N$6,$E$8=Resumen!$N$6),Amortización!AV177*0.16,0),"") -> 0 | BA177: 0 | BB177: 0
E178: 0 | G178: =IF(D178="","",L177*Resumen!$L$86/1000) ->  | I178: =IF($E$16=$S$1,0,IF(D178="","",Amortización!$AB$14)) ->  | J178: =IFERROR(IF(OR($E$11=Resumen!$N$6,$E$8=Resumen!$N$6),Amortización!F178*0.16,0),"") -> 0 | K178: 0 | L178: 0 | N178: =IF(OR(L177=0,L177=""),"",IF(E178>=D178,0,$E$17*10%)) ->  | S178: 0 | U178: 1.277216123 | V178: 0 | Y178: 0 | AD178: 0 | AE178: 0 | AZ178: =IFERROR(IF(OR($E$11=Resumen!$N$6,$E$8=Resumen!$N$6),Amortización!AV178*0.16,0),"") -> 0 | BA178: 0 | BB178: 0
E179: 0 | G179: =IF(D179="","",L178*Resumen!$L$86/1000) ->  | I179: =IF($E$16=$S$1,0,IF(D179="","",Amortización!$AB$14)) ->  | J179: =IFERROR(IF(OR($E$11=Resumen!$N$6,$E$8=Resumen!$N$6),Amortización!F179*0.16,0),"") -> 0 | K179: 0 | L179: 0 | S179: 0 | U179: 1.277216123 | V179: 0 | Y179: 0 | AD179: 0 | AE179: 0 | AZ179: =IFERROR(IF(OR($E$11=Resumen!$N$6,$E$8=Resumen!$N$6),Amortización!AV179*0.16,0),"") -> 0 | BA179: 0 | BB179: 0
E180: 0 | G180: =IF(D180="","",L179*Resumen!$L$86/1000) ->  | I180: =IF($E$16=$S$1,0,IF(D180="","",Amortización!$AB$14)) ->  | J180: =IFERROR(IF(OR($E$11=Resumen!$N$6,$E$8=Resumen!$N$6),Amortización!F180*0.16,0),"") -> 0 | K180: 0 | L180: 0 | N180: =IF(OR(L179=0,L179=""),"",IF(E180>=D180,0,$E$17*10%)) ->  | S180: 0 | U180: 1.277216123 | V180: 0 | Y180: 0 | AD180: 0 | AE180: 0 | AZ180: =IFERROR(IF(OR($E$11=Resumen!$N$6,$E$8=Resumen!$N$6),Amortización!AV180*0.16,0),"") -> 0 | BA180: 0 | BB180: 0
E181: 0 | G181: =IF(D181="","",L180*Resumen!$L$86/1000) ->  | I181: =IF($E$16=$S$1,0,IF(D181="","",Amortización!$AB$14)) ->  | J181: =IFERROR(IF(OR($E$11=Resumen!$N$6,$E$8=Resumen!$N$6),Amortización!F181*0.16,0),"") -> 0 | K181: 0 | L181: 0 | S181: 0 | U181: 1.277216123 | V181: 0 | Y181: 0 | AD181: 0 | AE181: 0 | AZ181: =IFERROR(IF(OR($E$11=Resumen!$N$6,$E$8=Resumen!$N$6),Amortización!AV181*0.16,0),"") -> 0 | BA181: 0 | BB181: 0
E182: 0 | G182: =IF(D182="","",L181*Resumen!$L$86/1000) ->  | I182: =IF($E$16=$S$1,0,IF(D182="","",Amortización!$AB$14)) ->  | J182: =IFERROR(IF(OR($E$11=Resumen!$N$6,$E$8=Resumen!$N$6),Amortización!F182*0.16,0),"") -> 0 | K182: 0 | L182: 0 | N182: =IF(OR(L181=0,L181=""),"",IF(E182>=D182,0,$E$17*10%)) ->  | S182: 0 | U182: 1.277216123 | V182: 0 | Y182: 0 | AD182: 0 | AE182: 0 | AZ182: =IFERROR(IF(OR($E$11=Resumen!$N$6,$E$8=Resumen!$N$6),Amortización!AV182*0.16,0),"") -> 0 | BA182: 0 | BB182: 0
E183: 0 | G183: =IF(D183="","",L182*Resumen!$L$86/1000) ->  | I183: =IF($E$16=$S$1,0,IF(D183="","",Amortización!$AB$14)) ->  | J183: =IFERROR(IF(OR($E$11=Resumen!$N$6,$E$8=Resumen!$N$6),Amortización!F183*0.16,0),"") -> 0 | K183: 0 | L183: 0 | S183: 0 | U183: 1.277216123 | V183: 0 | Y183: 0 | AD183: 0 | AE183: 0 | AZ183: =IFERROR(IF(OR($E$11=Resumen!$N$6,$E$8=Resumen!$N$6),Amortización!AV183*0.16,0),"") -> 0 | BA183: 0 | BB183: 0
E184: 0 | G184: =IF(D184="","",L183*Resumen!$L$86/1000) ->  | I184: =IF($E$16=$S$1,0,IF(D184="","",Amortización!$AB$14)) ->  | J184: =IFERROR(IF(OR($E$11=Resumen!$N$6,$E$8=Resumen!$N$6),Amortización!F184*0.16,0),"") -> 0 | K184: 0 | L184: 0 | N184: =IF(OR(L183=0,L183=""),"",IF(E184>=D184,0,$E$17*10%)) ->  | S184: 0 | U184: 1.277216123 | V184: 0 | Y184: 0 | AD184: 0 | AE184: 0 | AZ184: =IFERROR(IF(OR($E$11=Resumen!$N$6,$E$8=Resumen!$N$6),Amortización!AV184*0.16,0),"") -> 0 | BA184: 0 | BB184: 0
E185: 0 | G185: =IF(D185="","",L184*Resumen!$L$86/1000) ->  | I185: =IF($E$16=$S$1,0,IF(D185="","",Amortización!$AB$14)) ->  | J185: =IFERROR(IF(OR($E$11=Resumen!$N$6,$E$8=Resumen!$N$6),Amortización!F185*0.16,0),"") -> 0 | K185: 0 | L185: 0 | S185: 0 | U185: 1.277216123 | V185: 0 | Y185: 0 | AD185: 0 | AE185: 0 | AZ185: =IFERROR(IF(OR($E$11=Resumen!$N$6,$E$8=Resumen!$N$6),Amortización!AV185*0.16,0),"") -> 0 | BA185: 0 | BB185: 0
E186: 0 | G186: =IF(D186="","",L185*Resumen!$L$86/1000) ->  | I186: =IF($E$16=$S$1,0,IF(D186="","",Amortización!$AB$14)) ->  | J186: =IFERROR(IF(OR($E$11=Resumen!$N$6,$E$8=Resumen!$N$6),Amortización!F186*0.16,0),"") -> 0 | K186: 0 | L186: 0 | N186: =IF(OR(L185=0,L185=""),"",IF(E186>=D186,0,$E$17*10%)) ->  | S186: 0 | U186: 1.277216123 | V186: 0 | Y186: 0 | AD186: 0 | AE186: 0 | AZ186: =IFERROR(IF(OR($E$11=Resumen!$N$6,$E$8=Resumen!$N$6),Amortización!AV186*0.16,0),"") -> 0 | BA186: 0 | BB186: 0
E187: 0 | G187: =IF(D187="","",L186*Resumen!$L$86/1000) ->  | I187: =IF($E$16=$S$1,0,IF(D187="","",Amortización!$AB$14)) ->  | J187: =IFERROR(IF(OR($E$11=Resumen!$N$6,$E$8=Resumen!$N$6),Amortización!F187*0.16,0),"") -> 0 | K187: 0 | L187: 0 | S187: 0 | U187: 1.277216123 | V187: 0 | Y187: 0 | AD187: 0 | AE187: 0 | AZ187: =IFERROR(IF(OR($E$11=Resumen!$N$6,$E$8=Resumen!$N$6),Amortización!AV187*0.16,0),"") -> 0 | BA187: 0 | BB187: 0
E188: 0 | G188: =IF(D188="","",L187*Resumen!$L$86/1000) ->  | I188: =IF($E$16=$S$1,0,IF(D188="","",Amortización!$AB$14)) ->  | J188: =IFERROR(IF(OR($E$11=Resumen!$N$6,$E$8=Resumen!$N$6),Amortización!F188*0.16,0),"") -> 0 | K188: 0 | L188: 0 | N188: =IF(OR(L187=0,L187=""),"",IF(E188>=D188,0,$E$17*10%)) ->  | S188: 0 | U188: 1.277216123 | V188: 0 | Y188: 0 | AD188: 0 | AE188: 0 | AZ188: =IFERROR(IF(OR($E$11=Resumen!$N$6,$E$8=Resumen!$N$6),Amortización!AV188*0.16,0),"") -> 0 | BA188: 0 | BB188: 0
E189: 0 | G189: =IF(D189="","",L188*Resumen!$L$86/1000) ->  | I189: =IF($E$16=$S$1,0,IF(D189="","",Amortización!$AB$14)) ->  | J189: =IFERROR(IF(OR($E$11=Resumen!$N$6,$E$8=Resumen!$N$6),Amortización!F189*0.16,0),"") -> 0 | K189: 0 | L189: 0 | S189: 0 | U189: 1.301483229 | V189: 0 | Y189: 0 | AD189: 0 | AE189: 0 | AZ189: =IFERROR(IF(OR($E$11=Resumen!$N$6,$E$8=Resumen!$N$6),Amortización!AV189*0.16,0),"") -> 0 | BA189: 0 | BB189: 0
E190: 0 | G190: =IF(D190="","",L189*Resumen!$L$86/1000) ->  | I190: =IF($E$16=$S$1,0,IF(D190="","",Amortización!$AB$14)) ->  | J190: =IFERROR(IF(OR($E$11=Resumen!$N$6,$E$8=Resumen!$N$6),Amortización!F190*0.16,0),"") -> 0 | K190: 0 | L190: 0 | N190: =IF(OR(L189=0,L189=""),"",IF(E190>=D190,0,$E$17*10%)) ->  | S190: 0 | U190: 1.301483229 | V190: 0 | Y190: 0 | AD190: 0 | AE190: 0 | AZ190: =IFERROR(IF(OR($E$11=Resumen!$N$6,$E$8=Resumen!$N$6),Amortización!AV190*0.16,0),"") -> 0 | BA190: 0 | BB190: 0
E191: 0 | G191: =IF(D191="","",L190*Resumen!$L$86/1000) ->  | I191: =IF($E$16=$S$1,0,IF(D191="","",Amortización!$AB$14)) ->  | J191: =IFERROR(IF(OR($E$11=Resumen!$N$6,$E$8=Resumen!$N$6),Amortización!F191*0.16,0),"") -> 0 | K191: 0 | L191: 0 | S191: 0 | U191: 1.301483229 | V191: 0 | Y191: 0 | AD191: 0 | AE191: 0 | AZ191: =IFERROR(IF(OR($E$11=Resumen!$N$6,$E$8=Resumen!$N$6),Amortización!AV191*0.16,0),"") -> 0 | BA191: 0 | BB191: 0
E192: 0 | G192: =IF(D192="","",L191*Resumen!$L$86/1000) ->  | I192: =IF($E$16=$S$1,0,IF(D192="","",Amortización!$AB$14)) ->  | J192: =IFERROR(IF(OR($E$11=Resumen!$N$6,$E$8=Resumen!$N$6),Amortización!F192*0.16,0),"") -> 0 | K192: 0 | L192: 0 | N192: =IF(OR(L191=0,L191=""),"",IF(E192>=D192,0,$E$17*10%)) ->  | S192: 0 | U192: 1.301483229 | V192: 0 | Y192: 0 | AD192: 0 | AE192: 0 | AZ192: =IFERROR(IF(OR($E$11=Resumen!$N$6,$E$8=Resumen!$N$6),Amortización!AV192*0.16,0),"") -> 0 | BA192: 0 | BB192: 0
E193: 0 | G193: =IF(D193="","",L192*Resumen!$L$86/1000) ->  | I193: =IF($E$16=$S$1,0,IF(D193="","",Amortización!$AB$14)) ->  | J193: =IFERROR(IF(OR($E$11=Resumen!$N$6,$E$8=Resumen!$N$6),Amortización!F193*0.16,0),"") -> 0 | K193: 0 | L193: 0 | S193: 0 | U193: 1.301483229 | V193: 0 | Y193: 0 | AD193: 0 | AE193: 0 | AZ193: =IFERROR(IF(OR($E$11=Resumen!$N$6,$E$8=Resumen!$N$6),Amortización!AV193*0.16,0),"") -> 0 | BA193: 0 | BB193: 0
E194: 0 | G194: =IF(D194="","",L193*Resumen!$L$86/1000) ->  | I194: =IF($E$16=$S$1,0,IF(D194="","",Amortización!$AB$14)) ->  | J194: =IFERROR(IF(OR($E$11=Resumen!$N$6,$E$8=Resumen!$N$6),Amortización!F194*0.16,0),"") -> 0 | K194: 0 | L194: 0 | N194: =IF(OR(L193=0,L193=""),"",IF(E194>=D194,0,$E$17*10%)) ->  | S194: 0 | U194: 1.301483229 | V194: 0 | Y194: 0 | AD194: 0 | AE194: 0 | AZ194: =IFERROR(IF(OR($E$11=Resumen!$N$6,$E$8=Resumen!$N$6),Amortización!AV194*0.16,0),"") -> 0 | BA194: 0 | BB194: 0
E195: 0 | G195: =IF(D195="","",L194*Resumen!$L$86/1000) ->  | I195: =IF($E$16=$S$1,0,IF(D195="","",Amortización!$AB$14)) ->  | J195: =IFERROR(IF(OR($E$11=Resumen!$N$6,$E$8=Resumen!$N$6),Amortización!F195*0.16,0),"") -> 0 | K195: 0 | L195: 0 | S195: 0 | U195: 1.301483229 | V195: 0 | Y195: 0 | AD195: 0 | AE195: 0 | AZ195: =IFERROR(IF(OR($E$11=Resumen!$N$6,$E$8=Resumen!$N$6),Amortización!AV195*0.16,0),"") -> 0 | BA195: 0 | BB195: 0
E196: 0 | G196: =IF(D196="","",L195*Resumen!$L$86/1000) ->  | I196: =IF($E$16=$S$1,0,IF(D196="","",Amortización!$AB$14)) ->  | J196: =IFERROR(IF(OR($E$11=Resumen!$N$6,$E$8=Resumen!$N$6),Amortización!F196*0.16,0),"") -> 0 | K196: 0 | L196: 0 | N196: =IF(OR(L195=0,L195=""),"",IF(E196>=D196,0,$E$17*10%)) ->  | S196: 0 | U196: =IF(OR(AND($E$8="Adquisicion",$E$9="Premier"),AND($E$8="Exclusiva",$E$9="Premier"),AND($E$8="Exclusiva",$E$9="No Premier")),U184*1.019,IF(AND($E$8="Adquisicion",$E$9="No Premier"),U184*1.019,IF($E$8="Pago de Hipoteca",U184*1.019))) -> 1.301483229 | V196: 0 | Y196: 0 | AD196: 0 | AE196: 0 | AZ196: =IFERROR(IF(OR($E$11=Resumen!$N$6,$E$8=Resumen!$N$6),Amortización!AV196*0.16,0),"") -> 0 | BA196: 0 | BB196: 0
E197: 0 | G197: =IF(D197="","",L196*Resumen!$L$86/1000) ->  | I197: =IF($E$16=$S$1,0,IF(D197="","",Amortización!$AB$14)) ->  | J197: =IFERROR(IF(OR($E$11=Resumen!$N$6,$E$8=Resumen!$N$6),Amortización!F197*0.16,0),"") -> 0 | K197: 0 | L197: 0 | S197: 0 | U197: 1.301483229 | V197: 0 | Y197: 0 | AD197: 0 | AE197: 0 | AZ197: =IFERROR(IF(OR($E$11=Resumen!$N$6,$E$8=Resumen!$N$6),Amortización!AV197*0.16,0),"") -> 0 | BA197: 0 | BB197: 0
E198: 0 | G198: =IF(D198="","",L197*Resumen!$L$86/1000) ->  | I198: =IF($E$16=$S$1,0,IF(D198="","",Amortización!$AB$14)) ->  | J198: =IFERROR(IF(OR($E$11=Resumen!$N$6,$E$8=Resumen!$N$6),Amortización!F198*0.16,0),"") -> 0 | K198: 0 | L198: 0 | N198: =IF(OR(L197=0,L197=""),"",IF(E198>=D198,0,$E$17*10%)) ->  | S198: 0 | U198: 1.301483229 | V198: 0 | Y198: 0 | AD198: 0 | AE198: 0 | AZ198: =IFERROR(IF(OR($E$11=Resumen!$N$6,$E$8=Resumen!$N$6),Amortización!AV198*0.16,0),"") -> 0 | BA198: 0 | BB198: 0
E199: 0 | G199: =IF(D199="","",L198*Resumen!$L$86/1000) ->  | I199: =IF($E$16=$S$1,0,IF(D199="","",Amortización!$AB$14)) ->  | J199: =IFERROR(IF(OR($E$11=Resumen!$N$6,$E$8=Resumen!$N$6),Amortización!F199*0.16,0),"") -> 0 | K199: 0 | L199: 0 | S199: 0 | U199: 1.301483229 | V199: 0 | Y199: 0 | AD199: 0 | AE199: 0 | AZ199: =IFERROR(IF(OR($E$11=Resumen!$N$6,$E$8=Resumen!$N$6),Amortización!AV199*0.16,0),"") -> 0 | BA199: 0 | BB199: 0
E200: 0 | G200: =IF(D200="","",L199*Resumen!$L$86/1000) ->  | I200: =IF($E$16=$S$1,0,IF(D200="","",Amortización!$AB$14)) ->  | J200: =IFERROR(IF(OR($E$11=Resumen!$N$6,$E$8=Resumen!$N$6),Amortización!F200*0.16,0),"") -> 0 | K200: 0 | L200: 0 | N200: =IF(OR(L199=0,L199=""),"",IF(E200>=D200,0,$E$17*10%)) ->  | S200: 0 | U200: 1.301483229 | V200: 0 | Y200: 0 | AD200: 0 | AE200: 0 | AZ200: =IFERROR(IF(OR($E$11=Resumen!$N$6,$E$8=Resumen!$N$6),Amortización!AV200*0.16,0),"") -> 0 | BA200: 0 | BB200: 0
E201: 0 | G201: =IF(D201="","",L200*Resumen!$L$86/1000) ->  | I201: =IF($E$16=$S$1,0,IF(D201="","",Amortización!$AB$14)) ->  | J201: =IFERROR(IF(OR($E$11=Resumen!$N$6,$E$8=Resumen!$N$6),Amortización!F201*0.16,0),"") -> 0 | K201: 0 | L201: 0 | S201: 0 | U201: 1.32621141 | V201: 0 | Y201: 0 | AD201: 0 | AE201: 0 | AZ201: =IFERROR(IF(OR($E$11=Resumen!$N$6,$E$8=Resumen!$N$6),Amortización!AV201*0.16,0),"") -> 0 | BA201: 0 | BB201: 0
... 68 more rows

Sheet Oferta Vinculante
C2: Oferta Vinculante
D5: Oferta Pago Fijo | F5: Oferta Pago Bajo
